Service Area,Service Division,Expense Type,Expense Code,Detailed Expense Type,Payment Date,Transaction Number,Amount Exc VAT,Supplier Name
"Regeneration, Economy and Growth",Culture Sport and Tourism,Supplies and Services,384302,Miscellaneous Expenses,01/02/2021,3829619-BEC-DFC-4100713351-15012021,"1,050.00",REDACTED - PAYMENT TO INDIVIDUAL
Children and Young Peoples Services,Head of Education and Skills,Third Party Payments,410037,Rendered by Other Local Authorities,01/02/2021,3829672-1978,"2,232.00",FUTURE STEPS CONSULTANCY SERVICE LTD.
Children and Young Peoples Services,Central Charges (CYPS),Supplies and Services,384197,Miscellaneous Expenses,01/02/2021,3829621-A0022775,618.46,BOX IT NORTH.
Resources BK0010,Finance & Transactional Services,Supplies and Services,342051,Computers and Communications,01/02/2021,3829630-C/PY208542,"6,165.00",CIVICA UK LTD.
"Regeneration, Economy and Growth",Development and Housing,Supplies and Services,352001,Conference Expenses,01/02/2021,3829758-SI-117688,550.00,PEOPLEPLUS GROUP LTD.
"Regeneration, Economy and Growth",Transport and Contracted Services,Construction work A908,908105,Construction work,01/02/2021,3829826-102691,"3,795.30",UNIVERSAL SYSTEMS SOLUTIONS (SECURITY) LTD.
Neighbourhoods and Climate Change,Community Protection,Supplies and Services,338027,Services,01/02/2021,3829603-28449057,"7,572.38",AECOM LTD.
Neighbourhoods and Climate Change,Community Protection,Supplies and Services,338027,Services,01/02/2021,3829681-M578,"4,143.00",GROUNDWORK NE & CUMBRIA.
Neighbourhoods and Climate Change,Environmental Services,Third Party Payments,430115,Rendered by Private Contractors,01/02/2021,3829609-2017405,"1,728.00",ANDREW THOMPSON...
Neighbourhoods and Climate Change,Technical Services CM0300,Third Party Payments,430128,Rendered by Private Contractors,01/02/2021,3829663-297,602.00,F WARD FARM.
Neighbourhoods and Climate Change,Technical Services CM0300,Third Party Payments,430128,Rendered by Private Contractors,01/02/2021,3829663-298,"1,038.00",F WARD FARM.
Neighbourhoods and Climate Change,Technical Services CM0300,Third Party Payments,430128,Rendered by Private Contractors,01/02/2021,3829663-299,520.75,F WARD FARM.
Neighbourhoods and Climate Change,Partnerships & Community Engagement Div.,Cap Exp on Grants & Other Financial Assistance (REFCUS),918004,Contributions to other bodies 918004,01/02/2021,3829692-VOUCHER20NB-EDUR038,"20,000.00",HORDEN PARISH COUNCIL.
Neighbourhoods and Climate Change,Partnerships & Community Engagement Div.,Cap Exp on Grants & Other Financial Assistance (REFCUS),918004,Contributions to other bodies 918004,01/02/2021,3829744-VOUCHER20NB-3TWN011,"4,996.79",NORTH BITCHBURN COMMUNITY ASSOCIATION.
Neighbourhoods and Climate Change,Partnerships & Community Engagement Div.,Cap Exp on Grants & Other Financial Assistance (REFCUS),918004,Contributions to other bodies 918004,01/02/2021,3829837-VOUCHER20NB-DCTY032,"10,000.00",WITTON GILBERT PARISH COUNCIL.
Neighbourhoods and Climate Change,Environmental Services,Transport,215005,Running Costs of Vehicles,01/02/2021,3829748-700736,"11,188.80",OIL NRG LTD.
Neighbourhoods and Climate Change,Environmental Services,Transport,215005,Running Costs of Vehicles,01/02/2021,3829748-700737,967.60,OIL NRG LTD.
Neighbourhoods and Climate Change,Environmental Services,Transport,215005,Running Costs of Vehicles,01/02/2021,3829748-698924,"11,256.87",OIL NRG LTD.
"Regeneration, Economy and Growth",Corporate Property and Land,Supplies and Services,304221,Equipment and Materials,01/02/2021,3829655-059-275129,534.80,EDMUNDSON ELECTRICAL LTD.
Neighbourhoods and Climate Change,Technical Services CM0300,Supplies and Services,304221,Equipment and Materials,01/02/2021,3829802-9042917587,"1,495.73",TARMAC TRADING LTD.
Neighbourhoods and Climate Change,Technical Services CM0300,Supplies and Services,304221,Equipment and Materials,01/02/2021,3829802-9042932786,898.54,TARMAC TRADING LTD.
"Regeneration, Economy and Growth",Corporate Property and Land,Supplies and Services,304221,Equipment and Materials,01/02/2021,3829764-INV239477,"1,359.96",POINTER FIRE LTD.
"Regeneration, Economy and Growth",Corporate Property and Land,Supplies and Services,304221,Equipment and Materials,01/02/2021,3829719-00017963,570.75,LESTER CONTROL SYSTEMS LTD.
Neighbourhoods and Climate Change,Environmental Services,Supplies and Services,304221,Equipment and Materials,01/02/2021,3829709-1170672,504.00,JOHNSONS OF WHIXLEY LTD.
Neighbourhoods and Climate Change,Technical Services CM0300,Supplies and Services,304358,Equipment and Materials,01/02/2021,3829674-77722,"1,711.03",GEORGE VARDY HAULAGE.
Neighbourhoods and Climate Change,Technical Services CM0300,Supplies and Services,304358,Equipment and Materials,01/02/2021,3829674-77723,612.63,GEORGE VARDY HAULAGE.
Neighbourhoods and Climate Change,Technical Services CM0300,Supplies and Services,304358,Equipment and Materials,01/02/2021,3829724-5983,857.00,MAKEPEACE MOTORS.
Neighbourhoods and Climate Change,Technical Services CM0300,Supplies and Services,304358,Equipment and Materials,01/02/2021,3829724-5984,857.00,MAKEPEACE MOTORS.
Neighbourhoods and Climate Change,Technical Services CM0300,Supplies and Services,304358,Equipment and Materials,01/02/2021,3829724-5986,860.00,MAKEPEACE MOTORS.
Neighbourhoods and Climate Change,Technical Services CM0300,Supplies and Services,304358,Equipment and Materials,01/02/2021,3829724-5987,860.00,MAKEPEACE MOTORS.
Neighbourhoods and Climate Change,Technical Services CM0300,Supplies and Services,304358,Equipment and Materials,01/02/2021,3829781-34,900.20,S & R LANDSCAPES.
"Regeneration, Economy and Growth",Development and Housing,Supplies and Services,338045,Services,01/02/2021,3829838-3533212,"4,680.00",WOMBLE BOND DICKINSON (UK) LLP.
Neighbourhoods and Climate Change,Partnerships & Community Engagement Div.,Supplies and Services,384086,Miscellaneous Expenses,01/02/2021,3829786-VOUCHER20NB-EDRC016,"1,500.00",SEDGEFIELD IN BLOOM.
Neighbourhoods and Climate Change,Partnerships & Community Engagement Div.,Supplies and Services,384086,Miscellaneous Expenses,01/02/2021,3829791-VOUCHER20NB-BASH019,"2,050.00",SOUTH DURHAM ENTERPRISE AGENCY LTD.
"Regeneration, Economy and Growth",Development and Housing,Supplies and Services,304999,Equipment and Materials,01/02/2021,3829760-RED-01-2021-163,"1,000.00",PETERLEE GLASS CO LTD.
Neighbourhoods and Climate Change,Environmental Services,Supplies and Services,304999,Equipment and Materials,01/02/2021,3829678-INV061755,"1,131.23",GOTT TECHNICAL SERVICES LTD.
"Regeneration, Economy and Growth",Development and Housing,Supplies and Services,384700,Miscellaneous Expenses,01/02/2021,3829798-RED-01-2021-161,"1,000.00",STORMKING WINDOWS.
Resources BK0010,Digital and Customer Services,Supplies and Services,344014,Telephones,01/02/2021,3829832-OW03380,"1,072.00",VODAFONE LTD.
"Regeneration, Economy and Growth",Corporate Property and Land,Premises,120037,Energy Costs,01/02/2021,3829604-12616,"1,760.00",AFTERWOOD LTD.
Regeneration and Local Services,COVID19 - Regeneration Economy and Growth,Supplies and Services,384199,Miscellaneous Expenses,01/02/2021,3829619-BEC-DFC-4100695707-17122020,"1,500.00",BETHANY ELEN COYLE (MUSICIAN).
Resources BK0010,Business Support,Supplies and Services,384199,Miscellaneous Expenses,01/02/2021,3829828-UKSI11984,790.25,VALTECH LTD.
"Regeneration, Economy and Growth",Culture Sport and Tourism,Supplies and Services,384199,Miscellaneous Expenses,01/02/2021,3829602-INV-1811,900.00,ACQUIRO DIGITAL.
Children and Young Peoples Services,Head of Childrens Social Care,Supplies and Services,384199,Miscellaneous Expenses,01/02/2021,3829720-198134,740.00,LEXTOX.
Neighbourhoods and Climate Change,Environmental Services,Supplies and Services,384199,Miscellaneous Expenses,01/02/2021,3829713-1323,"39,001.50",JW BAINBRIDGE CONTRACTORS LTD.
Neighbourhoods and Climate Change,Environmental Services,Supplies and Services,338099,Services,01/02/2021,3829606-CD971065019,"2,451.40",AGROVISTA UK LTD FORMERLY MAXWELL AMENITY LTD.
Children and Young Peoples Services,Head of Education and Skills,Third Party Payments,440999,Other third party payments E440,01/02/2021,3829793-372,"1,287.00",STANLEY EVENTS LTD.
"Regeneration, Economy and Growth",Transport and Contracted Services,Third Party Payments,430106,Rendered by Private Contractors,01/02/2021,3829784-3075,"144,319.50",SCARLET BAND BUS & COACH LTD.
Neighbourhoods and Climate Change,Technical Services CM0300,Third Party Payments,430100,Rendered by Private Contractors,01/02/2021,3829770-2858/210137,"100,963.88",RAINTON CONSTRUCTION LTD.
Neighbourhoods and Climate Change,Technical Services CM0300,Third Party Payments,430100,Rendered by Private Contractors,01/02/2021,3829770-2858/210138,"61,608.59",RAINTON CONSTRUCTION LTD.
Neighbourhoods and Climate Change,Technical Services CM0300,Third Party Payments,430100,Rendered by Private Contractors,01/02/2021,3829770-2858/210139,"25,147.92",RAINTON CONSTRUCTION LTD.
"Regeneration, Economy and Growth",Corporate Property and Land,Third Party Payments,430100,Rendered by Private Contractors,01/02/2021,3829822-16810,"1,466.81",TYNE TEES THERMAL LTD.
Neighbourhoods and Climate Change,Technical Services CM0300,Third Party Payments,430100,Rendered by Private Contractors,01/02/2021,3829763-6057,"5,685.15",PINKNEY BUILDING CONTRACTORS LTD.
Resources BK0010,Digital and Customer Services,Supplies and Services,332029,Printing Stationery and Gen Off Exps,01/02/2021,3829605-149801,"1,536.52",AGNE LTD T/A ALPHAGRAPHICS.
Resources BK0010,Digital and Customer Services,Supplies and Services,332029,Printing Stationery and Gen Off Exps,01/02/2021,3829769-18739,650.00,RADECAL SIGNS GRAPHICS & ADVERTISING.
Resources BK0010,Corporate Finance & Commercial Services,Supplies and Services,338066,Services,01/02/2021,3829659-GB01G000140648,"14,500.00",ERNST & YOUNG LLP.
Neighbourhoods and Climate Change,Environmental Services,Supplies and Services,338066,Services,01/02/2021,3829704-BURSARY-JAN21,711.88,JAMES DILL-RUSSELL (GEOLOGIST).
Neighbourhoods and Climate Change,Environmental Services,Supplies and Services,338066,Services,01/02/2021,3829608-4100714366,800.00,ALLEN VALLEYS ENTERPRISE LTD.
Dedicated Schools Grant BG0015,Dedicated Schools Grant CG0050,Central Support and Other Recharges,615208,Support Services,01/02/2021,3829653-RES-02-2021-004,"3,909.44",EDEN LEARNING TRUST T/A FERRYHILL BUSINESS & ENTERPRISE COLLEGE.
Children and Young Peoples Services,Head of Education and Skills,Central Support and Other Recharges,615208,Support Services,01/02/2021,3829648-RES-02-2021-003,"4,020.15",DURHAM UTC LTD (UNIVERSITY TECHNICAL COLLEGE).
Neighbourhoods and Climate Change,Environmental Services,Transport,230005,Contract Hire,01/02/2021,3829601-I211179,"1,107.01",ACL HIRE LTD.
Neighbourhoods and Climate Change,Environmental Services,Transport,230005,Contract Hire,01/02/2021,3829819-22471,975.00,TRASH UK LTD.
Neighbourhoods and Climate Change,Environmental Services,Transport,230005,Contract Hire,01/02/2021,3829819-22494,780.00,TRASH UK LTD.
Neighbourhoods and Climate Change,Technical Services CM0300,Stock A926,926900,Stock in hand-Inventory system,01/02/2021,3829753-XL265368,"2,805.84",PARK ELECTRICAL DISTRIBUTORS LTD.
Neighbourhoods and Climate Change,Technical Services CM0300,Stock A926,926900,Stock in hand-Inventory system,01/02/2021,3829618-5282066,"2,490.00",BANNER GROUP LTD (FORMERLY SUPPLIES TEAM LTD).
Neighbourhoods and Climate Change,Technical Services CM0300,Stock A926,926900,Stock in hand-Inventory system,01/02/2021,3829686-SI-6311,602.90,HARELAW SAWMILL LTD.
Adult and Health Services,Head of Adults,Third Party Payments,478151,Purchase of Care,01/02/2021,3829810-NTX-INV-0000000199,"1,350.00",THERA NORTH TRADING LTD.
Adult and Health Services,Head of Adults,Third Party Payments,478151,Purchase of Care,01/02/2021,3829833-NEA004838,"5,252.80",VOYAGE 1 LTD.
Adult and Health Services,Head of Adults,Third Party Payments,478151,Purchase of Care,01/02/2021,3829833-NEA004839,"5,252.80",VOYAGE 1 LTD.
Adult and Health Services,Head of Adults,Third Party Payments,478151,Purchase of Care,01/02/2021,3829833-NEA004840,"5,252.80",VOYAGE 1 LTD.
Adult and Health Services,Head of Adults,Third Party Payments,478151,Purchase of Care,01/02/2021,3829833-NEA004841,"5,252.80",VOYAGE 1 LTD.
Adult and Health Services,Head of Adults,Third Party Payments,478151,Purchase of Care,01/02/2021,3829792-INV41626,"1,363.18",ST ANNES COMMUNITY SERVICES.
Adult and Health Services,Head of Adults,Third Party Payments,478151,Purchase of Care,01/02/2021,3829833-CDCC07,"4,314.80",VOYAGE 1 LTD.
Adult and Health Services,Head of Adults,Third Party Payments,478151,Purchase of Care,01/02/2021,3829660-20990,"3,704.40",ESSENTIAL CARE & SUPPORT LTD.
Adult and Health Services,Head of Adults,Third Party Payments,478151,Purchase of Care,01/02/2021,3829660-20994,"1,911.00",ESSENTIAL CARE & SUPPORT LTD.
Adult and Health Services,Head of Adults,Third Party Payments,478151,Purchase of Care,01/02/2021,3829661-20986,"1,062.00",ESSENTIAL CARE & SUPPORT LTD.
"Regeneration, Economy and Growth",Culture Sport and Tourism,Supplies and Services,384302,Miscellaneous Expenses,02/02/2021,3830635-21-073-DCC,"1,000.00",MODULAR LTD.
Neighbourhoods and Climate Change,Environmental Services,Transport,215023,Running Costs of Vehicles,02/02/2021,3830739-4103540,552.00,TENNANTS DISTRIBUTION LTD.
Chief Executive's Office,Communications Management,Supplies and Services,336005,Advertising E336,02/02/2021,3830480-INV-0352,"3,630.00",BEYOND DIGITAL SOLUTIONS LTD.
Dedicated Schools Grant BG0015,DSG High Needs Block,Third Party Payments,410037,Rendered by Other Local Authorities,02/02/2021,3830555-ENT21EX64,725.00,ENTER CIC.
Dedicated Schools Grant BG0015,DSG High Needs Block,Third Party Payments,410037,Rendered by Other Local Authorities,02/02/2021,3830555-ENT21EX65,515.00,ENTER CIC.
Children and Young Peoples Services,Head of Education and Skills,Third Party Payments,410037,Rendered by Other Local Authorities,02/02/2021,3830571-2017,"17,005.56",FUTURE STEPS CONSULTANCY SERVICE LTD.
Resources BK0010,Legal & Democratic Services,Supplies and Services,338010,Services,02/02/2021,3830537-06/10/20-13/12/2020,"3,300.00",DR DCA SENADHIRA.
"Regeneration, Economy and Growth",Culture Sport and Tourism,Supplies and Services,312013,Newspapers books and periodicals E312,02/02/2021,3830486-60112,994.95,BOLINDA DIGITAL LTD.
"Regeneration, Economy and Growth",Culture Sport and Tourism,Premises,145023,Cleaning and Domestic Supplies,02/02/2021,3830582-06/107748,957.96,GREENHAM TRADING LTD.
"Regeneration, Economy and Growth",Corporate Property and Land,Supplies and Services,328041,Clothing uniforms and laundry E328,02/02/2021,3830749-NSIN00050056,850.40,THOMAS OWEN & SONS (NEWCASTLE) LTD.
Resources BK0010,Digital and Customer Services,Supplies and Services,342033,Computers and Communications,02/02/2021,3830531-7402680975,"2,160.10",DELL COMPUTER CORPORATION LTD.
Resources BK0010,Digital and Customer Services,Supplies and Services,342033,Computers and Communications,02/02/2021,3830599-5159140,"7,950.00",INSIGHT DIRECT (UK) LTD.
Neighbourhoods and Climate Change,Community Protection,Supplies and Services,342053,Computers and Communications,02/02/2021,3830511-C/HR210317,"1,000.00",CIVICA UK LTD.
Neighbourhoods and Climate Change,Technical Services CM0300,Construction work A908,908105,Construction work,02/02/2021,3830455-28448528,"7,694.97",AECOM LTD.
"Regeneration, Economy and Growth",Culture Sport and Tourism,Construction work A908,908105,Construction work,02/02/2021,3830626-SI03612,"2,300.00",MALCOLM HUGHES CHARTERED LAND SURVEYORS.*
Adult and Health Services,Adults Excluded,Supplies and Services,338027,Services,02/02/2021,3830761-VB0016,"1,500.00",VANESSA BAINBRIDGE (CONSULTANT).
Neighbourhoods and Climate Change,Environmental Services,Supplies and Services,304337,Equipment and Materials,02/02/2021,3830557-6879682,"7,518.00",ESE WORLD LTD.
Children and Young Peoples Services,Head of Education and Skills,Transport,230034,Contract Hire,02/02/2021,3830639-1254-APRIL20,"1,753.49",MR MARK WILE T/A HARRY`S TAXIS.
Children and Young Peoples Services,Head of Education and Skills,Transport,230034,Contract Hire,02/02/2021,3830468-JAN2021-2,"1,064.00",ARMSTRONG`S TAXIS.
Children and Young Peoples Services,Head of Education and Skills,Transport,230034,Contract Hire,02/02/2021,3830676-35858,652.50,PHOENIX TAXIS T/A PRATT`S TAXIS.
Children and Young Peoples Services,Head of Education and Skills,Transport,230034,Contract Hire,02/02/2021,3830633-296,787.50,MICKS TAXIS - MURTON.
Children and Young Peoples Services,Head of Education and Skills,Transport,230034,Contract Hire,02/02/2021,3830728-058,"1,743.40",STEVEN HENDERSON T/A HENDYS TAXIS.
Children and Young Peoples Services,Head of Education and Skills,Transport,230007,Contract Hire,02/02/2021,3830573-22636-4034,"2,591.85",GARNETTS LTD (COACHES).
Children and Young Peoples Services,Head of Education and Skills,Transport,230007,Contract Hire,02/02/2021,3830573-22636-4035,"2,397.46",GARNETTS LTD (COACHES).
Children and Young Peoples Services,Head of Education and Skills,Transport,230007,Contract Hire,02/02/2021,3830573-22636-4037,"4,687.30",GARNETTS LTD (COACHES).
Children and Young Peoples Services,Head of Education and Skills,Transport,230007,Contract Hire,02/02/2021,3830573-22636-4038,"2,397.46",GARNETTS LTD (COACHES).
Children and Young Peoples Services,Head of Education and Skills,Transport,230007,Contract Hire,02/02/2021,3830573-22637-3029,"2,796.40",GARNETTS LTD (COACHES).
Children and Young Peoples Services,Head of Education and Skills,Transport,230007,Contract Hire,02/02/2021,3830573-22637-3199,"2,664.80",GARNETTS LTD (COACHES).
Children and Young Peoples Services,Head of Education and Skills,Transport,230007,Contract Hire,02/02/2021,3830573-22649-3425,"3,064.20",GARNETTS LTD (COACHES).
Children and Young Peoples Services,Head of Education and Skills,Transport,230007,Contract Hire,02/02/2021,3830573-22642-4404,"15,142.80",GARNETTS LTD (COACHES).
Children and Young Peoples Services,Head of Education and Skills,Transport,230007,Contract Hire,02/02/2021,3830659-INV-6656,"2,560.06",NORTH EAST COACHWAYS LTD.
Children and Young Peoples Services,Head of Education and Skills,Transport,230007,Contract Hire,02/02/2021,3830659-INV-6653,"2,489.00",NORTH EAST COACHWAYS LTD.
Children and Young Peoples Services,Head of Education and Skills,Transport,230007,Contract Hire,02/02/2021,3830659-INV-6654,"2,584.00",NORTH EAST COACHWAYS LTD.
Children and Young Peoples Services,Head of Education and Skills,Transport,230007,Contract Hire,02/02/2021,3830502-02JAN21,933.10,CHAPMAN TRAVEL.
Children and Young Peoples Services,Head of Education and Skills,Transport,230007,Contract Hire,02/02/2021,3830515-C/11199,"2,025.00",COCHRANES T/A KELVIN TRAVEL.
Children and Young Peoples Services,Head of Education and Skills,Transport,230007,Contract Hire,02/02/2021,3830515-C/11197,"2,011.05",COCHRANES T/A KELVIN TRAVEL.
Children and Young Peoples Services,Head of Education and Skills,Transport,230007,Contract Hire,02/02/2021,3830573-22636,"2,591.85",GARNETTS LTD (COACHES).
Children and Young Peoples Services,Head of Education and Skills,Transport,230007,Contract Hire,02/02/2021,3830573-22641,"2,909.20",GARNETTS LTD (COACHES).
Children and Young Peoples Services,Head of Education and Skills,Transport,230007,Contract Hire,02/02/2021,3830573-22649,"2,192.10",GARNETTS LTD (COACHES).
Children and Young Peoples Services,Head of Education and Skills,Transport,230007,Contract Hire,02/02/2021,3830573-22640,"6,175.60",GARNETTS LTD (COACHES).
Children and Young Peoples Services,Head of Education and Skills,Transport,230007,Contract Hire,02/02/2021,3830573-22642,"3,544.20",GARNETTS LTD (COACHES).
Children and Young Peoples Services,Head of Education and Skills,Transport,230007,Contract Hire,02/02/2021,3830573-22634,"5,044.20",GARNETTS LTD (COACHES).
Children and Young Peoples Services,Head of Education and Skills,Transport,230007,Contract Hire,02/02/2021,3830573-22631,"3,675.00",GARNETTS LTD (COACHES).
Children and Young Peoples Services,Head of Education and Skills,Transport,230007,Contract Hire,02/02/2021,3830595-18136,977.44,HODGSONS COACH OPERATORS LTD.
Children and Young Peoples Services,Head of Education and Skills,Transport,230007,Contract Hire,02/02/2021,3830595-18138,793.28,HODGSONS COACH OPERATORS LTD.
Children and Young Peoples Services,Head of Education and Skills,Transport,230007,Contract Hire,02/02/2021,3830595-18143,"1,335.88",HODGSONS COACH OPERATORS LTD.
Children and Young Peoples Services,Head of Education and Skills,Transport,230007,Contract Hire,02/02/2021,3830676-35855,511.80,PHOENIX TAXIS T/A PRATT`S TAXIS.
Children and Young Peoples Services,Head of Education and Skills,Transport,230007,Contract Hire,02/02/2021,3830770-16346,"1,154.25",WEARDALE MOTOR SERVICES LTD.
Children and Young Peoples Services,Head of Education and Skills,Transport,230007,Contract Hire,02/02/2021,3830602-6032,507.00,J YOUNG T/A VIP TAXIS.
Children and Young Peoples Services,Head of Education and Skills,Transport,230003,Contract Hire,02/02/2021,3830573-22637-3020,"2,815.20",GARNETTS LTD (COACHES).
Children and Young Peoples Services,Head of Education and Skills,Transport,230003,Contract Hire,02/02/2021,3830573-22637-3024,"2,445.20",GARNETTS LTD (COACHES).
Children and Young Peoples Services,Head of Education and Skills,Transport,230003,Contract Hire,02/02/2021,3830573-22637-3027,"2,495.60",GARNETTS LTD (COACHES).
Children and Young Peoples Services,Head of Education and Skills,Transport,230003,Contract Hire,02/02/2021,3830573-22637-3028,"2,721.20",GARNETTS LTD (COACHES).
Children and Young Peoples Services,Head of Education and Skills,Transport,230003,Contract Hire,02/02/2021,3830573-22639-3004,"3,191.20",GARNETTS LTD (COACHES).
Children and Young Peoples Services,Head of Education and Skills,Transport,230003,Contract Hire,02/02/2021,3830573-22639-3005,"5,818.40",GARNETTS LTD (COACHES).
Children and Young Peoples Services,Head of Education and Skills,Transport,230003,Contract Hire,02/02/2021,3830573-22639-3008,"3,285.20",GARNETTS LTD (COACHES).
Children and Young Peoples Services,Head of Education and Skills,Transport,230003,Contract Hire,02/02/2021,3830573-22639-3203,"3,097.20",GARNETTS LTD (COACHES).
Children and Young Peoples Services,Head of Education and Skills,Transport,230003,Contract Hire,02/02/2021,3830573-22639-3223,"6,194.40",GARNETTS LTD (COACHES).
Children and Young Peoples Services,Head of Education and Skills,Transport,230003,Contract Hire,02/02/2021,3830573-22639-3262,"3,623.00",GARNETTS LTD (COACHES).
Children and Young Peoples Services,Head of Education and Skills,Transport,230003,Contract Hire,02/02/2021,3830573-22639-3333,"3,266.40",GARNETTS LTD (COACHES).
Children and Young Peoples Services,Head of Education and Skills,Transport,230003,Contract Hire,02/02/2021,3830659-INV06655,"3,534.00",NORTH EAST COACHWAYS LTD.
Children and Young Peoples Services,Head of Education and Skills,Transport,230003,Contract Hire,02/02/2021,3830659-INV06651,"3,211.00",NORTH EAST COACHWAYS LTD.
Children and Young Peoples Services,Head of Education and Skills,Transport,230003,Contract Hire,02/02/2021,3830733-27205SL,924.45,T MOORE & SON.
Children and Young Peoples Services,Head of Education and Skills,Transport,230009,Contract Hire,02/02/2021,3830676-35869,526.50,PHOENIX TAXIS T/A PRATT`S TAXIS.
Children and Young Peoples Services,Head of Education and Skills,Transport,230009,Contract Hire,02/02/2021,3830770-16345,"2,715.86",WEARDALE MOTOR SERVICES LTD.
Children and Young Peoples Services,Head of Education and Skills,Transport,230006,Contract Hire,02/02/2021,3830638-E102JAN21,792.00,MR DOMINICK JONES T/A DJ PRIVATE HIRE.
Children and Young Peoples Services,Head of Education and Skills,Transport,230006,Contract Hire,02/02/2021,3830502-05JAN21,780.00,CHAPMAN TRAVEL.
Children and Young Peoples Services,Head of Education and Skills,Transport,230006,Contract Hire,02/02/2021,3830502-17JAN21,"1,630.80",CHAPMAN TRAVEL.
Children and Young Peoples Services,Head of Education and Skills,Transport,230006,Contract Hire,02/02/2021,3830676-35863,945.00,PHOENIX TAXIS T/A PRATT`S TAXIS.
Children and Young Peoples Services,Head of Education and Skills,Transport,230006,Contract Hire,02/02/2021,3830676-35864,"1,071.50",PHOENIX TAXIS T/A PRATT`S TAXIS.
Children and Young Peoples Services,Head of Education and Skills,Transport,230006,Contract Hire,02/02/2021,3830676-35865,540.00,PHOENIX TAXIS T/A PRATT`S TAXIS.
Children and Young Peoples Services,Head of Education and Skills,Transport,230006,Contract Hire,02/02/2021,3830676-35867,864.00,PHOENIX TAXIS T/A PRATT`S TAXIS.
Children and Young Peoples Services,Head of Education and Skills,Transport,230006,Contract Hire,02/02/2021,3830676-35868,"1,085.75",PHOENIX TAXIS T/A PRATT`S TAXIS.
Children and Young Peoples Services,Head of Education and Skills,Transport,230006,Contract Hire,02/02/2021,3830686-SP8,"1,071.00",PRESTYS HACKNEY & PRIVATE HIRE TAXIS.
Children and Young Peoples Services,Head of Education and Skills,Transport,230006,Contract Hire,02/02/2021,3830728-059,"1,254.00",STEVEN HENDERSON T/A HENDYS TAXIS.
Children and Young Peoples Services,Head of Education and Skills,Transport,230010,Contract Hire,02/02/2021,3830639-BL023/MAY,"1,345.95",MR MARK WILE T/A HARRY`S TAXIS.
Children and Young Peoples Services,Head of Education and Skills,Transport,230010,Contract Hire,02/02/2021,3830676-35861,"1,186.35",PHOENIX TAXIS T/A PRATT`S TAXIS.
Children and Young Peoples Services,Head of Education and Skills,Transport,230010,Contract Hire,02/02/2021,3830458-97,"1,384.34",AJ JOBLING T/A CASTLE TAXIS.
Children and Young Peoples Services,Head of Education and Skills,Transport,230012,Contract Hire,02/02/2021,3830459-3889-JAN21,"1,822.67",ALAN SOUTHERN T/A ALANS TAXIS PELTON FELL.
Children and Young Peoples Services,Head of Education and Skills,Transport,230016,Contract Hire,02/02/2021,3830602-6035,"1,376.00",J YOUNG T/A VIP TAXIS.
Children and Young Peoples Services,Head of Education and Skills,Transport,230008,Contract Hire,02/02/2021,3830772-WESTLEA290121,954.80,WESTLEA TAXIS.
Children and Young Peoples Services,Head of Education and Skills,Transport,230008,Contract Hire,02/02/2021,3830573-22628-S011,"2,258.62",GARNETTS LTD (COACHES).
Children and Young Peoples Services,Head of Education and Skills,Transport,230008,Contract Hire,02/02/2021,3830638-E052JAN21,"1,104.92",MR DOMINICK JONES T/A DJ PRIVATE HIRE.
Children and Young Peoples Services,Head of Education and Skills,Transport,230008,Contract Hire,02/02/2021,3830638-W003JAN21,"1,852.50",MR DOMINICK JONES T/A DJ PRIVATE HIRE.
Children and Young Peoples Services,Head of Education and Skills,Transport,230008,Contract Hire,02/02/2021,3830638-E046JAN21,750.00,MR DOMINICK JONES T/A DJ PRIVATE HIRE.
Children and Young Peoples Services,Head of Education and Skills,Transport,230008,Contract Hire,02/02/2021,3830636-009-MAY,"1,365.90",MOLLY`S TAXIS LTD.
Children and Young Peoples Services,Head of Education and Skills,Transport,230008,Contract Hire,02/02/2021,3830623-41-MAY,"1,350.00",M&C`S CABS LTD.
Children and Young Peoples Services,Head of Education and Skills,Transport,230008,Contract Hire,02/02/2021,3830573-22643,"3,732.00",GARNETTS LTD (COACHES).
Children and Young Peoples Services,Head of Education and Skills,Transport,230008,Contract Hire,02/02/2021,3830573-22628,"2,636.25",GARNETTS LTD (COACHES).
Children and Young Peoples Services,Head of Education and Skills,Transport,230008,Contract Hire,02/02/2021,3830770-16339,"2,864.69",WEARDALE MOTOR SERVICES LTD.
Children and Young Peoples Services,Head of Education and Skills,Transport,230008,Contract Hire,02/02/2021,3830770-16340,"2,381.44",WEARDALE MOTOR SERVICES LTD.
Children and Young Peoples Services,Head of Education and Skills,Transport,230008,Contract Hire,02/02/2021,3830770-16341,"3,366.00",WEARDALE MOTOR SERVICES LTD.
Children and Young Peoples Services,Head of Education and Skills,Transport,230008,Contract Hire,02/02/2021,3830770-16342,"3,708.00",WEARDALE MOTOR SERVICES LTD.
Children and Young Peoples Services,Head of Education and Skills,Transport,230008,Contract Hire,02/02/2021,3830464-0104,"1,361.60",ANDREW SIMPSON T/A ANDY`S CABS.
Children and Young Peoples Services,Head of Education and Skills,Transport,230008,Contract Hire,02/02/2021,3830472-014,"2,394.00",AUCKLAND TRAVEL.
Children and Young Peoples Services,Head of Education and Skills,Transport,230008,Contract Hire,02/02/2021,3830472-015,"2,301.00",AUCKLAND TRAVEL.
Children and Young Peoples Services,Head of Education and Skills,Transport,230008,Contract Hire,02/02/2021,3830501-055,"2,218.00",CHANNER`S CABS.
Children and Young Peoples Services,Head of Education and Skills,Transport,230008,Contract Hire,02/02/2021,3830529-B6,"1,564.00",DAVID FOREMAN T/A DAVES TAXIS.
Children and Young Peoples Services,Head of Education and Skills,Transport,230008,Contract Hire,02/02/2021,3830529-B9,"2,057.84",DAVID FOREMAN T/A DAVES TAXIS.
"Regeneration, Economy and Growth",Business Durham CL0850,Third Party Payments,460305,Contract Payments,02/02/2021,3830758-RED-02-2021-003,"16,431.38",UMI COMMERCIAL LTD.
Neighbourhoods and Climate Change,Technical Services CM0300,Third Party Payments,430128,Rendered by Private Contractors,02/02/2021,3830601-1656/2020,900.00,J & JG GILL & SONS LTD.
Neighbourhoods and Climate Change,Technical Services CM0300,Third Party Payments,430128,Rendered by Private Contractors,02/02/2021,3830625-6008,"2,334.50",MAKEPEACE MOTORS.
"Regeneration, Economy and Growth",Corporate Property and Land,Supplies and Services,304221,Equipment and Materials,02/02/2021,3830609-0113/00266518,"1,971.42",JT DOVE LTD.
"Regeneration, Economy and Growth",Corporate Property and Land,Supplies and Services,304221,Equipment and Materials,02/02/2021,3830609-0108/00271890,643.24,JT DOVE LTD.
Neighbourhoods and Climate Change,Environmental Services,Supplies and Services,304221,Equipment and Materials,02/02/2021,3830749-NSIN00049718,"4,519.80",THOMAS OWEN & SONS (NEWCASTLE) LTD.
"Regeneration, Economy and Growth",Corporate Property and Land,Supplies and Services,304221,Equipment and Materials,02/02/2021,3830551-059-275599,627.20,EDMUNDSON ELECTRICAL LTD.
Neighbourhoods and Climate Change,Technical Services CM0300,Supplies and Services,304221,Equipment and Materials,02/02/2021,3830648-0000095973,"1,895.84",NAL LTD.
"Regeneration, Economy and Growth",Corporate Property and Land,Supplies and Services,304221,Equipment and Materials,02/02/2021,3830717-INVOICE,765.24,CARPET & FLOORING (TRADING) LTD.
Neighbourhoods and Climate Change,Technical Services CM0300,Supplies and Services,304221,Equipment and Materials,02/02/2021,3830562-135531,921.93,FABRIKAT (NOTTINGHAM) LTD.
"Regeneration, Economy and Growth",Corporate Property and Land,Supplies and Services,304221,Equipment and Materials,02/02/2021,3830751-34063,"2,710.00",TOTAL PUMP SOLUTIONS LTD.
Children and Young Peoples Services,Head of Childrens Social Care,Third Party Payments,425028,Rendered by Voluntary Organisations,02/02/2021,3830600-2021/IC/004,"16,872.50",INTEGRATING CHILDREN.
"Regeneration, Economy and Growth",Culture Sport and Tourism,Supplies and Services,304259,Equipment and Materials,02/02/2021,3830685-SINC27121,534.59,POWERHOUSE FITNESS.
"Regeneration, Economy and Growth",Corporate Property and Land,Supplies and Services,304259,Equipment and Materials,02/02/2021,3830661-524804,"1,980.00",NORTHERN TOOLS & ACCESSORIES.
"Regeneration, Economy and Growth",Corporate Property and Land,Supplies and Services,304259,Equipment and Materials,02/02/2021,3830661-525292,"1,100.00",NORTHERN TOOLS & ACCESSORIES.
"Regeneration, Economy and Growth",Corporate Property and Land,Supplies and Services,304259,Equipment and Materials,02/02/2021,3830661-524686,"1,128.00",NORTHERN TOOLS & ACCESSORIES.
Resources BK0010,Corporate Finance & Commercial Services,Supplies and Services,308011,Furniture,02/02/2021,3830460-170460,625.00,ALBANY OFFICE EQUIPMENT (WHOLESALE) LTD.
Children and Young Peoples Services,Head of Early Help Inclusion & Vulnerable Children.,Premises,108099,Service Repairs and Maintenance,02/02/2021,3830454-46048781,"1,668.42",ADT FIRE & SECURITY PLC.
Neighbourhoods and Climate Change,Technical Services CM0300,Supplies and Services,304358,Equipment and Materials,02/02/2021,3830601-1504/2020,739.00,J & JG GILL & SONS LTD.
Neighbourhoods and Climate Change,Technical Services CM0300,Supplies and Services,304358,Equipment and Materials,02/02/2021,3830601-1561/2020,"2,077.00",J & JG GILL & SONS LTD.
Neighbourhoods and Climate Change,Technical Services CM0300,Supplies and Services,304358,Equipment and Materials,02/02/2021,3830601-1639/2020,"1,103.50",J & JG GILL & SONS LTD.
Neighbourhoods and Climate Change,Technical Services CM0300,Supplies and Services,304358,Equipment and Materials,02/02/2021,3830708-79-2020,"1,064.00",S & R LANDSCAPES.
Neighbourhoods and Climate Change,Technical Services CM0300,Supplies and Services,304358,Equipment and Materials,02/02/2021,3830708-2573,777.00,S & R LANDSCAPES.
Neighbourhoods and Climate Change,Technical Services CM0300,Supplies and Services,304358,Equipment and Materials,02/02/2021,3830708-84,817.00,S & R LANDSCAPES.
Resources BK0010,Finance & Transactional Services,Supplies and Services,338045,Services,02/02/2021,3830569-87016-051120,"1,350.00",FRANCIS TAYLOR BUILDING (BARRISTERS).
"Regeneration, Economy and Growth",Development and Housing,Supplies and Services,338045,Services,02/02/2021,3830612-471664,"2,500.00",KINGS CHAMBERS.
Children and Young Peoples Services,Head of Childrens Social Care,Supplies and Services,338045,Services,02/02/2021,3830652-007708,"1,285.83",NAUGHTONS SOLICITORS.
Resources BK0010,Finance & Transactional Services,Supplies and Services,338045,Services,02/02/2021,3830569-87016,"2,662.50",FRANCIS TAYLOR BUILDING (BARRISTERS).
Children and Young Peoples Services,Head of Childrens Social Care,Supplies and Services,338045,Services,02/02/2021,3830731-65117,500.00,SWINBURNE SNOWBALL & JACKSON.
Children and Young Peoples Services,Childrens Services Operational Support,Supplies and Services,384956,Miscellaneous Expenses,02/02/2021,3830655-1800010477796,"24,587.77",NEWCASTLE UPON TYNE CITY COUNCIL.
Neighbourhoods and Climate Change,Environmental Services,Supplies and Services,384956,Miscellaneous Expenses,02/02/2021,3830663-5069575,"2,880.07",NSF CERTIFICATION UK LTD.
Neighbourhoods and Climate Change,Technical Services CM0300,Supplies and Services,304357,Equipment and Materials,02/02/2021,3830572-DCC030121,"10,835.91",GAP GROUP LTD.
Children and Young Peoples Services,Head of Early Help Inclusion & Vulnerable Children.,Supplies and Services,384700,Miscellaneous Expenses,02/02/2021,3830520-WFSF0003,"1,711.00",COUNTY DURHAM FURNITURE HELP SCHEME (CDFHS).
Resources BK0010,Digital and Customer Services,Supplies and Services,344014,Telephones,02/02/2021,3830767-OW90236,"1,310.00",VODAFONE LTD.
Resources BK0010,Digital and Customer Services,Supplies and Services,304303,Equipment and Materials,02/02/2021,3830779-KY33560,"1,377.00",XMA LTD.
"Regeneration, Economy and Growth",Culture Sport and Tourism,Supplies and Services,384999,Miscellaneous Expenses,02/02/2021,3830564-2210086,890.00,FALON NAMEPLATES LTD..*
"Regeneration, Economy and Growth",Business Durham CL0850,Supplies and Services,384199,Miscellaneous Expenses,02/02/2021,3830590-IHI100-2537,"1,730.00",HAYFIELDS CONTRACTING LTD T/A COMPLETE WEED CONTROL (DUR & TEESIDE).
Neighbourhoods and Climate Change,Environmental Services,Third Party Payments,430100,Rendered by Private Contractors,02/02/2021,3830753-4100711917,"4,978.75",TREVOR BURN FENCING LTD.
"Regeneration, Economy and Growth",Corporate Property and Land,Third Party Payments,430100,Rendered by Private Contractors,02/02/2021,3830666-10594-19,"1,170.07",OPUS BUILDING SERVICES LTD.
"Regeneration, Economy and Growth",Corporate Property and Land,Third Party Payments,430100,Rendered by Private Contractors,02/02/2021,3830570-11515,"29,250.00",FROSTREE LTD.
"Regeneration, Economy and Growth",Corporate Property and Land,Third Party Payments,430100,Rendered by Private Contractors,02/02/2021,3830727-16583,"1,764.00",STEADFAST SECURITY SOLUTIONS LTD.
"Regeneration, Economy and Growth",Corporate Property and Land,Third Party Payments,430100,Rendered by Private Contractors,02/02/2021,3830598-9122,"1,750.00",INGLEFORD SCAFFOLDING LTD.
Neighbourhoods and Climate Change,Technical Services CM0300,Third Party Payments,430100,Rendered by Private Contractors,02/02/2021,3830593-3182,"2,860.00",HIGHWAY CONSTRUCTION SERVICES LTD.
Neighbourhoods and Climate Change,Technical Services CM0300,Third Party Payments,430100,Rendered by Private Contractors,02/02/2021,3830593-3188,"11,236.99",HIGHWAY CONSTRUCTION SERVICES LTD.
Neighbourhoods and Climate Change,Technical Services CM0300,Third Party Payments,430100,Rendered by Private Contractors,02/02/2021,3830610-3518,600.00,KEVIN SNOWDON GROUNDWORKS LTD.
Neighbourhoods and Climate Change,Technical Services CM0300,Third Party Payments,430100,Rendered by Private Contractors,02/02/2021,3830678-6058,"2,186.12",PINKNEY BUILDING CONTRACTORS LTD.
Neighbourhoods and Climate Change,Technical Services CM0300,Third Party Payments,430100,Rendered by Private Contractors,02/02/2021,3830678-6062,"3,176.84",PINKNEY BUILDING CONTRACTORS LTD.
Neighbourhoods and Climate Change,Technical Services CM0300,Third Party Payments,430100,Rendered by Private Contractors,02/02/2021,3830678-6066,"2,609.24",PINKNEY BUILDING CONTRACTORS LTD.
Neighbourhoods and Climate Change,Technical Services CM0300,Third Party Payments,430100,Rendered by Private Contractors,02/02/2021,3830678-6068,"18,905.85",PINKNEY BUILDING CONTRACTORS LTD.
Adult and Health Services,Public Health CC0450,Third Party Payments,460803,Contract Payments,02/02/2021,3830453-INV-0934,"124,855.00",ABL HEALTH LTD.
"Regeneration, Economy and Growth",Culture Sport and Tourism,Vehicles Equipment Furniture and Fittings,912521,Purchase-furniture and fittings,02/02/2021,3830460-170284,"13,306.00",ALBANY OFFICE EQUIPMENT (WHOLESALE) LTD.
Adult and Health Services,Head of Adults,Transport,230005,Contract Hire,02/02/2021,3830485-8072-2021,742.00,BOBBY DOVE PRIVATE HIRE.
Children and Young Peoples Services,Head of Early Help Inclusion & Vulnerable Children.,Third Party Payments,486046,Service level agreements E486,02/02/2021,3830651-50386,"8,360.75",NATIONAL YOUTH ADVOCACY SERVICE.
"Regeneration, Economy and Growth",Culture Sport and Tourism,Intangible Assets,917003,Software capitalised implementation fees,02/02/2021,3830489-10850,"1,440.00",BRAMBLE HUB LTD.
Neighbourhoods and Climate Change,Technical Services CM0300,Stock A926,926900,Stock in hand-Inventory system,02/02/2021,3830609-0113/00272884,"1,110.97",JT DOVE LTD.
Neighbourhoods and Climate Change,Technical Services CM0300,Stock A926,926900,Stock in hand-Inventory system,02/02/2021,3830749-NSIN00049850,652.80,THOMAS OWEN & SONS (NEWCASTLE) LTD.
Neighbourhoods and Climate Change,Technical Services CM0300,Stock A926,926900,Stock in hand-Inventory system,02/02/2021,3830749-NSIN00049853,627.42,THOMAS OWEN & SONS (NEWCASTLE) LTD.
Resources BK0010,Digital and Customer Services,Stock A926,926900,Stock in hand-Inventory system,02/02/2021,3830531-7402681854,501.00,DELL COMPUTER CORPORATION LTD.
Resources BK0010,Digital and Customer Services,Stock A926,926900,Stock in hand-Inventory system,02/02/2021,3830531-7402681855,"1,503.00",DELL COMPUTER CORPORATION LTD.
Neighbourhoods and Climate Change,Technical Services CM0300,Stock A926,926900,Stock in hand-Inventory system,02/02/2021,3830582-06/107613,634.00,GREENHAM TRADING LTD.
Resources BK0010,Digital and Customer Services,Stock A926,926900,Stock in hand-Inventory system,02/02/2021,3830779-KY36250,"4,098.87",XMA LTD.
"Regeneration, Economy and Growth",Corporate Property and Land,Supplies and Services,372009,Subscriptions E372,02/02/2021,3830546-2021/940236,"3,181.05",ECA (ELECTRICAL CONTRACTORS` ASSOCIATION)
Adult and Health Services,Head of Adults,Third Party Payments,478151,Purchase of Care,02/02/2021,3830563-FHA138/21,"1,576.35",FALCON HOUSING ASSOCIATION CIC.
Adult and Health Services,Head of Adults,Third Party Payments,478151,Purchase of Care,02/02/2021,3830725-INV39721,"2,883.54",ST ANNES COMMUNITY SERVICES.
Neighbourhoods and Climate Change,Environmental Services,Transport,210057,Repair and Maintenance of Vehicles,02/02/2021,3830533-DE11376725,728.36,DENNIS EAGLE LTD.
Neighbourhoods and Climate Change,Environmental Services,Transport,210057,Repair and Maintenance of Vehicles,02/02/2021,3830477-35195566,"1,213.14",BELL TRUCK SALES LTD T/A BELL TRUCK & VAN.
Neighbourhoods and Climate Change,Environmental Services,Transport,210057,Repair and Maintenance of Vehicles,02/02/2021,3830548-S206888,"1,894.00",ECON ENGINEERING LTD.
Neighbourhoods and Climate Change,Environmental Services,Transport,210057,Repair and Maintenance of Vehicles,02/02/2021,3830504-410115,623.11,CHATFIELDS T/A EVANS HALSHAW.
Neighbourhoods and Climate Change,Environmental Services,Transport,210057,Repair and Maintenance of Vehicles,02/02/2021,3830604-136711,935.00,JG PAXTON & SONS LTD.
Neighbourhoods and Climate Change,Environmental Services,Transport,210057,Repair and Maintenance of Vehicles,02/02/2021,3830645-25326,505.00,MULTEVO LTD.
Neighbourhoods and Climate Change,Environmental Services,Transport,210057,Repair and Maintenance of Vehicles,02/02/2021,3830674-16067,"1,295.77",PETERLEE GLASS CO LTD.
Neighbourhoods and Climate Change,Environmental Services,Transport,210057,Repair and Maintenance of Vehicles,02/02/2021,3830762-24894,695.89,VERSALIFT DISTRIBUTORS (UK) LTD.
Adult and Health Services,Head of Adults,Supplies and Services,338089,Services,02/02/2021,3830550-6619,975.00,EDGE TRAINING & CONSULTANCY LTD.
"Regeneration, Economy and Growth",Corporate Property and Land,Premises,145052,Cleaning and Domestic Supplies,02/02/2021,3830510-CC129527,908.44,CITY CLEAN NORTHERN LTD.
Neighbourhoods and Climate Change,Technical Services CM0300,Supplies and Services,336005,Advertising E336,03/02/2021,3831000-35486955,671.76,NEWSQUEST (YORKSHIRE & NORTH EAST) LTD.
"Regeneration, Economy and Growth",Business Durham CL0850,Supplies and Services,336005,Advertising E336,03/02/2021,3830814-555,"4,570.00",BETTER BRAND AGENCY LTD.
Children and Young Peoples Services,Head of Childrens Social Care,Employees,080025,Agency Staff,03/02/2021,3830901-2445727,"165,739.51",GEOMETRIC RESULTS INTERNATIONAL.
Neighbourhoods and Climate Change,Technical Services CM0300,Other expenses A914,914002,Capital - Advertisments,03/02/2021,3831000-35680737,779.98,NEWSQUEST (YORKSHIRE & NORTH EAST) LTD.
Neighbourhoods and Climate Change,Technical Services CM0300,Other expenses A914,914002,Capital - Advertisments,03/02/2021,3831000-35809848,"1,011.05",NEWSQUEST (YORKSHIRE & NORTH EAST) LTD.
Neighbourhoods and Climate Change,Technical Services CM0300,Fees,901004,Capital - Detailed Design,03/02/2021,3831037-168735,"1,612.00",PREMIER TRAFFIC MANAGEMENT LTD.
Neighbourhoods and Climate Change,Technical Services CM0300,Construction work A908,908109,Capital - Resurfacing,03/02/2021,3831000-35554889,618.44,NEWSQUEST (YORKSHIRE & NORTH EAST) LTD.
Resources BK0010,Strategy,Supplies and Services,342051,Computers and Communications,03/02/2021,3830881-UK-SIN023930,"9,850.00",ESRI (UK) LTD.
Resources BK0010,Digital and Customer Services,Supplies and Services,342051,Computers and Communications,03/02/2021,3831017-1793429,893.60,ORACLE CORPORATION UK LTD.
Resources BK0010,Digital and Customer Services,Supplies and Services,342051,Computers and Communications,03/02/2021,3831017-1793438,"26,128.09",ORACLE CORPORATION UK LTD.
Resources BK0010,Digital and Customer Services,Supplies and Services,342051,Computers and Communications,03/02/2021,3831017-1793439,"2,246.13",ORACLE CORPORATION UK LTD.
Neighbourhoods and Climate Change,Technical Services CM0300,Supplies and Services,352001,Conference Expenses,03/02/2021,3831079-28513,"1,740.00",SYMMONS MADGE ASSOCIATES LTD.
"Regeneration, Economy and Growth",Development and Housing,Construction work A908,908105,Construction work,03/02/2021,3831046-29THJANUARY2021,"1,500.00",RNJ PARTNERSHIP LLP.
Children and Young Peoples Services,Head of Education and Skills,Construction work A908,908105,Construction work,03/02/2021,3830877-S0050409,"3,874.58",ENERGY ASSETS LTD.
"Regeneration, Economy and Growth",Culture Sport and Tourism,Construction work A908,908105,Construction work,03/02/2021,3830796-7891,"29,070.55",ALLIANCE LEISURE SERVICES LTD.
"Regeneration, Economy and Growth",Culture Sport and Tourism,Construction work A908,908105,Construction work,03/02/2021,3831007-0072,"7,720.00",NORTH EXHIBITION SERVICES LTD.
Neighbourhoods and Climate Change,Environmental Services,Construction work A908,908105,Construction work,03/02/2021,3831096-8658,600.00,TREES PLEASE LTD.
Neighbourhoods and Climate Change,Environmental Services,Supplies and Services,338027,Services,03/02/2021,3831066-0000862761,"2,729.20",SOCOTEC UK LTD.
Neighbourhoods and Climate Change,Environmental Services,Supplies and Services,338027,Services,03/02/2021,3831066-0000861795,"3,200.00",SOCOTEC UK LTD.
Neighbourhoods and Climate Change,Environmental Services,Fees,901002,Professional services,03/02/2021,3830807-21002227,"16,775.00",ATKINS GLOBAL.
Children and Young Peoples Services,Head of Education and Skills,Transport,230034,Contract Hire,03/02/2021,3830941-2000,"1,843.00",JDS PRIVATE HIRE DURHAM.
Children and Young Peoples Services,Head of Education and Skills,Transport,230034,Contract Hire,03/02/2021,3830983-154,"1,074.00",MR JOHN ALLINSON T/A AALPHA TAXIS.
Children and Young Peoples Services,Head of Education and Skills,Transport,230035,Contract Hire,03/02/2021,3830983-155,658.30,MR JOHN ALLINSON T/A AALPHA TAXIS.
Children and Young Peoples Services,Head of Education and Skills,Transport,230007,Contract Hire,03/02/2021,3831055-SKS2021-048,700.00,SAMUEL KINGS SCHOOL.
Children and Young Peoples Services,Head of Education and Skills,Transport,230007,Contract Hire,03/02/2021,3830815-INV-419,541.50,BILL SCOTT TAXIS LTD.
Children and Young Peoples Services,Head of Education and Skills,Transport,230007,Contract Hire,03/02/2021,3830798-DCC071,"1,029.61",ALSTON ROAD GARAGE.
Children and Young Peoples Services,Head of Education and Skills,Transport,230007,Contract Hire,03/02/2021,3831072-00750,"1,187.20",STEPHEN VALLANCE T/A SELECT CABS.
Children and Young Peoples Services,Head of Education and Skills,Transport,230007,Contract Hire,03/02/2021,3830983-152,"1,376.40",MR JOHN ALLINSON T/A AALPHA TAXIS.
Children and Young Peoples Services,Head of Education and Skills,Transport,230003,Contract Hire,03/02/2021,3831069-88894,"3,352.50",STANLEY TRAVEL (NORTH EAST) LTD.
Children and Young Peoples Services,Head of Education and Skills,Transport,230003,Contract Hire,03/02/2021,3831069-55589,"1,687.50",STANLEY TRAVEL (NORTH EAST) LTD.
Children and Young Peoples Services,Head of Education and Skills,Transport,230009,Contract Hire,03/02/2021,3830809-290121,"1,867.48",AVALON TAXIS.
Children and Young Peoples Services,Head of Education and Skills,Transport,230009,Contract Hire,03/02/2021,3830941-2004,671.00,JDS PRIVATE HIRE DURHAM.
Children and Young Peoples Services,Head of Education and Skills,Transport,230004,Contract Hire,03/02/2021,3830815-INV-420,532.00,BILL SCOTT TAXIS LTD.
Children and Young Peoples Services,Head of Education and Skills,Transport,230006,Contract Hire,03/02/2021,3831029-F789/JAN,"1,618.00",PETER`S TAXIS.
Children and Young Peoples Services,Head of Education and Skills,Transport,230006,Contract Hire,03/02/2021,3831071-10-F766,"1,018.00",STEELYS TAXIS.
Children and Young Peoples Services,Head of Education and Skills,Transport,230006,Contract Hire,03/02/2021,3831062-210110,585.00,SHOTTON PRIVATE HIRE.
Children and Young Peoples Services,Head of Education and Skills,Transport,230006,Contract Hire,03/02/2021,3830809-29121,"1,501.95",AVALON TAXIS.
Children and Young Peoples Services,Head of Education and Skills,Transport,230006,Contract Hire,03/02/2021,3831042-0005,"1,311.00",RAYMOND CHURNSIDE T/A S & L TAXI.
Children and Young Peoples Services,Head of Education and Skills,Transport,230006,Contract Hire,03/02/2021,3830983-153,888.00,MR JOHN ALLINSON T/A AALPHA TAXIS.
Children and Young Peoples Services,Head of Education and Skills,Transport,230006,Contract Hire,03/02/2021,3830983-156,566.70,MR JOHN ALLINSON T/A AALPHA TAXIS.
Children and Young Peoples Services,Head of Education and Skills,Transport,230006,Contract Hire,03/02/2021,3830800-13,"1,588.80",ANDREW ROBSON`S TAXI.
Children and Young Peoples Services,Head of Education and Skills,Transport,230010,Contract Hire,03/02/2021,3830960-4290-JULY,555.49,LINCAB TAXIS.
Children and Young Peoples Services,Head of Education and Skills,Transport,230010,Contract Hire,03/02/2021,3830960-4290-JUNE,940.06,LINCAB TAXIS.
Children and Young Peoples Services,Head of Education and Skills,Transport,230010,Contract Hire,03/02/2021,3830960-4290-MAY,598.22,LINCAB TAXIS.
Children and Young Peoples Services,Head of Education and Skills,Transport,230010,Contract Hire,03/02/2021,3831073-20200009,984.38,STEVE`S CABS (TAXIS).
Children and Young Peoples Services,Head of Education and Skills,Transport,230010,Contract Hire,03/02/2021,3830974-291,757.95,MICKS TAXIS - MURTON.
Children and Young Peoples Services,Head of Education and Skills,Transport,230008,Contract Hire,03/02/2021,3830837-N115-CB0121,"1,496.25",CJ`S EXECUTIVE TRAVEL LTD.
Children and Young Peoples Services,Head of Education and Skills,Transport,230008,Contract Hire,03/02/2021,3830837-M011-AA0121,"1,375.98",CJ`S EXECUTIVE TRAVEL LTD.
Children and Young Peoples Services,Head of Education and Skills,Transport,230008,Contract Hire,03/02/2021,3831051-W042/09-MAY,"1,237.50",S & S TRAVEL LTD.
Children and Young Peoples Services,Head of Education and Skills,Transport,230008,Contract Hire,03/02/2021,3831051-S017/43-MAY,"1,334.70",S & S TRAVEL LTD.
Children and Young Peoples Services,Head of Education and Skills,Transport,230008,Contract Hire,03/02/2021,3830960-4289-APRIL,"1,457.82",LINCAB TAXIS.
Children and Young Peoples Services,Head of Education and Skills,Transport,230008,Contract Hire,03/02/2021,3830960-4293-APRIL,809.46,LINCAB TAXIS.
Children and Young Peoples Services,Head of Education and Skills,Transport,230008,Contract Hire,03/02/2021,3830960-4289-JULY,"1,457.82",LINCAB TAXIS.
Children and Young Peoples Services,Head of Education and Skills,Transport,230008,Contract Hire,03/02/2021,3830960-4289-JUNE,"2,467.08",LINCAB TAXIS.
Children and Young Peoples Services,Head of Education and Skills,Transport,230008,Contract Hire,03/02/2021,3830960-4293-JULY,637.78,LINCAB TAXIS.
Children and Young Peoples Services,Head of Education and Skills,Transport,230008,Contract Hire,03/02/2021,3830960-4293-JUNE,"1,079.32",LINCAB TAXIS.
Children and Young Peoples Services,Head of Education and Skills,Transport,230008,Contract Hire,03/02/2021,3830820-8026-202,"1,721.96",BOBBY DOVE PRIVATE HIRE.
Children and Young Peoples Services,Head of Education and Skills,Transport,230008,Contract Hire,03/02/2021,3830960-4289-MAY,"1,569.96",LINCAB TAXIS.
Children and Young Peoples Services,Head of Education and Skills,Transport,230008,Contract Hire,03/02/2021,3830960-4293-MAY,686.84,LINCAB TAXIS.
Children and Young Peoples Services,Head of Education and Skills,Transport,230008,Contract Hire,03/02/2021,3830985-25A-N031,"1,177.43",MR RAYMOND RENWICK T/A RAY`S TAXIS & MINIBUSES.
Children and Young Peoples Services,Head of Education and Skills,Transport,230008,Contract Hire,03/02/2021,3830838-INV-052,855.00,CLARE LYNSEY STEWART T/A K&C TAXIS.
Children and Young Peoples Services,Head of Education and Skills,Transport,230008,Contract Hire,03/02/2021,3831051-W076/09,"1,755.60",S & S TRAVEL LTD.
Children and Young Peoples Services,Head of Education and Skills,Transport,230008,Contract Hire,03/02/2021,3831062-2101201,"1,676.25",SHOTTON PRIVATE HIRE.
Children and Young Peoples Services,Head of Education and Skills,Transport,230008,Contract Hire,03/02/2021,3831097-16-N088,"1,620.84",TRIDENT TAXIS.
Children and Young Peoples Services,Head of Education and Skills,Transport,230008,Contract Hire,03/02/2021,3831097-15-W064,"1,907.28",TRIDENT TAXIS.
Children and Young Peoples Services,Head of Education and Skills,Transport,230008,Contract Hire,03/02/2021,3830898-102012,565.50,G & P JOHNSON LTD T/A NIGHTINGALE COACHES.
Children and Young Peoples Services,Head of Education and Skills,Transport,230008,Contract Hire,03/02/2021,3830941-2016-2,"1,212.00",JDS PRIVATE HIRE DURHAM.
Children and Young Peoples Services,Head of Education and Skills,Transport,230008,Contract Hire,03/02/2021,3830973-INV201,"1,026.00",MICHAEL COBB T/A HAIL TAXIS.
Children and Young Peoples Services,Head of Education and Skills,Transport,230008,Contract Hire,03/02/2021,3830792-01/21,598.50,ADVANCE TRAVEL.
Children and Young Peoples Services,Head of Education and Skills,Transport,230008,Contract Hire,03/02/2021,3830792-02/21,684.00,ADVANCE TRAVEL.
Children and Young Peoples Services,Head of Education and Skills,Transport,230008,Contract Hire,03/02/2021,3831031-39557,"1,915.00",PHOENIX TAXIS T/A PRATT`S TAXIS.
Children and Young Peoples Services,Head of Education and Skills,Transport,230008,Contract Hire,03/02/2021,3830941-2005,"2,659.00",JDS PRIVATE HIRE DURHAM.
Children and Young Peoples Services,Head of Education and Skills,Transport,230008,Contract Hire,03/02/2021,3830941-2017,761.71,JDS PRIVATE HIRE DURHAM.
Children and Young Peoples Services,Head of Education and Skills,Transport,230008,Contract Hire,03/02/2021,3830941-2013,"1,509.52",JDS PRIVATE HIRE DURHAM.
Children and Young Peoples Services,Head of Education and Skills,Transport,230008,Contract Hire,03/02/2021,3830941-2014,691.03,JDS PRIVATE HIRE DURHAM.
Children and Young Peoples Services,Head of Education and Skills,Transport,230008,Contract Hire,03/02/2021,3830941-2015,"1,509.89",JDS PRIVATE HIRE DURHAM.
Children and Young Peoples Services,Head of Education and Skills,Transport,230008,Contract Hire,03/02/2021,3830941-2018,562.40,JDS PRIVATE HIRE DURHAM.
Children and Young Peoples Services,Head of Education and Skills,Transport,230008,Contract Hire,03/02/2021,3830941-2019,699.20,JDS PRIVATE HIRE DURHAM.
Children and Young Peoples Services,Head of Education and Skills,Transport,230008,Contract Hire,03/02/2021,3830985-2413,"1,455.05",MR RAYMOND RENWICK T/A RAY`S TAXIS & MINIBUSES.
Children and Young Peoples Services,Head of Education and Skills,Transport,230008,Contract Hire,03/02/2021,3830919-719,"1,790.00",HEPWORTHS TRAVEL.
Children and Young Peoples Services,Head of Education and Skills,Transport,230008,Contract Hire,03/02/2021,3830989-023,"1,287.44",MRS SAMANTHA MACKENZIE T/A SAM`S TAXIS.
Children and Young Peoples Services,Head of Education and Skills,Transport,230008,Contract Hire,03/02/2021,3830989-022,"1,068.75",MRS SAMANTHA MACKENZIE T/A SAM`S TAXIS.
Children and Young Peoples Services,Head of Education and Skills,Transport,230008,Contract Hire,03/02/2021,3831038-WH8,"1,113.75",PRESTYS HACKNEY & PRIVATE HIRE TAXIS.
Neighbourhoods and Climate Change,Environmental Services,Third Party Payments,430113,Rendered by Private Contractors,03/02/2021,3831063-172070,"4,613.35",SHOWSEC INTERNATIONAL LTD.
Neighbourhoods and Climate Change,Technical Services CM0300,Third Party Payments,430128,Rendered by Private Contractors,03/02/2021,3831099-034000,"1,170.00",TUC PLANT HIRE LTD.
Neighbourhoods and Climate Change,Technical Services CM0300,Third Party Payments,430128,Rendered by Private Contractors,03/02/2021,3830896-2619,"1,781.00",FORSTER HALL & SONS.
"Regeneration, Economy and Growth",Transport and Contracted Services,Supplies and Services,384899,Miscellaneous Expenses,03/02/2021,3830855-3863897,"5,000.00",DARLINGTON BOROUGH COUNCIL.
Neighbourhoods and Climate Change,Partnerships & Community Engagement Div.,Cap Exp on Grants & Other Financial Assistance (REFCUS),918004,Contributions to other bodies 918004,03/02/2021,3830833-VOUCHER20NB-CHES022,"3,234.00",CHESTER LE ST RIVERSIDE BAND T/A NASUWT RIVERSIDE BAND.
Neighbourhoods and Climate Change,Partnerships & Community Engagement Div.,Cap Exp on Grants & Other Financial Assistance (REFCUS),918004,Contributions to other bodies 918004,03/02/2021,3830890-VOUCHER20NB-4TOG007,"2,551.20",FERRYHILL LADDER CENTRE LTD.
Neighbourhoods and Climate Change,Partnerships & Community Engagement Div.,Cap Exp on Grants & Other Financial Assistance (REFCUS),918004,Contributions to other bodies 918004,03/02/2021,3830924-VOUCHER20NB-EDUR048,"6,840.00",HOLY TRINITY PARISH CHURCH.
Neighbourhoods and Climate Change,Partnerships & Community Engagement Div.,Cap Exp on Grants & Other Financial Assistance (REFCUS),918004,Contributions to other bodies 918004,03/02/2021,3830991-VOUCHER20NB-EDUR051,"3,240.00",MURTON PARISH COUNCIL.
Neighbourhoods and Climate Change,Partnerships & Community Engagement Div.,Cap Exp on Grants & Other Financial Assistance (REFCUS),918004,Contributions to other bodies 918004,03/02/2021,3831058-VOUCHER20NB-EDUR036,"1,965.00",SEATON COMMUNITY CENTRE.
Neighbourhoods and Climate Change,Partnerships & Community Engagement Div.,Cap Exp on Grants & Other Financial Assistance (REFCUS),918004,Contributions to other bodies 918004,03/02/2021,3831061-VOUCHER20NB-EDUR041,"5,000.00",SHOTTON COLLIERY & DISTRICT ANGLING CLUB.
Neighbourhoods and Climate Change,Partnerships & Community Engagement Div.,Cap Exp on Grants & Other Financial Assistance (REFCUS),918004,Contributions to other bodies 918004,03/02/2021,3831077-VOUCHER19NB-CHES048,"1,280.00",SUSTRANS.
Neighbourhoods and Climate Change,Partnerships & Community Engagement Div.,Cap Exp on Grants & Other Financial Assistance (REFCUS),918004,Contributions to other bodies 918004,03/02/2021,3831091-VOUCHER20NB-EDUR047,"21,000.00",THORNLEY PARISH COUNCIL.
Neighbourhoods and Climate Change,Partnerships & Community Engagement Div.,Cap Exp on Grants & Other Financial Assistance (REFCUS),918004,Contributions to other bodies 918004,03/02/2021,3831116-VOUCHER20NB-STAN009,"2,510.00",WHITE LE HEAD BOWLS CLUB.
Resources BK0010,Legal & Democratic Services,Supplies and Services,338103,Services,03/02/2021,3830999-3010016230,"12,835.55",NEWCASTLE UPON TYNE HOSPITALS NHS FOUNDATION TRUST.
Resources BK0010,Legal & Democratic Services,Supplies and Services,338101,Services,03/02/2021,3830860-CAB/012/2020/JC,"4,950.00",DR CLIVE BLOXHAM.
Resources BK0010,Legal & Democratic Services,Supplies and Services,338101,Services,03/02/2021,3831009-23889,612.50,NORTHGENE LTD.
Resources BK0010,Legal & Democratic Services,Supplies and Services,338105,Services,03/02/2021,3830861-JRB012021JC,699.00,DR JENNIFER BOLTON.
Adult and Health Services,Head of Adults,Third Party Payments,473101,Purchase of Care,03/02/2021,3831026-49564,"6,379.94",PERCY HEDLEY FOUNDATION.
Adult and Health Services,Head of Adults,Third Party Payments,473101,Purchase of Care,03/02/2021,3831026-49565,"6,118.25",PERCY HEDLEY FOUNDATION.
Adult and Health Services,Head of Adults,Third Party Payments,473101,Purchase of Care,03/02/2021,3831026-49587,"6,379.94",PERCY HEDLEY FOUNDATION.
Adult and Health Services,Head of Adults,Third Party Payments,473101,Purchase of Care,03/02/2021,3831026-49588,"6,118.25",PERCY HEDLEY FOUNDATION.
Neighbourhoods and Climate Change,Environmental Services,Transport,215005,Running Costs of Vehicles,03/02/2021,3831013-700366,"2,254.81",OIL NRG LTD.
Neighbourhoods and Climate Change,Environmental Services,Transport,215005,Running Costs of Vehicles,03/02/2021,3831013-700375,"3,289.65",OIL NRG LTD.
Neighbourhoods and Climate Change,Environmental Services,Transport,215005,Running Costs of Vehicles,03/02/2021,3831013-700378,"7,486.94",OIL NRG LTD.
Neighbourhoods and Climate Change,Environmental Services,Transport,215005,Running Costs of Vehicles,03/02/2021,3831013-701567,"16,629.97",OIL NRG LTD.
Neighbourhoods and Climate Change,Environmental Services,Transport,215005,Running Costs of Vehicles,03/02/2021,3831013-699846,"14,886.40",OIL NRG LTD.
Neighbourhoods and Climate Change,Environmental Services,Transport,215005,Running Costs of Vehicles,03/02/2021,3831013-699854,"5,621.21",OIL NRG LTD.
Neighbourhoods and Climate Change,Environmental Services,Transport,215005,Running Costs of Vehicles,03/02/2021,3831013-699868,"2,374.53",OIL NRG LTD.
"Regeneration, Economy and Growth",Corporate Property and Land,Supplies and Services,304221,Equipment and Materials,03/02/2021,3830949-0108/00274228,"1,137.72",JT DOVE LTD.
Neighbourhoods and Climate Change,Technical Services CM0300,Supplies and Services,304221,Equipment and Materials,03/02/2021,3831080-9042947186,635.25,TARMAC TRADING LTD.
Neighbourhoods and Climate Change,Technical Services CM0300,Supplies and Services,304221,Equipment and Materials,03/02/2021,3831128-145386363,"11,293.56",ZG LIGHTING (UK) LTD.
Neighbourhoods and Climate Change,Environmental Services,Supplies and Services,304221,Equipment and Materials,03/02/2021,3830880-6881028,"3,425.00",ESE WORLD LTD.
Neighbourhoods and Climate Change,Environmental Services,Supplies and Services,304221,Equipment and Materials,03/02/2021,3830917-SI-6491,"1,460.95",HARELAW SAWMILL LTD.
"Regeneration, Economy and Growth",Corporate Property and Land,Supplies and Services,304221,Equipment and Materials,03/02/2021,3830912-7466A,"1,824.00",GROVE REED JOINERY LTD.
"Regeneration, Economy and Growth",Corporate Property and Land,Supplies and Services,304221,Equipment and Materials,03/02/2021,3830912-7471A,"2,008.24",GROVE REED JOINERY LTD.
Neighbourhoods and Climate Change,Technical Services CM0300,Supplies and Services,304221,Equipment and Materials,03/02/2021,3830992-12674,561.25,N1 JETTING SYSTEMS LTD.
Neighbourhoods and Climate Change,Technical Services CM0300,Supplies and Services,304221,Equipment and Materials,03/02/2021,3831075-11903,516.64,STONEGRAVE AGGREGATES LTD.
Neighbourhoods and Climate Change,Technical Services CM0300,Supplies and Services,304221,Equipment and Materials,03/02/2021,3831075-11957,975.20,STONEGRAVE AGGREGATES LTD.
"Regeneration, Economy and Growth",Culture Sport and Tourism,Supplies and Services,304252,Equipment and Materials,03/02/2021,3830788-90143350,"3,930.67",ABACUS LIGHTING LTD.
"Regeneration, Economy and Growth",Culture Sport and Tourism,Supplies and Services,304252,Equipment and Materials,03/02/2021,3830788-90143361,"2,022.27",ABACUS LIGHTING LTD.
"Regeneration, Economy and Growth",Culture Sport and Tourism,Supplies and Services,304252,Equipment and Materials,03/02/2021,3830788-90143349,"2,590.94",ABACUS LIGHTING LTD.
Children and Young Peoples Services,Head of Early Help Inclusion & Vulnerable Children.,Supplies and Services,308011,Furniture,03/02/2021,3831015-0000169215,537.07,ONLINE ERGONOMICS LTD.
Neighbourhoods and Climate Change,Environmental Services,Transport,215022,Running Costs of Vehicles,03/02/2021,3831013-700372,"1,332.69",OIL NRG LTD.
Neighbourhoods and Climate Change,Environmental Services,Transport,215022,Running Costs of Vehicles,03/02/2021,3831013-699852,967.60,OIL NRG LTD.
Resources - C A C,Non Distributed Costs,Supplies and Services,338059,Services,03/02/2021,3830900-P0043080,540.00,GEL LTD T/A HEALTHWORK.
Adult and Health Services,Commissioning inc Supporting People,Third Party Payments,442002,Supporting People E442,03/02/2021,3830864-CCG/DCC2020/004,"14,395.50",DURHAM DEAFENED SUPPORT.
Dedicated Schools Grant BG0015,DSG High Needs Block,Third Party Payments,425005,Rendered by Voluntary Organisations,03/02/2021,3831026-48275,"34,317.68",PERCY HEDLEY FOUNDATION.
Dedicated Schools Grant BG0015,DSG High Needs Block,Third Party Payments,425005,Rendered by Voluntary Organisations,03/02/2021,3831026-48277,"51,427.30",PERCY HEDLEY FOUNDATION.
Dedicated Schools Grant BG0015,DSG High Needs Block,Third Party Payments,425005,Rendered by Voluntary Organisations,03/02/2021,3831026-48281,"1,638.93",PERCY HEDLEY FOUNDATION.
Dedicated Schools Grant BG0015,DSG High Needs Block,Third Party Payments,425005,Rendered by Voluntary Organisations,03/02/2021,3831026-48506,"13,960.55",PERCY HEDLEY FOUNDATION.
Dedicated Schools Grant BG0015,DSG High Needs Block,Third Party Payments,425005,Rendered by Voluntary Organisations,03/02/2021,3831026-48508,"21,761.45",PERCY HEDLEY FOUNDATION.
Dedicated Schools Grant BG0015,DSG High Needs Block,Third Party Payments,425005,Rendered by Voluntary Organisations,03/02/2021,3831026-48510,"12,110.24",PERCY HEDLEY FOUNDATION.
Dedicated Schools Grant BG0015,DSG High Needs Block,Third Party Payments,425005,Rendered by Voluntary Organisations,03/02/2021,3831026-48512,"22,367.56",PERCY HEDLEY FOUNDATION.
Dedicated Schools Grant BG0015,DSG High Needs Block,Third Party Payments,425005,Rendered by Voluntary Organisations,03/02/2021,3831026-48515,"12,782.45",PERCY HEDLEY FOUNDATION.
Dedicated Schools Grant BG0015,DSG High Needs Block,Third Party Payments,425005,Rendered by Voluntary Organisations,03/02/2021,3831026-48518,"64,584.54",PERCY HEDLEY FOUNDATION.
"Regeneration, Economy and Growth",Transport and Contracted Services,Supplies and Services,384540,Miscellaneous Expenses,03/02/2021,3830910-INV-0402,"1,352.50",GRM MAPPING LTD.
"Regeneration, Economy and Growth",Development and Housing,Supplies and Services,338045,Services,03/02/2021,3831123-3527488,"2,096.90",WOMBLE BOND DICKINSON (UK) LLP.
Neighbourhoods and Climate Change,Community Protection,Supplies and Services,338045,Services,03/02/2021,3830987-115773,500.00,REDACTED - PAYMENT TO INDIVIDUAL
Resources BK0010,Finance & Transactional Services,Supplies and Services,338045,Services,03/02/2021,3830907-865895,"3,150.00",GREENHALGH KERR.
Resources BK0010,Finance & Transactional Services,Supplies and Services,338045,Services,03/02/2021,3830907-872301,"2,600.00",GREENHALGH KERR.
"Regeneration, Economy and Growth",Corporate Property and Land,Supplies and Services,338045,Services,03/02/2021,315708-471603,"1,000.00",REDACTED - PAYMENT TO INDIVIDUAL
Neighbourhoods and Climate Change,Partnerships & Community Engagement Div.,Supplies and Services,384086,Miscellaneous Expenses,03/02/2021,3830911-VOUCHER20NB-EDUR039,"17,070.00",GROUNDWORK NORTH EAST.
Neighbourhoods and Climate Change,Partnerships & Community Engagement Div.,Supplies and Services,384086,Miscellaneous Expenses,03/02/2021,3831057-VOUCHER20NB-EDUR049,"2,000.00",SEAHAM EASTLEA & DISTRICT COMMUNITY ASSOCIATION.
Children and Young Peoples Services,Head of Education and Skills,Supplies and Services,384985,Miscellaneous Expenses,03/02/2021,3830871-AWPU-CJ-12-2020-003,"21,979.60",EDEN LEARNING TRUST T/A WOODHAM ACADEMY.
Resources BK0010,Digital and Customer Services,Supplies and Services,344014,Telephones,03/02/2021,3831113-OW17129,707.00,VODAFONE LTD.
Resources BK0010,Digital and Customer Services,Supplies and Services,344014,Telephones,03/02/2021,3831113-OW90237,917.00,VODAFONE LTD.
Resources BK0010,Digital and Customer Services,Supplies and Services,344014,Telephones,03/02/2021,3831113-OX00837,917.00,VODAFONE LTD.
Resources BK0010,Digital and Customer Services,Supplies and Services,304303,Equipment and Materials,03/02/2021,3830933-SI-025008,"1,539.83",INFORMATION & DATA NETWORK SUPPLIES LTD (IDN).
Resources BK0010,Digital and Customer Services,Supplies and Services,304303,Equipment and Materials,03/02/2021,3830933-SI-025009,"1,539.83",INFORMATION & DATA NETWORK SUPPLIES LTD (IDN).
Resources BK0010,Digital and Customer Services,Supplies and Services,304303,Equipment and Materials,03/02/2021,3830933-SI-025011,"1,539.83",INFORMATION & DATA NETWORK SUPPLIES LTD (IDN).
Resources BK0010,Digital and Customer Services,Supplies and Services,304303,Equipment and Materials,03/02/2021,3830933-SI-025159,"1,539.83",INFORMATION & DATA NETWORK SUPPLIES LTD (IDN).
Resources BK0010,Digital and Customer Services,Supplies and Services,304303,Equipment and Materials,03/02/2021,3830933-SI-025162,"3,079.66",INFORMATION & DATA NETWORK SUPPLIES LTD (IDN).
Resources BK0010,Digital and Customer Services,Supplies and Services,304303,Equipment and Materials,03/02/2021,3830933-SI-025165,"1,539.83",INFORMATION & DATA NETWORK SUPPLIES LTD (IDN).
"Regeneration, Economy and Growth",Culture Sport and Tourism,Supplies and Services,384199,Miscellaneous Expenses,03/02/2021,3831011-00015137,522.66,NSL LTD.
Neighbourhoods and Climate Change,Environmental Services,Supplies and Services,384199,Miscellaneous Expenses,03/02/2021,3831084-INV-0373,"1,275.00",THE AUTHENTIC SPARK.
Children and Young Peoples Services,Head of Childrens Social Care,Supplies and Services,338099,Services,03/02/2021,3830790-401181,"6,160.00",ADOPTION UK.
Neighbourhoods and Climate Change,Technical Services CM0300,Third Party Payments,430100,Rendered by Private Contractors,03/02/2021,3831080-9042960142,560.38,TARMAC TRADING LTD.
Neighbourhoods and Climate Change,Environmental Services,Third Party Payments,430100,Rendered by Private Contractors,03/02/2021,3830994-139489,"2,227.63",ND BROWN LTD.
"Regeneration, Economy and Growth",Corporate Property and Land,Third Party Payments,430100,Rendered by Private Contractors,03/02/2021,3830897-11497,"1,260.00",FROSTREE LTD.
"Regeneration, Economy and Growth",Corporate Property and Land,Third Party Payments,430100,Rendered by Private Contractors,03/02/2021,3830995-30651,"34,506.00",NE & C WINDOWS & DOORS LTD.
"Regeneration, Economy and Growth",Corporate Property and Land,Third Party Payments,430100,Rendered by Private Contractors,03/02/2021,3831103-16812,"1,077.90",TYNE TEES THERMAL LTD.
Neighbourhoods and Climate Change,Technical Services CM0300,Third Party Payments,430100,Rendered by Private Contractors,03/02/2021,3830804-20253,"35,036.66",ARM PIPETEK LTD.
Neighbourhoods and Climate Change,Technical Services CM0300,Third Party Payments,430100,Rendered by Private Contractors,03/02/2021,3831040-13029,"24,914.26",QUANTUM POWER CONNECTIONS LTD.
"Regeneration, Economy and Growth",Corporate Property and Land,Third Party Payments,430100,Rendered by Private Contractors,03/02/2021,3830843-9229,"7,524.00",COMMERCIAL COVERINGS LTD.
Dedicated Schools Grant BG0015,DSG High Needs Block,Third Party Payments,440080,Other third party payments E440,03/02/2021,3831026-48283,"16,489.98",PERCY HEDLEY FOUNDATION.
Dedicated Schools Grant BG0015,DSG High Needs Block,Third Party Payments,440080,Other third party payments E440,03/02/2021,3831026-48514,"21,171.92",PERCY HEDLEY FOUNDATION.
Children and Young Peoples Services,Head of Education and Skills,Transfer Payments,510051,School Children,03/02/2021,3830791-AWPU-01-2021-013,"7,057.00",ADVANCE LEARNING PARTNERSHIP.
Children and Young Peoples Services,Head of Education and Skills,Transfer Payments,510051,School Children,03/02/2021,3830791-AWPU-01-2021-052,"6,247.00",ADVANCE LEARNING PARTNERSHIP.
Children and Young Peoples Services,Head of Education and Skills,Transfer Payments,510051,School Children,03/02/2021,3830791-AWPU-01-2021-056,"5,038.00",ADVANCE LEARNING PARTNERSHIP.
Children and Young Peoples Services,Head of Education and Skills,Transfer Payments,510051,School Children,03/02/2021,3830817-AWPU-01-2021-062,"2,279.00",BISHOP HOGARTH CATHOLIC EDUCATION TRUST T/A  ST JOHN`S SCHOOL & SIXTH FORM COLLEGE.
Children and Young Peoples Services,Head of Education and Skills,Transfer Payments,510051,School Children,03/02/2021,3830817-AWPU-01-2021-079,"5,621.00",BISHOP HOGARTH CATHOLIC EDUCATION TRUST T/A  ST JOHN`S SCHOOL & SIXTH FORM COLLEGE.
Children and Young Peoples Services,Head of Education and Skills,Transfer Payments,510051,School Children,03/02/2021,3830817-AWPU-01-2021-088,"2,378.00",BISHOP HOGARTH CATHOLIC EDUCATION TRUST T/A  ST JOHN`S SCHOOL & SIXTH FORM COLLEGE.
Children and Young Peoples Services,Head of Education and Skills,Transfer Payments,510051,School Children,03/02/2021,3830817-AWPU-01-2021-089,"2,378.00",BISHOP HOGARTH CATHOLIC EDUCATION TRUST T/A  ST JOHN`S SCHOOL & SIXTH FORM COLLEGE.
Children and Young Peoples Services,Head of Education and Skills,Transfer Payments,510051,School Children,03/02/2021,3830817-AWPU-01-2021-090,"2,316.00",BISHOP HOGARTH CATHOLIC EDUCATION TRUST T/A  ST JOHN`S SCHOOL & SIXTH FORM COLLEGE.
Children and Young Peoples Services,Head of Education and Skills,Transfer Payments,510051,School Children,03/02/2021,3830817-AWPU-01-2021-091,"6,602.00",BISHOP HOGARTH CATHOLIC EDUCATION TRUST T/A  ST JOHN`S SCHOOL & SIXTH FORM COLLEGE.
Children and Young Peoples Services,Head of Education and Skills,Transfer Payments,510051,School Children,03/02/2021,3830817-AWPU-01-2021-092,"5,730.00",BISHOP HOGARTH CATHOLIC EDUCATION TRUST T/A  ST JOHN`S SCHOOL & SIXTH FORM COLLEGE.
Children and Young Peoples Services,Head of Education and Skills,Transfer Payments,510051,School Children,03/02/2021,3830857-AWPU-01-2021-016,"6,995.00",DENE ACADEMY.
Children and Young Peoples Services,Head of Education and Skills,Transfer Payments,510051,School Children,03/02/2021,3830857-AWPU-01-2021-017,"6,495.00",DENE ACADEMY.
Children and Young Peoples Services,Head of Education and Skills,Transfer Payments,510051,School Children,03/02/2021,3830857-AWPU-01-2021-061,"4,579.00",DENE ACADEMY.
Children and Young Peoples Services,Head of Education and Skills,Transfer Payments,510051,School Children,03/02/2021,3830866-AWPU-01-2021-005,"4,427.00",EASINGTON ACADEMY.
Children and Young Peoples Services,Head of Education and Skills,Transfer Payments,510051,School Children,03/02/2021,3830866-AWPU-01-2021-006,"2,378.00",EASINGTON ACADEMY.
Children and Young Peoples Services,Head of Education and Skills,Transfer Payments,510051,School Children,03/02/2021,3830866-AWPU-01-2021-049,"6,288.00",EASINGTON ACADEMY.
Children and Young Peoples Services,Head of Education and Skills,Transfer Payments,510051,School Children,03/02/2021,3830870-AWPU-01-2021-039,"3,920.00",EDEN LEARNING TRUST T/A FERRYHILL BUSINESS & ENTERPRISE COLLEGE.
Children and Young Peoples Services,Head of Education and Skills,Transfer Payments,510051,School Children,03/02/2021,3830871-AWPU-01-2021-072,"6,643.00",EDEN LEARNING TRUST T/A WOODHAM ACADEMY.
Children and Young Peoples Services,Head of Education and Skills,Transfer Payments,510051,School Children,03/02/2021,3830871-AWPU-01-2021-075,"5,916.00",EDEN LEARNING TRUST T/A WOODHAM ACADEMY.
Children and Young Peoples Services,Head of Education and Skills,Transfer Payments,510051,School Children,03/02/2021,3830871-AWPU-01-2021-076,"5,999.00",EDEN LEARNING TRUST T/A WOODHAM ACADEMY.
Children and Young Peoples Services,Head of Education and Skills,Transfer Payments,510051,School Children,03/02/2021,3830885-AWPU-01-2021-020,"2,647.00",EXCEL ACADEMY PARTNERSHIP T/A FRAMWELLGATE SCHOOL DURHAM.
Children and Young Peoples Services,Head of Education and Skills,Transfer Payments,510051,School Children,03/02/2021,3830885-AWPU-01-2021-021,"2,647.00",EXCEL ACADEMY PARTNERSHIP T/A FRAMWELLGATE SCHOOL DURHAM.
Children and Young Peoples Services,Head of Education and Skills,Transfer Payments,510051,School Children,03/02/2021,3830885-AWPU-01-2021-022,"2,647.00",EXCEL ACADEMY PARTNERSHIP T/A FRAMWELLGATE SCHOOL DURHAM.
Children and Young Peoples Services,Head of Education and Skills,Transfer Payments,510051,School Children,03/02/2021,3830953-AWPU-01-2021-048,"6,891.00",KING JAMES I ACADEMY.
Children and Young Peoples Services,Head of Education and Skills,Transfer Payments,510051,School Children,03/02/2021,3830953-AWPU-01-2021-053,"3,825.00",KING JAMES I ACADEMY.
Children and Young Peoples Services,Head of Education and Skills,Transfer Payments,510051,School Children,03/02/2021,3830998-AWPU-01-2021-081,"4,427.00",NEW COLLEGE ACADEMIES TRUST - CONSETT ACADEMY.
Children and Young Peoples Services,Head of Education and Skills,Transfer Payments,510051,School Children,03/02/2021,3831006-AWPU-01-2021-018,"4,427.00",NORTH EAST LEARNING TRUST (NELT).
Children and Young Peoples Services,Head of Education and Skills,Transfer Payments,510051,School Children,03/02/2021,3831006-AWPU-01-2021-035,"5,136.00",NORTH EAST LEARNING TRUST (NELT).
Children and Young Peoples Services,Head of Education and Skills,Transfer Payments,510051,School Children,03/02/2021,3831006-AWPU-01-2021-037,"6,329.00",NORTH EAST LEARNING TRUST (NELT).
Children and Young Peoples Services,Head of Education and Skills,Transfer Payments,510051,School Children,03/02/2021,3831006-AWPU-01-2021-077,"5,875.00",NORTH EAST LEARNING TRUST (NELT).
Children and Young Peoples Services,Head of Education and Skills,Transfer Payments,510051,School Children,03/02/2021,3831006-AWPU-01-2021-082,"5,875.00",NORTH EAST LEARNING TRUST (NELT).
Children and Young Peoples Services,Head of Education and Skills,Transfer Payments,510051,School Children,03/02/2021,3831006-AWPU-01-2021-083,"5,875.00",NORTH EAST LEARNING TRUST (NELT).
Children and Young Peoples Services,Head of Education and Skills,Transfer Payments,510051,School Children,03/02/2021,3831006-AWPU-01-2021-084,"5,771.00",NORTH EAST LEARNING TRUST (NELT).
Children and Young Peoples Services,Head of Education and Skills,Transfer Payments,510051,School Children,03/02/2021,3831006-AWPU-01-2021-086,"3,970.00",NORTH EAST LEARNING TRUST (NELT).
Children and Young Peoples Services,Head of Education and Skills,Transfer Payments,510051,School Children,03/02/2021,3831006-AWPU-01-2021-087,"2,555.00",NORTH EAST LEARNING TRUST (NELT).
Children and Young Peoples Services,Head of Education and Skills,Transfer Payments,510051,School Children,03/02/2021,3831025-AWPU-01-2021-033,"2,647.00",PARK VIEW ACADEMY.
Children and Young Peoples Services,Head of Education and Skills,Transfer Payments,510051,School Children,03/02/2021,3831025-AWPU-01-2021-057,"6,850.00",PARK VIEW ACADEMY.
Children and Young Peoples Services,Head of Education and Skills,Transfer Payments,510051,School Children,03/02/2021,3831025-AWPU-01-2021-060,"6,288.00",PARK VIEW ACADEMY.
Children and Young Peoples Services,Head of Education and Skills,Transfer Payments,510051,School Children,03/02/2021,3831059-AWPU-01-2021-085,"6,288.00",SEDGEFIELD COMMUNITY COLLEGE.
Children and Young Peoples Services,Head of Education and Skills,Transfer Payments,510051,School Children,03/02/2021,3831122-AWPU-01-2021-038,"5,077.00",WOLSINGHAM SCHOOL & COMMUNITY COLLEGE.
Children and Young Peoples Services,Head of Education and Skills,Transfer Payments,510051,School Children,03/02/2021,3831122-AWPU-01-2021-046,"6,288.00",WOLSINGHAM SCHOOL & COMMUNITY COLLEGE.
Children and Young Peoples Services,Head of Education and Skills,Transfer Payments,510051,School Children,03/02/2021,3831122-AWPU-01-2021-047,"6,371.00",WOLSINGHAM SCHOOL & COMMUNITY COLLEGE.
Children and Young Peoples Services,Head of Education and Skills,Transfer Payments,510051,School Children,03/02/2021,3831122-AWPU-01-2021-050,"6,788.00",WOLSINGHAM SCHOOL & COMMUNITY COLLEGE.
Children and Young Peoples Services,Head of Education and Skills,Transfer Payments,510051,School Children,03/02/2021,3831122-AWPU-01-2021-051,"6,226.00",WOLSINGHAM SCHOOL & COMMUNITY COLLEGE.
Children and Young Peoples Services,Head of Education and Skills,Transfer Payments,510051,School Children,03/02/2021,3831122-AWPU-01-2021-074,"3,580.00",WOLSINGHAM SCHOOL & COMMUNITY COLLEGE.
"Regeneration, Economy and Growth",Corporate Property and Land,Supplies and Services,338078,Services,03/02/2021,3831052-13253,"1,075.00",SAFEGUARD SECURITY (NE) LTD.
Adult and Health Services,Head of Adults,Transport,230005,Contract Hire,03/02/2021,3830928-IR2101003,"1,960.00",I & R EXECUTIVE TRAVEL.
Adult and Health Services,Head of Adults,Transport,230005,Contract Hire,03/02/2021,3830928-IR2101004,"1,240.00",I & R EXECUTIVE TRAVEL.
Adult and Health Services,Head of Adults,Transport,230005,Contract Hire,03/02/2021,3831053-ONE14-MAY,522.90,SAFELINE TRAVEL.
Adult and Health Services,Head of Adults,Transport,230005,Contract Hire,03/02/2021,3830930-5-CLS078,512.00,IAN SHEPLEY T/A RIVERSIDE TAXIS.
Adult and Health Services,Head of Adults,Transport,230005,Contract Hire,03/02/2021,3830941-2010,"1,200.00",JDS PRIVATE HIRE DURHAM.
Adult and Health Services,Head of Adults,Transport,230005,Contract Hire,03/02/2021,3830929-384,521.20,IAN CLYDESDALE T/A BURNOPFIELD TAXIS.
Adult and Health Services,Head of Adults,Transport,230005,Contract Hire,03/02/2021,3830989-024,"1,392.00",MRS SAMANTHA MACKENZIE T/A SAM`S TAXIS.
Adult and Health Services,Head of Adults,Transport,230005,Contract Hire,03/02/2021,3831038-GL4,834.00,PRESTYS HACKNEY & PRIVATE HIRE TAXIS.
Neighbourhoods and Climate Change,Environmental Services,Stock A926,926004,Stock,03/02/2021,3830905-SI-00000590,841.41,GRAYS MACHINERY LTD.
Neighbourhoods and Climate Change,Environmental Services,Stock A926,926004,Stock,03/02/2021,3830858-96401331,"2,883.00",DENNIS EAGLE LTD T/A TERBERG MATEC (UK) LTD.
Neighbourhoods and Climate Change,Technical Services CM0300,Stock A926,926900,Stock in hand-Inventory system,03/02/2021,3830949-0104/00253187,624.40,JT DOVE LTD.
Neighbourhoods and Climate Change,Technical Services CM0300,Stock A926,926900,Stock in hand-Inventory system,03/02/2021,3831074-INV206103,599.30,STOCKSIGNS LTD.
Neighbourhoods and Climate Change,Technical Services CM0300,Stock A926,926900,Stock in hand-Inventory system,03/02/2021,3830935-765314,"3,013.70",INSTARMAC GROUP PLC.
Dedicated Schools Grant BG0015,DSG High Needs Block,Supplies and Services,372009,Subscriptions E372,03/02/2021,3831102-69751,683.30,TWINKL EDUCATIONAL PUBLISHING LTD.
"Regeneration, Economy and Growth",Business Durham CL0850,Supplies and Services,372009,Subscriptions E372,03/02/2021,3831004-2480,"1,073.00",NORTH EAST AUTOMOTIVE ALLIANCE.
Adult and Health Services,Head of Adults,Third Party Payments,478151,Purchase of Care,03/02/2021,3831068-INV41628,"1,520.36",ST ANNES COMMUNITY SERVICES.
"Regeneration, Economy and Growth",Corporate Property and Land,Premises,145052,Cleaning and Domestic Supplies,03/02/2021,3830836-CC129595,720.00,CITY CLEAN NORTHERN LTD.
Neighbourhoods and Climate Change,Technical Services CM0300,Supplies and Services,336005,Advertising E336,04/02/2021,3831282-35361389,565.11,NEWSQUEST (YORKSHIRE & NORTH EAST) LTD.
Neighbourhoods and Climate Change,Environmental Services,Transport,215012,Running Costs of Vehicles,04/02/2021,3831172-195552,"1,396.50",CHEVIN FLEET SOLUTIONS LTD.
Neighbourhoods and Climate Change,Technical Services CM0300,Other expenses A914,914002,Capital - Advertisments,04/02/2021,3831282-35377137,670.67,NEWSQUEST (YORKSHIRE & NORTH EAST) LTD.
Neighbourhoods and Climate Change,Technical Services CM0300,Other expenses A914,914002,Capital - Advertisments,04/02/2021,3831282-35377207,"2,378.19",NEWSQUEST (YORKSHIRE & NORTH EAST) LTD.
Neighbourhoods and Climate Change,Technical Services CM0300,Fees,901004,Capital - Detailed Design,04/02/2021,3831282-35439826,671.76,NEWSQUEST (YORKSHIRE & NORTH EAST) LTD.
Neighbourhoods and Climate Change,Technical Services CM0300,Construction work A908,908109,Capital - Resurfacing,04/02/2021,3831282-35423579,"1,071.71",NEWSQUEST (YORKSHIRE & NORTH EAST) LTD.
Children and Young Peoples Services,Head of Early Help Inclusion & Vulnerable Children.,Supplies and Services,324500,Provisions E324,04/02/2021,3831184-23597,"15,724.65",CREATIVE MANAGEMENT SERVICES LTD.
"Regeneration, Economy and Growth",Corporate Property and Land,Premises,145023,Cleaning and Domestic Supplies,04/02/2021,3831250-0108/00266519,"1,261.96",JT DOVE LTD.
"Regeneration, Economy and Growth",Culture Sport and Tourism,Premises,145023,Cleaning and Domestic Supplies,04/02/2021,3831221-06/105937,"1,404.58",GREENHAM TRADING LTD.
Resources BK0010,Digital and Customer Services,Supplies and Services,342033,Computers and Communications,04/02/2021,3831170-103494,"6,237.00",CENTRAL POWER SERVICES LTD (CPS).
Neighbourhoods and Climate Change,Technical Services CM0300,Construction work A908,908105,Construction work,04/02/2021,3831316-IN15951QTDC,"3,753.90",Q-FREE (BRISTOL) UK LTD.
Neighbourhoods and Climate Change,Technical Services CM0300,Construction work A908,908105,Construction work,04/02/2021,3831316-IN15952QTDC,"3,753.90",Q-FREE (BRISTOL) UK LTD.
Children and Young Peoples Services,Head of Education and Skills,Construction work A908,908105,Construction work,04/02/2021,3831311-900910524,"22,847.75",PORTAKABIN LTD.
Children and Young Peoples Services,Head of Education and Skills,Construction work A908,908105,Construction work,04/02/2021,3831381-431,750.00,WHORLTON LAND SURVEYS LTD.
Neighbourhoods and Climate Change,Environmental Services,Fees,901002,Professional services,04/02/2021,3831230-9509,"10,000.00",HOWARTH LITCHFIELD PARTNERSHIP LTD.
Children and Young Peoples Services,Head of Education and Skills,Transport,230034,Contract Hire,04/02/2021,3831269-341,997.50,MICKS TAXIS - MURTON.
Children and Young Peoples Services,Head of Education and Skills,Transport,230007,Contract Hire,04/02/2021,3831279-1JANUARY2021,"1,338.60",NC TAXI`S.
Children and Young Peoples Services,Head of Education and Skills,Transport,230007,Contract Hire,04/02/2021,3831302-4330/JAN,"2,294.20",PETER`S PRIVATE HIRE/PETER BEST.
Children and Young Peoples Services,Head of Education and Skills,Transport,230007,Contract Hire,04/02/2021,3831302-5259/JAN,"2,183.80",PETER`S PRIVATE HIRE/PETER BEST.
Children and Young Peoples Services,Head of Education and Skills,Transport,230007,Contract Hire,04/02/2021,3831351-4055-MAY,"2,025.00",TED WILFORD COACHES.
Children and Young Peoples Services,Head of Education and Skills,Transport,230007,Contract Hire,04/02/2021,3831351-4297-MAY,"2,025.00",TED WILFORD COACHES.
Children and Young Peoples Services,Head of Education and Skills,Transport,230007,Contract Hire,04/02/2021,3831133-0121/SZ,804.00,AABAT TAXIS.
Children and Young Peoples Services,Head of Education and Skills,Transport,230007,Contract Hire,04/02/2021,3831133-0121/SL,"1,018.36",AABAT TAXIS.
Children and Young Peoples Services,Head of Education and Skills,Transport,230007,Contract Hire,04/02/2021,3831299-43-L002,"1,029.75",PETER NAYLOR.
Children and Young Peoples Services,Head of Education and Skills,Transport,230007,Contract Hire,04/02/2021,3831299-42-1237,834.00,PETER NAYLOR.
Children and Young Peoples Services,Head of Education and Skills,Transport,230007,Contract Hire,04/02/2021,3831149-04187,683.52,ATLAS TAXIS CONSETT.
Children and Young Peoples Services,Head of Education and Skills,Transport,230007,Contract Hire,04/02/2021,3831162-90G-2,742.50,BOBS TAXIS.
Children and Young Peoples Services,Head of Education and Skills,Transport,230007,Contract Hire,04/02/2021,3831378-16044,888.75,WEARDALE MOTOR SERVICES LTD.
Children and Young Peoples Services,Head of Education and Skills,Transport,230007,Contract Hire,04/02/2021,3831378-16040,"1,532.25",WEARDALE MOTOR SERVICES LTD.
Children and Young Peoples Services,Head of Education and Skills,Transport,230007,Contract Hire,04/02/2021,3831378-16039,"1,957.50",WEARDALE MOTOR SERVICES LTD.
Children and Young Peoples Services,Head of Education and Skills,Transport,230007,Contract Hire,04/02/2021,3831130-9899,932.40,24X7LTD.
Children and Young Peoples Services,Head of Education and Skills,Transport,230007,Contract Hire,04/02/2021,3831324-1438,"1,730.55",ROBERTS TOURS.
Children and Young Peoples Services,Head of Education and Skills,Transport,230007,Contract Hire,04/02/2021,3831324-1439,"1,369.35",ROBERTS TOURS.
Children and Young Peoples Services,Head of Education and Skills,Transport,230007,Contract Hire,04/02/2021,3831162-90H,"1,440.00",BOBS TAXIS.
Children and Young Peoples Services,Head of Education and Skills,Transport,230007,Contract Hire,04/02/2021,3831162-98G,"1,993.60",BOBS TAXIS.
Children and Young Peoples Services,Head of Education and Skills,Transport,230007,Contract Hire,04/02/2021,3831269-343,589.50,MICKS TAXIS - MURTON.
Children and Young Peoples Services,Head of Education and Skills,Transport,230007,Contract Hire,04/02/2021,3831269-338,707.23,MICKS TAXIS - MURTON.
Children and Young Peoples Services,Head of Education and Skills,Transport,230007,Contract Hire,04/02/2021,3831299-44,"1,185.00",PETER NAYLOR.
Children and Young Peoples Services,Head of Education and Skills,Transport,230003,Contract Hire,04/02/2021,3831329-ROXDCC205,"1,687.50",ROXBYS BUS HIRE.
Children and Young Peoples Services,Head of Education and Skills,Transport,230003,Contract Hire,04/02/2021,3831379-16038,"2,250.00",WEARDALE MOTOR SERVICES LTD.
Children and Young Peoples Services,Head of Education and Skills,Transport,230003,Contract Hire,04/02/2021,3831379-16047,"2,576.25",WEARDALE MOTOR SERVICES LTD.
Dedicated Schools Grant BG0015,DSG High Needs Block,Transport,230009,Contract Hire,04/02/2021,3831149-04191,630.00,ATLAS TAXIS CONSETT.
Dedicated Schools Grant BG0015,DSG High Needs Block,Transport,230009,Contract Hire,04/02/2021,3831149-04193,876.00,ATLAS TAXIS CONSETT.
Children and Young Peoples Services,Head of Education and Skills,Transport,230009,Contract Hire,04/02/2021,3831379-16042,"1,987.95",WEARDALE MOTOR SERVICES LTD.
Children and Young Peoples Services,Head of Education and Skills,Transport,230009,Contract Hire,04/02/2021,3831130-9901,"1,047.60",24X7LTD.
Children and Young Peoples Services,Head of Education and Skills,Transport,230006,Contract Hire,04/02/2021,3831295-F848/JAN,"1,512.00",PAUL WILSON.
Children and Young Peoples Services,Head of Education and Skills,Transport,230006,Contract Hire,04/02/2021,3831133-0121/SA,"2,803.50",AABAT TAXIS.
Children and Young Peoples Services,Head of Education and Skills,Transport,230006,Contract Hire,04/02/2021,3831149-04189,"1,194.00",ATLAS TAXIS CONSETT.
Children and Young Peoples Services,Head of Education and Skills,Transport,230006,Contract Hire,04/02/2021,3831305-35862,751.25,PHOENIX TAXIS T/A PRATT`S TAXIS.
Children and Young Peoples Services,Head of Education and Skills,Transport,230006,Contract Hire,04/02/2021,3831269-342,741.00,MICKS TAXIS - MURTON.
Children and Young Peoples Services,Head of Education and Skills,Transport,230006,Contract Hire,04/02/2021,3831269-339,618.75,MICKS TAXIS - MURTON.
Children and Young Peoples Services,Head of Education and Skills,Transport,230010,Contract Hire,04/02/2021,3831243-2023,"2,041.56",JDS PRIVATE HIRE DURHAM.
Children and Young Peoples Services,Head of Education and Skills,Transport,230010,Contract Hire,04/02/2021,3831269-344,855.00,MICKS TAXIS - MURTON.
Children and Young Peoples Services,Head of Education and Skills,Transport,230012,Contract Hire,04/02/2021,3831360-TS-18/42,654.30,TOP STAR TRAVEL.
Children and Young Peoples Services,Head of Education and Skills,Transport,230012,Contract Hire,04/02/2021,3831243-2012,555.37,JDS PRIVATE HIRE DURHAM.
Children and Young Peoples Services,Head of Education and Skills,Transport,230016,Contract Hire,04/02/2021,3831262-210,692.00,M BUTCHER T/A M & M`S TAXIS.
Children and Young Peoples Services,Head of Education and Skills,Transport,230008,Contract Hire,04/02/2021,3831360-TS-101/09,"1,012.50",TOP STAR TRAVEL.
Children and Young Peoples Services,Head of Education and Skills,Transport,230008,Contract Hire,04/02/2021,3831295-N037/JAN,855.00,PAUL WILSON.
Children and Young Peoples Services,Head of Education and Skills,Transport,230008,Contract Hire,04/02/2021,3831302-E043/JAN,"1,318.50",PETER`S PRIVATE HIRE/PETER BEST.
Children and Young Peoples Services,Head of Education and Skills,Transport,230008,Contract Hire,04/02/2021,3831302-N049/JAN,"2,424.37",PETER`S PRIVATE HIRE/PETER BEST.
Children and Young Peoples Services,Head of Education and Skills,Transport,230008,Contract Hire,04/02/2021,3831302-E007/JAN,530.29,PETER`S PRIVATE HIRE/PETER BEST.
Children and Young Peoples Services,Head of Education and Skills,Transport,230008,Contract Hire,04/02/2021,3831302-E012/JAN,"1,873.78",PETER`S PRIVATE HIRE/PETER BEST.
Children and Young Peoples Services,Head of Education and Skills,Transport,230008,Contract Hire,04/02/2021,3831302-E014/JAN,"3,456.10",PETER`S PRIVATE HIRE/PETER BEST.
Children and Young Peoples Services,Head of Education and Skills,Transport,230008,Contract Hire,04/02/2021,3831302-E035/JAN,"1,634.00",PETER`S PRIVATE HIRE/PETER BEST.
Children and Young Peoples Services,Head of Education and Skills,Transport,230008,Contract Hire,04/02/2021,3831133-0121/SP,"1,231.10",AABAT TAXIS.
Children and Young Peoples Services,Head of Education and Skills,Transport,230008,Contract Hire,04/02/2021,3831164-BZ00359,"1,215.00",BREZ`S TAXIS.
Children and Young Peoples Services,Head of Education and Skills,Transport,230008,Contract Hire,04/02/2021,3831164-BZ00360,"1,013.89",BREZ`S TAXIS.
Children and Young Peoples Services,Head of Education and Skills,Transport,230008,Contract Hire,04/02/2021,3831164-BZ00361,785.70,BREZ`S TAXIS.
Children and Young Peoples Services,Head of Education and Skills,Transport,230008,Contract Hire,04/02/2021,3831243-2020-2,826.50,JDS PRIVATE HIRE DURHAM.
Children and Young Peoples Services,Head of Education and Skills,Transport,230008,Contract Hire,04/02/2021,3831378-16037,"1,561.05",WEARDALE MOTOR SERVICES LTD.
Children and Young Peoples Services,Head of Education and Skills,Transport,230008,Contract Hire,04/02/2021,3831378-16041,"1,587.90",WEARDALE MOTOR SERVICES LTD.
Children and Young Peoples Services,Head of Education and Skills,Transport,230008,Contract Hire,04/02/2021,3831379-16043,"2,036.25",WEARDALE MOTOR SERVICES LTD.
Children and Young Peoples Services,Head of Education and Skills,Transport,230008,Contract Hire,04/02/2021,3831379-16045,"2,070.00",WEARDALE MOTOR SERVICES LTD.
Children and Young Peoples Services,Head of Education and Skills,Transport,230008,Contract Hire,04/02/2021,3831130-9902,"1,374.10",24X7LTD.
Children and Young Peoples Services,Head of Education and Skills,Transport,230008,Contract Hire,04/02/2021,3831243-2025,"2,595.60",JDS PRIVATE HIRE DURHAM.
Children and Young Peoples Services,Head of Education and Skills,Transport,230008,Contract Hire,04/02/2021,3831243-2026,"1,901.75",JDS PRIVATE HIRE DURHAM.
Children and Young Peoples Services,Head of Education and Skills,Transport,230008,Contract Hire,04/02/2021,3831243-2021,"2,305.53",JDS PRIVATE HIRE DURHAM.
Children and Young Peoples Services,Head of Education and Skills,Transport,230008,Contract Hire,04/02/2021,3831243-2022,"1,242.00",JDS PRIVATE HIRE DURHAM.
Children and Young Peoples Services,Head of Education and Skills,Transport,230008,Contract Hire,04/02/2021,3831300-5/20,900.00,PETER TAYLOR T/A PT TAXI.
Children and Young Peoples Services,Head of Education and Skills,Transport,230008,Contract Hire,04/02/2021,3831327-1840,"1,425.00",RON`S TAXIS (FISHBURN).
Children and Young Peoples Services,Head of Education and Skills,Transport,230008,Contract Hire,04/02/2021,3831327-1841,"2,192.98",RON`S TAXIS (FISHBURN).
Children and Young Peoples Services,Head of Education and Skills,Transport,230008,Contract Hire,04/02/2021,3831326-0016,"2,822.50",RONS TAXI (CHESTER LE ST).
Children and Young Peoples Services,Head of Education and Skills,Transport,230008,Contract Hire,04/02/2021,3831262-212,883.50,M BUTCHER T/A M & M`S TAXIS.
Neighbourhoods and Climate Change,Technical Services CM0300,Third Party Payments,460006,Contract Payments,04/02/2021,3831239-INV-20539,660.00,INTEGRATED SKILLS LTD.
Neighbourhoods and Climate Change,Technical Services CM0300,Third Party Payments,430128,Rendered by Private Contractors,04/02/2021,3831252-3577,822.00,KEVIN SNOWDON GROUNDWORKS LTD.
Children and Young Peoples Services,Head of Early Help Inclusion & Vulnerable Children.,Supplies and Services,338025,Services,04/02/2021,3831178-S44995-01972,990.00,CO-OPERATIVE FUNERAL CARE.
Resources BK0010,Legal & Democratic Services,Supplies and Services,338025,Services,04/02/2021,3831198-01/21,520.00,EAST DURHAM FUNERAL SERVICE LTD.
"Regeneration, Economy and Growth",Corporate Property and Land,Supplies and Services,304221,Equipment and Materials,04/02/2021,3831250-0108/00274229,"1,067.75",JT DOVE LTD.
"Regeneration, Economy and Growth",Corporate Property and Land,Supplies and Services,304221,Equipment and Materials,04/02/2021,3831250-0108/00274232,"2,300.80",JT DOVE LTD.
Neighbourhoods and Climate Change,Technical Services CM0300,Supplies and Services,304221,Equipment and Materials,04/02/2021,3831250-0104/00269863,"1,501.80",JT DOVE LTD.
Neighbourhoods and Climate Change,Technical Services CM0300,Supplies and Services,304221,Equipment and Materials,04/02/2021,3831250-0303/00271895,"1,102.80",JT DOVE LTD.
Neighbourhoods and Climate Change,Technical Services CM0300,Supplies and Services,304221,Equipment and Materials,04/02/2021,3831160-BMPR/386/BJW,"1,390.00",BISHOP MIDDLEHAM PLANT & RECYCLING LTD.
Neighbourhoods and Climate Change,Technical Services CM0300,Supplies and Services,304221,Equipment and Materials,04/02/2021,3831276-0000096185,"2,593.02",NAL LTD.
"Regeneration, Economy and Growth",Corporate Property and Land,Supplies and Services,304221,Equipment and Materials,04/02/2021,3831182-SRO19300,520.00,CONSIDERATE CONSTRUCTORS SCHEME.
"Regeneration, Economy and Growth",Corporate Property and Land,Supplies and Services,304221,Equipment and Materials,04/02/2021,3831291-10594-38,"1,128.38",OPUS BUILDING SERVICES LTD.
"Regeneration, Economy and Growth",Corporate Property and Land,Supplies and Services,304221,Equipment and Materials,04/02/2021,3831370-04024761,532.80,UK ELECTRIC LTD.*
Neighbourhoods and Climate Change,Technical Services CM0300,Supplies and Services,304221,Equipment and Materials,04/02/2021,3831315-18524,711.25,PRM FABRICATIONS LTD.
Neighbourhoods and Climate Change,Technical Services CM0300,Supplies and Services,304221,Equipment and Materials,04/02/2021,3831344-32425,550.00,SURVEY OPERATIONS LTD.
Neighbourhoods and Climate Change,Technical Services CM0300,Supplies and Services,304221,Equipment and Materials,04/02/2021,3831359-35674,750.00,TODDS HIGHWAY MAINTENANCE LTD.
Resources BK0010,Legal & Democratic Services,Supplies and Services,338047,Services,04/02/2021,3831135-PSI0152550,"16,900.39",ADARE SEC LTD.
Adult and Health Services,Head of Adults,Supplies and Services,338365,Services,04/02/2021,3831297-401997,777.00,PEART ACCESS RAMPS.*
"Regeneration, Economy and Growth",Transport and Contracted Services,Supplies and Services,304259,Equipment and Materials,04/02/2021,3831367-3IN/10367151,"5,970.00",TUNSTALL HEALTHCARE (UK) LTD.
"Regeneration, Economy and Growth",Culture Sport and Tourism,Supplies and Services,304259,Equipment and Materials,04/02/2021,3831248-100375,570.96,JP LENNARD LTD.
Adult and Health Services,Head of Adults,Supplies and Services,304259,Equipment and Materials,04/02/2021,3831325-145849,793.95,ROMPA LTD.
Children and Young Peoples Services,Head of Education and Skills,Supplies and Services,338035,Services,04/02/2021,3831238-805663664,925.00,INSTITUTE OF LEADERSHIP & MANAGEMENT (ILM).
"Regeneration, Economy and Growth",Transport and Contracted Services,Premises,108099,Service Repairs and Maintenance,04/02/2021,3831225-961538900,"2,641.28",HCL SAFETY LTD.
Resources BK0010,Corporate Finance & Commercial Services,Supplies and Services,338059,Services,04/02/2021,3831217-P0040755,720.00,GEL LTD T/A HEALTHWORK.
Children and Young Peoples Services,Head of Education and Skills,Supplies and Services,338045,Services,04/02/2021,3831382-375636,"1,500.00",WINCKWORTH SHERWOOD LLP.
Children and Young Peoples Services,Head of Education and Skills,Supplies and Services,338045,Services,04/02/2021,3831382-376849,"1,500.00",WINCKWORTH SHERWOOD LLP.
Adult and Health Services,Head of Adults,Supplies and Services,384956,Miscellaneous Expenses,04/02/2021,3831288-20602,"29,176.00",ONETOUCH TELECARE LTD T/A ONETOUCH HEALTHCARE.
"Regeneration, Economy and Growth",Transport and Contracted Services,Supplies and Services,304245,Equipment and Materials,04/02/2021,3831367-3IN/10367085,"1,120.00",TUNSTALL HEALTHCARE (UK) LTD.
"Regeneration, Economy and Growth",Transport and Contracted Services,Supplies and Services,304245,Equipment and Materials,04/02/2021,3831157-DHP0100,607.00,BERNICIA GROUP LTD.*
Resources BK0010,Digital and Customer Services,Supplies and Services,344014,Telephones,04/02/2021,3831375-0X87110,786.00,VODAFONE LTD.
Adult and Health Services,Public Health CC0450,Premises,145009,Cleaning and Domestic Supplies,04/02/2021,3831318-INV-2947,"1,561.80",QUALITY CLEANING SERVICES (NORTHERN) LTD.
Resources BK0010,Digital and Customer Services,Supplies and Services,384199,Miscellaneous Expenses,04/02/2021,3831309-PT10722,"10,600.00",POINT TOPIC LTD.
Resources BK0010,Transformation,Supplies and Services,338099,Services,04/02/2021,3831209-194-032,"1,200.00",FAT MEDIA LTD.
Resources BK0010,Transformation,Supplies and Services,338099,Services,04/02/2021,3831209-194-033,855.00,FAT MEDIA LTD.
Resources BK0010,Business Support,Supplies and Services,338099,Services,04/02/2021,3831140-C47883,"1,423.69",ALLIED PUBLICITY SERVICES (MANCHESTER) LTD.
Children and Young Peoples Services,Head of Education and Skills,Third Party Payments,440999,Other third party payments E440,04/02/2021,3831179-CTA/042,975.00,COMMUNICATORS TRAINING ASSOCIATES LTD.
Adult and Health Services,Head of Adults,Supplies and Services,384616,Miscellaneous Expenses,04/02/2021,3831157-11/2021/MULB,547.68,BERNICIA GROUP LTD.*
"Regeneration, Economy and Growth",Transport and Contracted Services,Third Party Payments,430106,Rendered by Private Contractors,04/02/2021,3831210-PUBLICSERVICE-DEC20/JAN21,"2,786.85",FERRYHILL VILLAGE TRAVEL.
"Regeneration, Economy and Growth",Transport and Contracted Services,Third Party Payments,430106,Rendered by Private Contractors,04/02/2021,3831148-117585,"53,223.94",ARRIVA DURHAM COUNTY LTD.
"Regeneration, Economy and Growth",Transport and Contracted Services,Third Party Payments,430106,Rendered by Private Contractors,04/02/2021,3831148-117699,"33,108.89",ARRIVA DURHAM COUNTY LTD.
"Regeneration, Economy and Growth",Corporate Property and Land,Third Party Payments,430100,Rendered by Private Contractors,04/02/2021,3831291-10594-25,"1,128.38",OPUS BUILDING SERVICES LTD.
"Regeneration, Economy and Growth",Corporate Property and Land,Third Party Payments,430100,Rendered by Private Contractors,04/02/2021,3831291-10594-27,810.01,OPUS BUILDING SERVICES LTD.
"Regeneration, Economy and Growth",Corporate Property and Land,Third Party Payments,430100,Rendered by Private Contractors,04/02/2021,3831291-10594-30,"1,128.38",OPUS BUILDING SERVICES LTD.
"Regeneration, Economy and Growth",Corporate Property and Land,Third Party Payments,430100,Rendered by Private Contractors,04/02/2021,3831291-10594-34,"1,128.38",OPUS BUILDING SERVICES LTD.
"Regeneration, Economy and Growth",Corporate Property and Land,Third Party Payments,430100,Rendered by Private Contractors,04/02/2021,3831291-10594-39,"1,128.38",OPUS BUILDING SERVICES LTD.
Regeneration and Local Services,COVID19 - Regeneration Economy and Growth,Third Party Payments,430100,Rendered by Private Contractors,04/02/2021,3831138-170561,"4,880.00",ALBANY OFFICE EQUIPMENT (WHOLESALE) LTD.
"Regeneration, Economy and Growth",Corporate Property and Land,Third Party Payments,430100,Rendered by Private Contractors,04/02/2021,3831215-11461,"2,165.00",FROSTREE LTD.
"Regeneration, Economy and Growth",Corporate Property and Land,Third Party Payments,430100,Rendered by Private Contractors,04/02/2021,3831236-10170,548.10,INGLEFORD SCAFFOLDING LTD.
"Regeneration, Economy and Growth",Corporate Property and Land,Third Party Payments,430100,Rendered by Private Contractors,04/02/2021,3831236-10399,"4,338.80",INGLEFORD SCAFFOLDING LTD.
"Regeneration, Economy and Growth",Corporate Property and Land,Third Party Payments,430100,Rendered by Private Contractors,04/02/2021,3831321-61630,"1,485.00",RJ UTILITY SERVICES LTD.
"Regeneration, Economy and Growth",Corporate Property and Land,Third Party Payments,430100,Rendered by Private Contractors,04/02/2021,3831236-9029,"1,136.00",INGLEFORD SCAFFOLDING LTD.
Neighbourhoods and Climate Change,Environmental Services,Third Party Payments,430100,Rendered by Private Contractors,04/02/2021,3831131-3067,682.00,A & J GUTHRIE.
Neighbourhoods and Climate Change,Technical Services CM0300,Third Party Payments,430100,Rendered by Private Contractors,04/02/2021,3831226-3179,"6,400.00",HIGHWAY CONSTRUCTION SERVICES LTD.
Neighbourhoods and Climate Change,Technical Services CM0300,Third Party Payments,430100,Rendered by Private Contractors,04/02/2021,3831226-3183,"6,400.00",HIGHWAY CONSTRUCTION SERVICES LTD.
Neighbourhoods and Climate Change,Technical Services CM0300,Third Party Payments,430100,Rendered by Private Contractors,04/02/2021,3831226-3187,"6,240.00",HIGHWAY CONSTRUCTION SERVICES LTD.
Neighbourhoods and Climate Change,Technical Services CM0300,Third Party Payments,430100,Rendered by Private Contractors,04/02/2021,3831307-6061,"5,685.15",PINKNEY BUILDING CONTRACTORS LTD.
Neighbourhoods and Climate Change,Technical Services CM0300,Third Party Payments,430100,Rendered by Private Contractors,04/02/2021,3831307-6065,"5,685.15",PINKNEY BUILDING CONTRACTORS LTD.
Neighbourhoods and Climate Change,Technical Services CM0300,Third Party Payments,430100,Rendered by Private Contractors,04/02/2021,3831307-6075,"6,123.75",PINKNEY BUILDING CONTRACTORS LTD.
Neighbourhoods and Climate Change,Environmental Services,Third Party Payments,430101,Rendered by Private Contractors,04/02/2021,3831267-FKL00105,"1,482.00",MCCONECHYS TYRE SERVICE LTD.
Neighbourhoods and Climate Change,Environmental Services,Third Party Payments,430101,Rendered by Private Contractors,04/02/2021,3831267-FKL00113,935.00,MCCONECHYS TYRE SERVICE LTD.
Neighbourhoods and Climate Change,Environmental Services,Third Party Payments,430101,Rendered by Private Contractors,04/02/2021,3831267-FKL00114,502.00,MCCONECHYS TYRE SERVICE LTD.
Neighbourhoods and Climate Change,Environmental Services,Third Party Payments,430101,Rendered by Private Contractors,04/02/2021,3831267-FKL00104,"1,472.00",MCCONECHYS TYRE SERVICE LTD.
Neighbourhoods and Climate Change,Environmental Services,Third Party Payments,430101,Rendered by Private Contractors,04/02/2021,3831267-FKL00115,"1,132.00",MCCONECHYS TYRE SERVICE LTD.
Resources BK0010,Legal & Democratic Services,Supplies and Services,340001,Postages E340,04/02/2021,3831135-PSI0152547,"84,775.73",ADARE SEC LTD.
"Regeneration, Economy and Growth",Transport and Contracted Services,Supplies and Services,332029,Printing Stationery and Gen Off Exps,04/02/2021,3831260-SIN002968,"1,395.00",LIVING STREETS.
Resources BK0010,Digital and Customer Services,Supplies and Services,332029,Printing Stationery and Gen Off Exps,04/02/2021,3831136-149901,"1,574.29",AGNE LTD T/A ALPHAGRAPHICS.
"Regeneration, Economy and Growth",Business Durham CL0850,Supplies and Services,338066,Services,04/02/2021,3831371-INV-14005,"39,242.42",UMI COMMERCIAL LTD.
"Regeneration, Economy and Growth",Business Durham CL0850,Supplies and Services,338066,Services,04/02/2021,3831373-54200,"5,765.00",UNW LLP.
Adult and Health Services,Public Health CC0450,Third Party Payments,460803,Contract Payments,04/02/2021,3831224-DCCDA011,"41,416.75",HARBOUR SUPPORT SERVICES.
Adult and Health Services,Public Health CC0450,Third Party Payments,460803,Contract Payments,04/02/2021,3831224-DCCVC011,"4,321.42",HARBOUR SUPPORT SERVICES.
Children and Young Peoples Services,Head of Education and Skills,Transfer Payments,510051,School Children,04/02/2021,3831284-AWPU-01-2021-001,"2,668.00",NORTH DURHAM ACADEMY.
Children and Young Peoples Services,Head of Education and Skills,Transfer Payments,510051,School Children,04/02/2021,3831284-AWPU-01-2021-002,"2,668.00",NORTH DURHAM ACADEMY.
Children and Young Peoples Services,Head of Education and Skills,Transfer Payments,510051,School Children,04/02/2021,3831284-AWPU-01-2021-003,"2,668.00",NORTH DURHAM ACADEMY.
Children and Young Peoples Services,Head of Education and Skills,Transfer Payments,510051,School Children,04/02/2021,3831284-AWPU-01-2021-004,"2,668.00",NORTH DURHAM ACADEMY.
Children and Young Peoples Services,Head of Education and Skills,Transfer Payments,510051,School Children,04/02/2021,3831284-AWPU-01-2021-045,"4,940.00",NORTH DURHAM ACADEMY.
Children and Young Peoples Services,Head of Education and Skills,Transfer Payments,510051,School Children,04/02/2021,3831284-AWPU-01-2021-078,"3,531.00",NORTH DURHAM ACADEMY.
Children and Young Peoples Services,Head of Education and Skills,Transfer Payments,510051,School Children,04/02/2021,3831284-AWPU-01-2021-080,"4,427.00",NORTH DURHAM ACADEMY.
Children and Young Peoples Services,Head of Education and Skills,Transfer Payments,510051,School Children,04/02/2021,3831343-AWPU-01-2021-011,"2,213.00",STAINDROP ACADEMY.
Children and Young Peoples Services,Head of Education and Skills,Transfer Payments,510051,School Children,04/02/2021,3831343-AWPU-01-2021-055,"4,427.00",STAINDROP ACADEMY.
Children and Young Peoples Services,Head of Education and Skills,Transfer Payments,510051,School Children,04/02/2021,3831343-AWPU-01-2021-063,"5,090.00",STAINDROP ACADEMY.
Children and Young Peoples Services,Head of Education and Skills,Transfer Payments,510051,School Children,04/02/2021,3831343-AWPU-01-2021-064,"4,992.00",STAINDROP ACADEMY.
Children and Young Peoples Services,Head of Education and Skills,Transfer Payments,510051,School Children,04/02/2021,3831343-AWPU-01-2021-065,"3,970.00",STAINDROP ACADEMY.
Children and Young Peoples Services,Head of Education and Skills,Transfer Payments,510051,School Children,04/02/2021,3831343-AWPU-01-2021-066,"5,306.00",STAINDROP ACADEMY.
Children and Young Peoples Services,Head of Education and Skills,Transfer Payments,510051,School Children,04/02/2021,3831343-AWPU-01-2021-067,"5,978.00",STAINDROP ACADEMY.
Children and Young Peoples Services,Head of Education and Skills,Transfer Payments,510051,School Children,04/02/2021,3831343-AWPU-01-2021-071,"5,957.00",STAINDROP ACADEMY.
Children and Young Peoples Services,Head of Education and Skills,Transfer Payments,510051,School Children,04/02/2021,3831343-AWPU-01-2021-093,"5,306.00",STAINDROP ACADEMY.
Children and Young Peoples Services,Head of Education and Skills,Transfer Payments,510051,School Children,04/02/2021,3831343-AWPU-01-2021-094,"5,090.00",STAINDROP ACADEMY.
Children and Young Peoples Services,Head of Education and Skills,Transfer Payments,510051,School Children,04/02/2021,3831343-AWPU-01-2021-095,"4,992.00",STAINDROP ACADEMY.
Children and Young Peoples Services,Head of Education and Skills,Transfer Payments,510051,School Children,04/02/2021,3831343-AWPU-01-2021-096,"3,970.00",STAINDROP ACADEMY.
Neighbourhoods and Climate Change,Environmental Services,Vehicles Equipment Furniture and Fittings,912529,Purchase-equipment,04/02/2021,3831365-0000011185,"17,707.50",TRISCAN SYSTEMS LTD.
"Regeneration, Economy and Growth",Business Durham CL0850,Supplies and Services,338078,Services,04/02/2021,3831374-INV-40389,"6,243.76",VISTECH SERVICES.
Adult and Health Services,Head of Adults,Transport,230005,Contract Hire,04/02/2021,3831302-SLD005/JAN,"1,506.75",PETER`S PRIVATE HIRE/PETER BEST.
Adult and Health Services,Head of Adults,Transport,230005,Contract Hire,04/02/2021,3831133-0121/SF,863.93,AABAT TAXIS.
Adult and Health Services,Head of Adults,Transport,230005,Contract Hire,04/02/2021,3831133-0121/SK,"1,837.24",AABAT TAXIS.
Adult and Health Services,Head of Adults,Transport,230005,Contract Hire,04/02/2021,3831243-2024,790.40,JDS PRIVATE HIRE DURHAM.
Adult and Health Services,Head of Adults,Transport,230005,Contract Hire,04/02/2021,3831327-1842,"1,023.60",RON`S TAXIS (FISHBURN).
"Regeneration, Economy and Growth",Transport and Contracted Services,Intangible Assets,917001,Software capitalised licence fees,04/02/2021,3831270-100421993,"5,537.05",MOTT MACDONALD LTD.
Resources BK0010,Digital and Customer Services,Stock A926,926900,Stock in hand-Inventory system,04/02/2021,3831190-7402680978,"1,030.00",DELL COMPUTER CORPORATION LTD.
Neighbourhoods and Climate Change,Technical Services CM0300,Stock A926,926900,Stock in hand-Inventory system,04/02/2021,3831293-XL265529,"1,575.00",PARK ELECTRICAL DISTRIBUTORS LTD.
Neighbourhoods and Climate Change,Technical Services CM0300,Stock A926,926900,Stock in hand-Inventory system,04/02/2021,3831293-XL265589,700.00,PARK ELECTRICAL DISTRIBUTORS LTD.
Neighbourhoods and Climate Change,Technical Services CM0300,Stock A926,926900,Stock in hand-Inventory system,04/02/2021,3831177-796403,"1,263.00",CMT EQUIPMENT LTD.
Neighbourhoods and Climate Change,Technical Services CM0300,Stock A926,926900,Stock in hand-Inventory system,04/02/2021,3831234-147444,"11,736.00",HYDRAM ENGINEERING LTD.
Adult and Health Services,Head of Adults,Third Party Payments,478151,Purchase of Care,04/02/2021,3831357-NTX-INV-0000000198,"1,350.00",THERA NORTH TRADING LTD.
Adult and Health Services,Head of Adults,Third Party Payments,478151,Purchase of Care,04/02/2021,3831320-SLSINV/00042007,"1,631.60",REAL LIFE OPTIONS.
Adult and Health Services,Head of Adults,Third Party Payments,478151,Purchase of Care,04/02/2021,3831205-20993,"2,079.00",ESSENTIAL CARE & SUPPORT LTD.
Neighbourhoods and Climate Change,Environmental Services,Transport,210057,Repair and Maintenance of Vehicles,04/02/2021,3831192-96401491,"1,256.25",DENNIS EAGLE LTD T/A TERBERG MATEC (UK) LTD.
Neighbourhoods and Climate Change,Environmental Services,Transport,210057,Repair and Maintenance of Vehicles,04/02/2021,3831139-80939,"2,722.91",ALLAN FULLER LTD.
Neighbourhoods and Climate Change,Environmental Services,Transport,210057,Repair and Maintenance of Vehicles,04/02/2021,3831227-9668,742.00,HILLCREST AUTO ELECTRICS.
Children and Young Peoples Services,Childrens Services Operational Support,Supplies and Services,338089,Services,04/02/2021,3831313-3276,"2,152.00",PRICE TRAINING LTD.
Children and Young Peoples Services,Childrens Services Operational Support,Supplies and Services,338089,Services,04/02/2021,3831313-3279,"2,152.00",PRICE TRAINING LTD.
Children and Young Peoples Services,Head of Childrens Social Care,Third Party Payments,425041,Rendered by Voluntary Organisations,04/02/2021,3831146-ARC2021-420,"32,063.00",ARC ADOPTION NORTH EAST.
Children and Young Peoples Services,Head of Education and Skills,Supplies and Services,384302,Miscellaneous Expenses,05/02/2021,3831478-SI-5316,"12,000.00",ELLY BARNES T/A EDUCATE & CELEBRATE.
"Regeneration, Economy and Growth",Business Durham CL0850,Supplies and Services,336005,Advertising E336,05/02/2021,3831641-INV-0262,"2,190.00",THE PROJECTS STUDIO LTD.
Chief Executive's Office,Communications Management,Supplies and Services,336005,Advertising E336,05/02/2021,3831415-8017847,"4,000.00",BAUER RADIO LTD.
Adult and Health Services,Head of Adults,Supplies and Services,338042,Services,05/02/2021,3831459-355283/INVSRG154,"1,633.33",DERE STREET BARRISTERS.
Resources BK0010,Legal & Democratic Services,Supplies and Services,338042,Services,05/02/2021,3831459-357693/INVJAH143,"3,950.00",DERE STREET BARRISTERS.
Resources BK0010,Legal & Democratic Services,Supplies and Services,338042,Services,05/02/2021,3831459-362238/INVVCH110,550.00,DERE STREET BARRISTERS.
Resources BK0010,Legal & Democratic Services,Supplies and Services,338042,Services,05/02/2021,3831459-362238/INVAD05,750.00,DERE STREET BARRISTERS.
"Regeneration, Economy and Growth",Culture Sport and Tourism,Premises,106080,Centrally Controlled Rep and Maint,05/02/2021,3831521-CD200209097,"12,730.60",INTEGRATED WATER SERVICES LTD.
"Regeneration, Economy and Growth",Culture Sport and Tourism,Supplies and Services,342051,Computers and Communications,05/02/2021,3831484-HEX54000712539,"19,995.00",EXPERIAN LTD.
"Regeneration, Economy and Growth",Development and Housing,Construction work A908,908105,Construction work,05/02/2021,3831485-135344/08,985.00,FAIRHURST (CONSULTING ENGINEERS).
Neighbourhoods and Climate Change,Technical Services CM0300,Construction work A908,908105,Construction work,05/02/2021,3831629-90016349,"5,139.42",SWARCO TRAFFIC LTD.
Neighbourhoods and Climate Change,Technical Services CM0300,Construction work A908,908105,Construction work,05/02/2021,3831523-24957,"1,247.52",JACK COUPE & SONS LTD T/A COUPE LINE.
Children and Young Peoples Services,Head of Education and Skills,Supplies and Services,338027,Services,05/02/2021,3831643-114,500.00,THEATRE HULLABALOO.
Children and Young Peoples Services,Head of Education and Skills,Transport,230034,Contract Hire,05/02/2021,3831453-SEDGEFIELD290121,705.00,D IRVING T/A BJ TAXIS.
Children and Young Peoples Services,Head of Education and Skills,Transport,230034,Contract Hire,05/02/2021,3831550-INV01/202127,"1,520.00",MARK & JOHN CHISHOLM T/A (CHEVRON).
Children and Young Peoples Services,Head of Education and Skills,Transport,230034,Contract Hire,05/02/2021,3831559-223A,540.00,MR BRIAN JOHNSON T/A BRYS TAXIS.
Children and Young Peoples Services,Head of Education and Skills,Transport,230034,Contract Hire,05/02/2021,3831411-769,776.25,AT TAXIS LTD.
Children and Young Peoples Services,Head of Education and Skills,Transport,230034,Contract Hire,05/02/2021,3831548-307,"1,035.00",MACS TAXIS LTD.
Children and Young Peoples Services,Head of Education and Skills,Transport,230034,Contract Hire,05/02/2021,3831560-106,720.00,MR LJ TARRY T/A TARRY`S TAXI`S.
Children and Young Peoples Services,Head of Education and Skills,Transport,230035,Contract Hire,05/02/2021,3831545-209,"1,269.40",M BUTCHER T/A M & M`S TAXIS.
Children and Young Peoples Services,Head of Education and Skills,Transport,230007,Contract Hire,05/02/2021,3831528-CORPTRAVWPAJAN21,630.00,JOHN W CROOK T/A CORPORATE TRAVEL.
Children and Young Peoples Services,Head of Education and Skills,Transport,230007,Contract Hire,05/02/2021,3831550-INV01/202112,"1,531.00",MARK & JOHN CHISHOLM T/A (CHEVRON).
Children and Young Peoples Services,Head of Education and Skills,Transport,230007,Contract Hire,05/02/2021,3831550-INV01/202113,"1,090.41",MARK & JOHN CHISHOLM T/A (CHEVRON).
Children and Young Peoples Services,Head of Education and Skills,Transport,230007,Contract Hire,05/02/2021,3831554-0004-JAN,"1,050.00",MGD TAXIS.
Children and Young Peoples Services,Head of Education and Skills,Transport,230007,Contract Hire,05/02/2021,3831391-0121/SM,698.25,AABAT TAXIS.
Children and Young Peoples Services,Head of Education and Skills,Transport,230007,Contract Hire,05/02/2021,3831389-9936,"1,083.39",24X7LTD.
Children and Young Peoples Services,Head of Education and Skills,Transport,230007,Contract Hire,05/02/2021,3831620-6565,"3,420.00",STEPHEN MAUDE LTD T/A MAUDES COACHES.
Children and Young Peoples Services,Head of Education and Skills,Transport,230007,Contract Hire,05/02/2021,3831620-6564,"2,004.50",STEPHEN MAUDE LTD T/A MAUDES COACHES.
Dedicated Schools Grant BG0015,DSG High Needs Block,Transport,230009,Contract Hire,05/02/2021,3831550-INV01/202123,712.50,MARK & JOHN CHISHOLM T/A (CHEVRON).
Children and Young Peoples Services,Head of Education and Skills,Transport,230009,Contract Hire,05/02/2021,3831582-7311/JAN,"1,504.00",PAUL WILSON.
Children and Young Peoples Services,Head of Education and Skills,Transport,230009,Contract Hire,05/02/2021,3831561-131,"1,178.00",MR NEIL LEONARD T/A LENNY`S TAXIS.
Children and Young Peoples Services,Head of Education and Skills,Transport,230006,Contract Hire,05/02/2021,3831528-CORPTRAVBACJAN21,729.00,JOHN W CROOK T/A CORPORATE TRAVEL.
Children and Young Peoples Services,Head of Education and Skills,Transport,230006,Contract Hire,05/02/2021,3831451-110501,"1,695.84",CROFT BUSINESS SERVICES (UK) LTD T/A CROFT TAXIS.
Children and Young Peoples Services,Head of Education and Skills,Transport,230006,Contract Hire,05/02/2021,3831412-04186,"1,015.00",ATLAS TAXIS CONSETT.
Children and Young Peoples Services,Head of Education and Skills,Transport,230006,Contract Hire,05/02/2021,3831561-134,"1,034.00",MR NEIL LEONARD T/A LENNY`S TAXIS.
Children and Young Peoples Services,Head of Education and Skills,Transport,230006,Contract Hire,05/02/2021,3831503-41,776.25,HARDIP SINGH MAHIL T/A AMBER CARS.
Children and Young Peoples Services,Head of Education and Skills,Transport,230006,Contract Hire,05/02/2021,3831503-46,852.00,HARDIP SINGH MAHIL T/A AMBER CARS.
Children and Young Peoples Services,Head of Education and Skills,Transport,230010,Contract Hire,05/02/2021,3831550-INV01/202101,"1,470.00",MARK & JOHN CHISHOLM T/A (CHEVRON).
Children and Young Peoples Services,Head of Education and Skills,Transport,230010,Contract Hire,05/02/2021,3831550-INV01/202102,"2,365.50",MARK & JOHN CHISHOLM T/A (CHEVRON).
Children and Young Peoples Services,Head of Education and Skills,Transport,230010,Contract Hire,05/02/2021,3831550-INV01/202103,"1,705.08",MARK & JOHN CHISHOLM T/A (CHEVRON).
Children and Young Peoples Services,Head of Education and Skills,Transport,230010,Contract Hire,05/02/2021,3831550-INV01/202104,"1,578.76",MARK & JOHN CHISHOLM T/A (CHEVRON).
Children and Young Peoples Services,Head of Education and Skills,Transport,230010,Contract Hire,05/02/2021,3831550-INV01/202105,"1,705.08",MARK & JOHN CHISHOLM T/A (CHEVRON).
Children and Young Peoples Services,Head of Education and Skills,Transport,230010,Contract Hire,05/02/2021,3831550-INV01/202114,"1,496.25",MARK & JOHN CHISHOLM T/A (CHEVRON).
Children and Young Peoples Services,Head of Education and Skills,Transport,230012,Contract Hire,05/02/2021,3831541-4867/E054,945.00,LOCAL TRANSPORT LTD.
Children and Young Peoples Services,Head of Education and Skills,Transport,230012,Contract Hire,05/02/2021,3831541-4867/E065,905.58,LOCAL TRANSPORT LTD.
Children and Young Peoples Services,Head of Education and Skills,Transport,230012,Contract Hire,05/02/2021,3831391-0121/SG,"1,197.00",AABAT TAXIS.
Children and Young Peoples Services,Head of Education and Skills,Transport,230012,Contract Hire,05/02/2021,3831391-0121/SE,"1,019.25",AABAT TAXIS.
Children and Young Peoples Services,Head of Education and Skills,Transport,230012,Contract Hire,05/02/2021,3831548-306,"1,629.90",MACS TAXIS LTD.
Children and Young Peoples Services,Head of Education and Skills,Transport,230008,Contract Hire,05/02/2021,3831550-INV01/202124,"1,360.00",MARK & JOHN CHISHOLM T/A (CHEVRON).
Children and Young Peoples Services,Head of Education and Skills,Transport,230008,Contract Hire,05/02/2021,3831550-INV01/202121,"2,533.38",MARK & JOHN CHISHOLM T/A (CHEVRON).
Children and Young Peoples Services,Head of Education and Skills,Transport,230008,Contract Hire,05/02/2021,3831550-INV01/202122,"1,989.00",MARK & JOHN CHISHOLM T/A (CHEVRON).
Children and Young Peoples Services,Head of Education and Skills,Transport,230008,Contract Hire,05/02/2021,3831550-INV01/202120,"2,780.00",MARK & JOHN CHISHOLM T/A (CHEVRON).
Children and Young Peoples Services,Head of Education and Skills,Transport,230008,Contract Hire,05/02/2021,3831550-INV01/202110,"1,868.03",MARK & JOHN CHISHOLM T/A (CHEVRON).
Children and Young Peoples Services,Head of Education and Skills,Transport,230008,Contract Hire,05/02/2021,3831550-INV01/202111,"1,368.00",MARK & JOHN CHISHOLM T/A (CHEVRON).
Children and Young Peoples Services,Head of Education and Skills,Transport,230008,Contract Hire,05/02/2021,3831550-INV01/202118,"1,710.00",MARK & JOHN CHISHOLM T/A (CHEVRON).
Children and Young Peoples Services,Head of Education and Skills,Transport,230008,Contract Hire,05/02/2021,3831550-INV01/202119,"1,759.31",MARK & JOHN CHISHOLM T/A (CHEVRON).
Children and Young Peoples Services,Head of Education and Skills,Transport,230008,Contract Hire,05/02/2021,3831550-INV01/202106,"1,892.97",MARK & JOHN CHISHOLM T/A (CHEVRON).
Children and Young Peoples Services,Head of Education and Skills,Transport,230008,Contract Hire,05/02/2021,3831550-INV01/202107,"1,748.48",MARK & JOHN CHISHOLM T/A (CHEVRON).
Children and Young Peoples Services,Head of Education and Skills,Transport,230008,Contract Hire,05/02/2021,3831550-INV01/202108,"1,496.25",MARK & JOHN CHISHOLM T/A (CHEVRON).
Children and Young Peoples Services,Head of Education and Skills,Transport,230008,Contract Hire,05/02/2021,3831541-4867/E018,"1,449.00",LOCAL TRANSPORT LTD.
Children and Young Peoples Services,Head of Education and Skills,Transport,230008,Contract Hire,05/02/2021,3831541-4867/E020,"1,746.00",LOCAL TRANSPORT LTD.
Children and Young Peoples Services,Head of Education and Skills,Transport,230008,Contract Hire,05/02/2021,3831541-4867/E022,"1,192.68",LOCAL TRANSPORT LTD.
Children and Young Peoples Services,Head of Education and Skills,Transport,230008,Contract Hire,05/02/2021,3831561-134-E034,"1,767.06",MR NEIL LEONARD T/A LENNY`S TAXIS.
Children and Young Peoples Services,Head of Education and Skills,Transport,230008,Contract Hire,05/02/2021,3831391-0121/SN,"2,172.65",AABAT TAXIS.
Children and Young Peoples Services,Head of Education and Skills,Transport,230008,Contract Hire,05/02/2021,3831391-0121/SC,"2,280.00",AABAT TAXIS.
Children and Young Peoples Services,Head of Education and Skills,Transport,230008,Contract Hire,05/02/2021,3831391-0121/SX,"1,125.75",AABAT TAXIS.
Children and Young Peoples Services,Head of Education and Skills,Transport,230008,Contract Hire,05/02/2021,3831391-0121/SD,"1,621.46",AABAT TAXIS.
Children and Young Peoples Services,Head of Education and Skills,Transport,230008,Contract Hire,05/02/2021,3831391-0121/SJ,861.84,AABAT TAXIS.
Children and Young Peoples Services,Head of Education and Skills,Transport,230008,Contract Hire,05/02/2021,3831451-110418,"2,939.30",CROFT BUSINESS SERVICES (UK) LTD T/A CROFT TAXIS.
Children and Young Peoples Services,Head of Education and Skills,Transport,230008,Contract Hire,05/02/2021,3831451-110504,"1,834.07",CROFT BUSINESS SERVICES (UK) LTD T/A CROFT TAXIS.
Children and Young Peoples Services,Head of Education and Skills,Transport,230008,Contract Hire,05/02/2021,3831489-1517,"1,316.06",FMR SILVA PITA.
Children and Young Peoples Services,Head of Education and Skills,Transport,230008,Contract Hire,05/02/2021,3831536-115,"1,515.00",KINGSWAY CABS LTD.
Children and Young Peoples Services,Head of Education and Skills,Transport,230008,Contract Hire,05/02/2021,3831545-211,"1,170.00",M BUTCHER T/A M & M`S TAXIS.
Children and Young Peoples Services,Head of Education and Skills,Transport,230008,Contract Hire,05/02/2021,3831561-136,"1,750.00",MR NEIL LEONARD T/A LENNY`S TAXIS.
Children and Young Peoples Services,Head of Education and Skills,Transport,230008,Contract Hire,05/02/2021,3831561-132,"1,636.43",MR NEIL LEONARD T/A LENNY`S TAXIS.
Children and Young Peoples Services,Head of Education and Skills,Transport,230008,Contract Hire,05/02/2021,3831561-137,"2,496.16",MR NEIL LEONARD T/A LENNY`S TAXIS.
Children and Young Peoples Services,Head of Education and Skills,Transport,230008,Contract Hire,05/02/2021,3831546-48,"2,318.00",M&C`S CABS LTD.
Neighbourhoods and Climate Change,Technical Services CM0300,Third Party Payments,460053,Contract Payments,05/02/2021,3831523-24950,"1,267.85",JACK COUPE & SONS LTD T/A COUPE LINE.
Neighbourhoods and Climate Change,Technical Services CM0300,Third Party Payments,460053,Contract Payments,05/02/2021,3831523-24952,"2,492.19",JACK COUPE & SONS LTD T/A COUPE LINE.
Neighbourhoods and Climate Change,Technical Services CM0300,Third Party Payments,460503,Contract Payments,05/02/2021,3831668-1470,"10,000.00",WEATHERHED CONSTRUCTION LTD.
Neighbourhoods and Climate Change,Technical Services CM0300,Third Party Payments,430127,Rendered by Private Contractors,05/02/2021,3831664-48851,"3,818.00",W MARLEY AGRICULTURAL CONTRACTORS LTD.
Resources BK0010,Legal & Democratic Services,Supplies and Services,338025,Services,05/02/2021,3831626-12090,"1,320.00",STUART WRIGHT FUNERAL SERVICE LTD.
"Regeneration, Economy and Growth",Corporate Property and Land,Supplies and Services,304221,Equipment and Materials,05/02/2021,3831533-0106/00269862,904.80,JT DOVE LTD.
Neighbourhoods and Climate Change,Environmental Services,Supplies and Services,304221,Equipment and Materials,05/02/2021,3831644-NSIN00050125,"1,179.36",THOMAS OWEN & SONS (NEWCASTLE) LTD.
"Regeneration, Economy and Growth",Corporate Property and Land,Supplies and Services,304221,Equipment and Materials,05/02/2021,3831552-NE202059,779.56,MCNAUGHTON BLAIR LTD T/A LLOYD WORRALL (NEWCASTLE UPON TYNE) LTD.
Neighbourhoods and Climate Change,Technical Services CM0300,Supplies and Services,304221,Equipment and Materials,05/02/2021,3831400-30920602,539.10,AGGREGATE INDUSTRIES UK LTD.
Neighbourhoods and Climate Change,Technical Services CM0300,Supplies and Services,304221,Equipment and Materials,05/02/2021,3831651-218168,542.88,TYNEDALE ROADSTONE LTD.
Neighbourhoods and Climate Change,Technical Services CM0300,Supplies and Services,304221,Equipment and Materials,05/02/2021,3831651-218284,761.73,TYNEDALE ROADSTONE LTD.
Neighbourhoods and Climate Change,Technical Services CM0300,Supplies and Services,304221,Equipment and Materials,05/02/2021,3831651-218408,715.88,TYNEDALE ROADSTONE LTD.
Neighbourhoods and Climate Change,Technical Services CM0300,Supplies and Services,304221,Equipment and Materials,05/02/2021,3831651-218500,957.34,TYNEDALE ROADSTONE LTD.
Children and Young Peoples Services,Head of Early Help Inclusion & Vulnerable Children.,Premises,108001,Service Repairs and Maintenance,05/02/2021,3831437-DGN/318774,617.25,CITY ELECTRICAL FACTORS LTD.
Adult and Health Services,Head of Adults,Supplies and Services,338365,Services,05/02/2021,3831416-DHP0099,"16,581.98",BERNICIA GROUP LTD.*
Adult and Health Services,Public Health CC0450,Supplies and Services,304259,Equipment and Materials,05/02/2021,3831414-6344078,"3,055.50",BANNER GROUP LTD (FORMERLY SUPPLIES TEAM LTD).
Adult and Health Services,Public Health CC0450,Supplies and Services,304259,Equipment and Materials,05/02/2021,3831414-6345950,"3,585.74",BANNER GROUP LTD (FORMERLY SUPPLIES TEAM LTD).
Adult and Health Services,Public Health CC0450,Supplies and Services,304259,Equipment and Materials,05/02/2021,3831414-6358720,"2,049.26",BANNER GROUP LTD (FORMERLY SUPPLIES TEAM LTD).
"Regeneration, Economy and Growth",Culture Sport and Tourism,Supplies and Services,304259,Equipment and Materials,05/02/2021,3831530-100455,765.00,JP LENNARD LTD.
Dedicated Schools Grant BG0015,DSG High Needs Block,Supplies and Services,304259,Equipment and Materials,05/02/2021,3831482-291318,613.00,ETAC LTD.
Children and Young Peoples Services,Head of Childrens Social Care,Supplies and Services,338044,Services,05/02/2021,3831445-106566,709.00,COMPLEMENT GENOMICS LTD.
Children and Young Peoples Services,Head of Early Help Inclusion & Vulnerable Children.,Premises,140001,Fixtures and Fittings,05/02/2021,3831454-159687,"3,590.24",DART VALLEY SYSTEMS LTD.
Children and Young Peoples Services,Head of Early Help Inclusion & Vulnerable Children.,Premises,140001,Fixtures and Fittings,05/02/2021,3831454-159945,649.53,DART VALLEY SYSTEMS LTD.
Children and Young Peoples Services,Head of Early Help Inclusion & Vulnerable Children.,Supplies and Services,308011,Furniture,05/02/2021,3831553-INV-3634,"1,400.00",MERIDIAN UPHOLSTERY LTD.
Neighbourhoods and Climate Change,Partnerships & Community Engagement Div.,Supplies and Services,308011,Furniture,05/02/2021,3831490-14080,"1,142.50",FRANKS THE FLOORING STORE.
Neighbourhoods and Climate Change,Partnerships & Community Engagement Div.,Supplies and Services,308011,Furniture,05/02/2021,3831490-14081,552.50,FRANKS THE FLOORING STORE.
Neighbourhoods and Climate Change,Partnerships & Community Engagement Div.,Supplies and Services,308011,Furniture,05/02/2021,3831490-14082,960.83,FRANKS THE FLOORING STORE.
Neighbourhoods and Climate Change,Partnerships & Community Engagement Div.,Supplies and Services,308011,Furniture,05/02/2021,3831490-14083,"1,073.00",FRANKS THE FLOORING STORE.
"Regeneration, Economy and Growth",Business Durham CL0850,Premises,108099,Service Repairs and Maintenance,05/02/2021,3831598-13255,511.50,SAFEGUARD SECURITY (NE) LTD.
"Regeneration, Economy and Growth",Corporate Property and Land,Premises,108099,Service Repairs and Maintenance,05/02/2021,3831657-1541,"1,350.00",VENTILATION HYGIENE SPECIALISTS (VHS) LTD.
Children and Young Peoples Services,Childrens Services Operational Support,Supplies and Services,338026,Services,05/02/2021,3831628-SC7-15/09/20,614.50,SUSAN CAWTHERLEY.
"Regeneration, Economy and Growth",Culture Sport and Tourism,Supplies and Services,384199,Miscellaneous Expenses,05/02/2021,3831614-INV-S014618,"1,698.63",SPEKTRIX LTD.
Resources BK0010,Digital and Customer Services,Supplies and Services,384199,Miscellaneous Expenses,05/02/2021,3831431-103483,"1,151.20",CENTRAL POWER SERVICES LTD (CPS).
"Regeneration, Economy and Growth",Culture Sport and Tourism,Third Party Payments,440999,Other third party payments E440,05/02/2021,3831670-UOTR4730281,"2,966.20",WESTERN UNION BUSINESS SOLUTIONS.
Children and Young Peoples Services,Head of Education and Skills,Third Party Payments,440999,Other third party payments E440,05/02/2021,3831443-CTA/044-11,584.00,COMMUNICATORS TRAINING ASSOCIATES LTD.
Children and Young Peoples Services,Head of Education and Skills,Third Party Payments,440999,Other third party payments E440,05/02/2021,3831443-CTA/043-4,"1,365.00",COMMUNICATORS TRAINING ASSOCIATES LTD.
Children and Young Peoples Services,Head of Education and Skills,Third Party Payments,440999,Other third party payments E440,05/02/2021,3831501-M590,"1,826.25",GROUNDWORK NORTH EAST.
"Regeneration, Economy and Growth",Corporate Property and Land,Third Party Payments,430100,Rendered by Private Contractors,05/02/2021,3831447-4117/CS1881,"27,345.50",COMPLETE CLADDING SYSTEMS LTD.
"Regeneration, Economy and Growth",Corporate Property and Land,Third Party Payments,430100,Rendered by Private Contractors,05/02/2021,3831535-SI-0017352,"6,355.00",KINGSLEY PLASTICS LIMITED.
Neighbourhoods and Climate Change,Technical Services CM0300,Third Party Payments,430100,Rendered by Private Contractors,05/02/2021,3831481-168497A,660.70,ESH CONSTRUCTION LTD FORMERLY LUMSDEN & CARROLL CONSTRUCTION LTD.
"Regeneration, Economy and Growth",Corporate Property and Land,Third Party Payments,430100,Rendered by Private Contractors,05/02/2021,3831563-DCC167,"1,000.00",MR WILLIAM MAGUIRE T/A VALLUM LIFTS.
"Regeneration, Economy and Growth",Corporate Property and Land,Third Party Payments,430100,Rendered by Private Contractors,05/02/2021,3831563-DCC168,600.00,MR WILLIAM MAGUIRE T/A VALLUM LIFTS.
Neighbourhoods and Climate Change,Technical Services CM0300,Third Party Payments,430100,Rendered by Private Contractors,05/02/2021,3831584-315429,"1,350.00",PEART FENCING LTD.
"Regeneration, Economy and Growth",Corporate Property and Land,Third Party Payments,430100,Rendered by Private Contractors,05/02/2021,3831519-10314,"1,092.00",INGLEFORD SCAFFOLDING LTD.
Neighbourhoods and Climate Change,Technical Services CM0300,Third Party Payments,430100,Rendered by Private Contractors,05/02/2021,3831604-22530,"32,899.31",SEYMOUR (CIVIL ENGINEERING CONTRACTORS) LTD.
Neighbourhoods and Climate Change,Technical Services CM0300,Third Party Payments,430100,Rendered by Private Contractors,05/02/2021,3831617-16030,"7,036.81",STEADFAST SECURITY SOLUTIONS LTD.
Neighbourhoods and Climate Change,Technical Services CM0300,Third Party Payments,430100,Rendered by Private Contractors,05/02/2021,3831617-16181,"7,579.96",STEADFAST SECURITY SOLUTIONS LTD.
"Regeneration, Economy and Growth",Corporate Property and Land,Third Party Payments,430100,Rendered by Private Contractors,05/02/2021,3831430-7625,"1,235.08",CATHEDRAL LOCK & SAFE SERVICES LTD.
Neighbourhoods and Climate Change,Technical Services CM0300,Supplies and Services,338066,Services,05/02/2021,3831672-422,"1,750.00",WHORLTON LAND SURVEYS LTD.
Neighbourhoods and Climate Change,Technical Services CM0300,Supplies and Services,338066,Services,05/02/2021,3831672-427,"1,450.00",WHORLTON LAND SURVEYS LTD.
Neighbourhoods and Climate Change,Technical Services CM0300,Supplies and Services,338066,Services,05/02/2021,3831672-428,"1,350.00",WHORLTON LAND SURVEYS LTD.
"Regeneration, Economy and Growth",Culture Sport and Tourism,Premises,106082,Centrally Controlled Rep and Maint,05/02/2021,3831494-18097-21,"1,585.25",FT LEISURE LTD.
Neighbourhoods and Climate Change,Environmental Services,Supplies and Services,338078,Services,05/02/2021,3831617-16678,"3,444.48",STEADFAST SECURITY SOLUTIONS LTD.
Children and Young Peoples Services,Head of Early Help Inclusion & Vulnerable Children.,Supplies and Services,338078,Services,05/02/2021,3831617-16676,"17,844.32",STEADFAST SECURITY SOLUTIONS LTD.
Neighbourhoods and Climate Change,Environmental Services,Transport,230005,Contract Hire,05/02/2021,3831480-8167908,534.47,ENTERPRISE FLEX-E-RENT T/A BURNT TREE GROUP LTD.
Adult and Health Services,Head of Adults,Transport,230005,Contract Hire,05/02/2021,3831391-0121/SB,915.00,AABAT TAXIS.
Adult and Health Services,Head of Adults,Transport,230005,Contract Hire,05/02/2021,3831391-0121/SQ,539.34,AABAT TAXIS.
Adult and Health Services,Head of Adults,Transport,230005,Contract Hire,05/02/2021,3831502-14-NOV,852.00,HARDIP SINGH MAHIL T/A AMBER CARS.
Adult and Health Services,Head of Adults,Transport,230005,Contract Hire,05/02/2021,3831503-09-MAY,517.50,HARDIP SINGH MAHIL T/A AMBER CARS.
Children and Young Peoples Services,Head of Childrens Social Care,Transport,230005,Contract Hire,05/02/2021,3831621-SI-819,510.00,STEVEN PRATT T/A PTL TAXIS DURHAM.
Children and Young Peoples Services,Head of Childrens Social Care,Transport,230005,Contract Hire,05/02/2021,3831621-SI-820,520.00,STEVEN PRATT T/A PTL TAXIS DURHAM.
Children and Young Peoples Services,Head of Education and Skills,Supplies and Services,332047,Printing Stationery and Gen Off Exps,05/02/2021,3831414-6417544,988.06,BANNER GROUP LTD (FORMERLY SUPPLIES TEAM LTD).
Neighbourhoods and Climate Change,Technical Services CM0300,Stock A926,926900,Stock in hand-Inventory system,05/02/2021,3831600-20211000003748,"2,011.94",SCARAB SWEEPERS LTD.
Neighbourhoods and Climate Change,Technical Services CM0300,Stock A926,926900,Stock in hand-Inventory system,05/02/2021,3831644-NSIN00049557,"2,695.05",THOMAS OWEN & SONS (NEWCASTLE) LTD.
Neighbourhoods and Climate Change,Technical Services CM0300,Stock A926,926900,Stock in hand-Inventory system,05/02/2021,3831644-NSIN00049851,"1,466.47",THOMAS OWEN & SONS (NEWCASTLE) LTD.
Neighbourhoods and Climate Change,Technical Services CM0300,Stock A926,926900,Stock in hand-Inventory system,05/02/2021,3831644-NSIN00050115,718.81,THOMAS OWEN & SONS (NEWCASTLE) LTD.
Neighbourhoods and Climate Change,Technical Services CM0300,Stock A926,926900,Stock in hand-Inventory system,05/02/2021,3831644-NSIN00050118,698.08,THOMAS OWEN & SONS (NEWCASTLE) LTD.
Neighbourhoods and Climate Change,Technical Services CM0300,Stock A926,926900,Stock in hand-Inventory system,05/02/2021,3831644-NSIN00050120,"1,663.20",THOMAS OWEN & SONS (NEWCASTLE) LTD.
Neighbourhoods and Climate Change,Technical Services CM0300,Stock A926,926900,Stock in hand-Inventory system,05/02/2021,3831611-SI21000691,743.40,SOLON SECURITY LTD.
Neighbourhoods and Climate Change,Technical Services CM0300,Stock A926,926900,Stock in hand-Inventory system,05/02/2021,3831499-06/107851,"1,283.76",GREENHAM TRADING LTD.
Neighbourhoods and Climate Change,Technical Services CM0300,Stock A926,926900,Stock in hand-Inventory system,05/02/2021,3831579-XL265179,668.00,PARK ELECTRICAL DISTRIBUTORS LTD.
Neighbourhoods and Climate Change,Technical Services CM0300,Stock A926,926900,Stock in hand-Inventory system,05/02/2021,3831579-XL265588,750.00,PARK ELECTRICAL DISTRIBUTORS LTD.
Neighbourhoods and Climate Change,Technical Services CM0300,Stock A926,926900,Stock in hand-Inventory system,05/02/2021,3831579-XL265663,"3,115.50",PARK ELECTRICAL DISTRIBUTORS LTD.
Neighbourhoods and Climate Change,Technical Services CM0300,Stock A926,926900,Stock in hand-Inventory system,05/02/2021,3831527-10028,580.00,JG UNIFORMS.
"Regeneration, Economy and Growth",Development and Housing,Supplies and Services,372009,Subscriptions E372,05/02/2021,3831666-E187687342,"2,254.47",WARRINGTONFIRE TESTING & CERTIFICATION LTD T/A BM TRADA.
Neighbourhoods and Climate Change,Technical Services CM0300,Supplies and Services,372009,Subscriptions E372,05/02/2021,3831605-WWB1156280,"9,712.50",SGS UNITED KINGDOM LTD.
Adult and Health Services,Head of Adults,Third Party Payments,478151,Purchase of Care,05/02/2021,3831422-OHL-1241070,"6,199.20",BONDCARE WILLINGTON LTD.
Adult and Health Services,Head of Adults,Third Party Payments,478151,Purchase of Care,05/02/2021,3831422-OHL-1241072,"8,568.00",BONDCARE WILLINGTON LTD.
Adult and Health Services,Head of Adults,Third Party Payments,478151,Purchase of Care,05/02/2021,3831444-421R308705L,"6,722.57",COMMUNITY INTEGRATED CARE LTD.
Resources BK0010,Legal & Democratic Services,Supplies and Services,338042,Services,08/02/2021,3831757-362718/INVMC139,"1,100.00",DERE STREET BARRISTERS.
Resources BK0010,Legal & Democratic Services,Supplies and Services,338042,Services,08/02/2021,3831757-356708/INVAD02,"2,350.00",DERE STREET BARRISTERS.
"Regeneration, Economy and Growth",Culture Sport and Tourism,Supplies and Services,312013,Newspapers books and periodicals E312,08/02/2021,3831709-6408651,653.94,ASKEWS & HOLTS LIBRARY SERVICES LTD.
"Regeneration, Economy and Growth",Culture Sport and Tourism,Supplies and Services,312013,Newspapers books and periodicals E312,08/02/2021,3831709-6408763,537.04,ASKEWS & HOLTS LIBRARY SERVICES LTD.
"Regeneration, Economy and Growth",Transport and Contracted Services,Supplies and Services,342215,Computers and Communications,08/02/2021,3831781-INV30513,720.00,FERROGRAPH LTD.
"Regeneration, Economy and Growth",Transport and Contracted Services,Supplies and Services,342215,Computers and Communications,08/02/2021,3831781-INV30514,750.00,FERROGRAPH LTD.
Resources BK0010,Digital and Customer Services,Vehicles Equipment Furniture and Fittings,912701,Computer equipment,08/02/2021,3831756-7402678341,616.25,DELL COMPUTER CORPORATION LTD.
Resources BK0010,Digital and Customer Services,Vehicles Equipment Furniture and Fittings,912701,Computer equipment,08/02/2021,3831756-7402678923,"7,913.76",DELL COMPUTER CORPORATION LTD.
Resources BK0010,Digital and Customer Services,Vehicles Equipment Furniture and Fittings,912701,Computer equipment,08/02/2021,3831756-7402680557,931.71,DELL COMPUTER CORPORATION LTD.
Neighbourhoods and Climate Change,Technical Services CM0300,Third Party Payments,460224,Contract Payments,08/02/2021,3831901-22529,"168,995.09",SEYMOUR (CIVIL ENGINEERING CONTRACTORS) LTD.
Neighbourhoods and Climate Change,Technical Services CM0300,Third Party Payments,430127,Rendered by Private Contractors,08/02/2021,3831752-DCC059,"2,108.00",D & L HOPPS.
Neighbourhoods and Climate Change,Technical Services CM0300,Third Party Payments,430127,Rendered by Private Contractors,08/02/2021,3831752-DCC060,"2,453.00",D & L HOPPS.
Neighbourhoods and Climate Change,Technical Services CM0300,Third Party Payments,430128,Rendered by Private Contractors,08/02/2021,3831875-13927,850.00,PETER MONKHOUSE HAULAGE.
Neighbourhoods and Climate Change,Technical Services CM0300,Third Party Payments,430128,Rendered by Private Contractors,08/02/2021,3831779-300,"1,446.00",F WARD FARM.
"Regeneration, Economy and Growth",Development and Housing,Supplies and Services,384899,Miscellaneous Expenses,08/02/2021,3831745-SD009/7,"2,865.33",CORNFORTH PARTNERSHIP.
Neighbourhoods and Climate Change,Environmental Services,Transport,215005,Running Costs of Vehicles,08/02/2021,3831870-703451,"11,184.93",OIL NRG LTD.
"Regeneration, Economy and Growth",Corporate Property and Land,Supplies and Services,304221,Equipment and Materials,08/02/2021,3831826-0108/00277272,"2,275.44",JT DOVE LTD.
Neighbourhoods and Climate Change,Environmental Services,Supplies and Services,304221,Equipment and Materials,08/02/2021,3831936-NSIN00050254,"2,026.00",THOMAS OWEN & SONS (NEWCASTLE) LTD.
"Regeneration, Economy and Growth",Corporate Property and Land,Supplies and Services,304221,Equipment and Materials,08/02/2021,3831769-059-275714,504.47,EDMUNDSON ELECTRICAL LTD.
"Regeneration, Economy and Growth",Corporate Property and Land,Supplies and Services,304221,Equipment and Materials,08/02/2021,3831814-S115863081,758.67,ICI DULUX DECORATOR CENTRES.
Neighbourhoods and Climate Change,Environmental Services,Supplies and Services,304221,Equipment and Materials,08/02/2021,3831750-INV0109730,897.05,CROMWELL POLYTHENE LTD.
"Regeneration, Economy and Growth",Corporate Property and Land,Supplies and Services,304221,Equipment and Materials,08/02/2021,3831698-4092060,596.00,A & A ELECTRICAL DISTRIBUTORS LTD.
Neighbourhoods and Climate Change,Environmental Services,Supplies and Services,304221,Equipment and Materials,08/02/2021,3831748-3033590,"10,700.00",CRAEMER UK LTD.
Neighbourhoods and Climate Change,Technical Services CM0300,Supplies and Services,304221,Equipment and Materials,08/02/2021,3831944-218089,542.02,TYNEDALE ROADSTONE LTD.
Neighbourhoods and Climate Change,Technical Services CM0300,Supplies and Services,304221,Equipment and Materials,08/02/2021,3831944-218515,"1,057.33",TYNEDALE ROADSTONE LTD.
Neighbourhoods and Climate Change,Technical Services CM0300,Supplies and Services,304221,Equipment and Materials,08/02/2021,3831944-218520,714.79,TYNEDALE ROADSTONE LTD.
Adult and Health Services,Head of Adults,Supplies and Services,338365,Services,08/02/2021,3831880-161231,797.00,POSSUM LTD.
"Regeneration, Economy and Growth",Culture Sport and Tourism,Supplies and Services,304259,Equipment and Materials,08/02/2021,3831909-SI-20210235,525.00,SPORTS MAINTENANCE SERVICES LTD.
"Regeneration, Economy and Growth",Culture Sport and Tourism,Supplies and Services,304259,Equipment and Materials,08/02/2021,3831945-US3051,500.00,ULTIMATE SUPPLIES (NORTH) LTD.
Children and Young Peoples Services,Head of Childrens Social Care,Supplies and Services,338044,Services,08/02/2021,3831742-106575,504.00,COMPLEMENT GENOMICS LTD.
Children and Young Peoples Services,Head of Early Help Inclusion & Vulnerable Children.,Premises,140001,Fixtures and Fittings,08/02/2021,3831755-160040,"1,414.02",DART VALLEY SYSTEMS LTD.
Children and Young Peoples Services,Head of Early Help Inclusion & Vulnerable Children.,Supplies and Services,308011,Furniture,08/02/2021,3831877-SI/69725,809.90,PINEAPPLE CONTRACTS.
Neighbourhoods and Climate Change,Environmental Services,Premises,108099,Service Repairs and Maintenance,08/02/2021,3831889-SI/110431,810.65,QED ENVIRONMENTAL SYSTEMS LTD.
"Regeneration, Economy and Growth",Corporate Property and Land,Supplies and Services,304999,Equipment and Materials,08/02/2021,3831718-2896949,580.26,BES LTD.
"Regeneration, Economy and Growth",Corporate Property and Land,Supplies and Services,304999,Equipment and Materials,08/02/2021,3831718-2908399,"1,048.12",BES LTD.
Resources BK0010,Legal & Democratic Services,Supplies and Services,344014,Telephones,08/02/2021,3831955-0X00835,789.95,VODAFONE LTD.
Resources BK0010,Digital and Customer Services,Supplies and Services,304303,Equipment and Materials,08/02/2021,3831795-INV0181503,608.24,GVAV LTD.
Adult and Health Services,Head of Adults,Supplies and Services,304303,Equipment and Materials,08/02/2021,3831795-INV0181504,538.00,GVAV LTD.
Adult and Health Services,Commissioning inc Supporting People,Third Party Payments,479101,Purchase of Care,08/02/2021,3831925-4810019139,"4,425.67",TEES ESK & WEAR VALLEYS NHS FOUNDATION TRUST.
Children and Young Peoples Services,Head of Early Help Inclusion & Vulnerable Children.,Premises,145009,Cleaning and Domestic Supplies,08/02/2021,3831864-4010001228,"1,261.92",NHS SYNCHRONICITY CARE LTD.
Neighbourhoods and Climate Change,Community Protection,Supplies and Services,384199,Miscellaneous Expenses,08/02/2021,3831776-27665,"2,070.55",ENVIRO TECHNOLOGY SERVICES PLC.
"Regeneration, Economy and Growth",Corporate Property and Land,Third Party Payments,430100,Rendered by Private Contractors,08/02/2021,3831847-30559/92220849,"1,115.00",MITIE PROPERTY SERVICES (UK) LTD.
"Regeneration, Economy and Growth",Corporate Property and Land,Third Party Payments,430100,Rendered by Private Contractors,08/02/2021,3831959-123943,"17,985.00",XERIC LTD.
Neighbourhoods and Climate Change,Technical Services CM0300,Third Party Payments,430100,Rendered by Private Contractors,08/02/2021,3831890-13073,"1,299.20",QUANTUM POWER CONNECTIONS LTD.
"Regeneration, Economy and Growth",Business Durham CL0850,Supplies and Services,340001,Postages E340,08/02/2021,3831863-RED-02-2021-044,"1,000.00",NEOPOST CREDIFON.
Resources BK0010,Digital and Customer Services,Supplies and Services,332029,Printing Stationery and Gen Off Exps,08/02/2021,3831881-690942,"1,280.00",POTTS PRINTERS LTD.
Neighbourhoods and Climate Change,Environmental Services,Supplies and Services,338066,Services,08/02/2021,3831775-1014-18335,"1,450.00",ENERGY & COMPLIANCE TECHNOLOGY LTD T/A COMPLIANCE365.
"Regeneration, Economy and Growth",Business Durham CL0850,Supplies and Services,338066,Services,08/02/2021,3831946-INV-14039,"3,958.33",UMI COMMERCIAL LTD.
Adult and Health Services,Public Health CC0450,Third Party Payments,460803,Contract Payments,08/02/2021,3831714-141011363,"35,000.00",BARNARDO SERVICES LTD.
Adult and Health Services,Public Health CC0450,Third Party Payments,460803,Contract Payments,08/02/2021,3831878-17435/14,"7,326.42",PIONEERING CARE PARTNERSHIP.
Adult and Health Services,Public Health CC0450,Third Party Payments,460803,Contract Payments,08/02/2021,3831878-17434/14,"5,462.93",PIONEERING CARE PARTNERSHIP.
Neighbourhoods and Climate Change,Environmental Services,Supplies and Services,338078,Services,08/02/2021,3831913-16681,"7,434.30",STEADFAST SECURITY SOLUTIONS LTD.
Neighbourhoods and Climate Change,Environmental Services,Supplies and Services,338078,Services,08/02/2021,3831913-16677,"6,713.95",STEADFAST SECURITY SOLUTIONS LTD.
Neighbourhoods and Climate Change,Environmental Services,Supplies and Services,338078,Services,08/02/2021,3831913-16673,"9,556.26",STEADFAST SECURITY SOLUTIONS LTD.
Resources BK0010,Transformation,Supplies and Services,338078,Services,08/02/2021,3831913-16684,"8,693.76",STEADFAST SECURITY SOLUTIONS LTD.
Neighbourhoods and Climate Change,Technical Services CM0300,Stock A926,926004,Stock,08/02/2021,3831739-400029522,"8,389.16",CLEVELAND POTASH LTD T/A ICL FERTILIZERS.
Neighbourhoods and Climate Change,Technical Services CM0300,Stock A926,926004,Stock,08/02/2021,3831739-400029525,"3,131.70",CLEVELAND POTASH LTD T/A ICL FERTILIZERS.
Neighbourhoods and Climate Change,Technical Services CM0300,Stock A926,926004,Stock,08/02/2021,3831739-400029784,"1,388.46",CLEVELAND POTASH LTD T/A ICL FERTILIZERS.
Neighbourhoods and Climate Change,Technical Services CM0300,Stock A926,926004,Stock,08/02/2021,3831739-400029785,"1,418.39",CLEVELAND POTASH LTD T/A ICL FERTILIZERS.
Neighbourhoods and Climate Change,Technical Services CM0300,Stock A926,926004,Stock,08/02/2021,3831739-400029786,"2,829.48",CLEVELAND POTASH LTD T/A ICL FERTILIZERS.
Neighbourhoods and Climate Change,Technical Services CM0300,Stock A926,926004,Stock,08/02/2021,3831739-400029787,"5,457.48",CLEVELAND POTASH LTD T/A ICL FERTILIZERS.
Neighbourhoods and Climate Change,Technical Services CM0300,Stock A926,926004,Stock,08/02/2021,3831739-400029788,"4,965.46",CLEVELAND POTASH LTD T/A ICL FERTILIZERS.
Neighbourhoods and Climate Change,Technical Services CM0300,Stock A926,926004,Stock,08/02/2021,3831739-400029789,"4,726.02",CLEVELAND POTASH LTD T/A ICL FERTILIZERS.
Neighbourhoods and Climate Change,Technical Services CM0300,Stock A926,926004,Stock,08/02/2021,3831739-400029790,"6,924.05",CLEVELAND POTASH LTD T/A ICL FERTILIZERS.
Neighbourhoods and Climate Change,Technical Services CM0300,Stock A926,926004,Stock,08/02/2021,3831739-400029791,"8,241.70",CLEVELAND POTASH LTD T/A ICL FERTILIZERS.
Neighbourhoods and Climate Change,Technical Services CM0300,Stock A926,926004,Stock,08/02/2021,3831739-400029792,"2,091.45",CLEVELAND POTASH LTD T/A ICL FERTILIZERS.
Neighbourhoods and Climate Change,Technical Services CM0300,Stock A926,926004,Stock,08/02/2021,3831739-400030080,"3,078.41",CLEVELAND POTASH LTD T/A ICL FERTILIZERS.
Neighbourhoods and Climate Change,Technical Services CM0300,Stock A926,926004,Stock,08/02/2021,3831739-400030081,"2,069.55",CLEVELAND POTASH LTD T/A ICL FERTILIZERS.
Neighbourhoods and Climate Change,Technical Services CM0300,Stock A926,926004,Stock,08/02/2021,3831739-400030082,"3,889.44",CLEVELAND POTASH LTD T/A ICL FERTILIZERS.
Neighbourhoods and Climate Change,Technical Services CM0300,Stock A926,926004,Stock,08/02/2021,3831739-400030083,"1,004.48",CLEVELAND POTASH LTD T/A ICL FERTILIZERS.
Neighbourhoods and Climate Change,Technical Services CM0300,Stock A926,926004,Stock,08/02/2021,3831739-400030172,"6,624.02",CLEVELAND POTASH LTD T/A ICL FERTILIZERS.
Neighbourhoods and Climate Change,Technical Services CM0300,Stock A926,926004,Stock,08/02/2021,3831739-400030173,"3,184.99",CLEVELAND POTASH LTD T/A ICL FERTILIZERS.
Neighbourhoods and Climate Change,Technical Services CM0300,Stock A926,926900,Stock in hand-Inventory system,08/02/2021,3831774-78SI/73968,"1,050.00",ENCON INSULATION LTD.
Neighbourhoods and Climate Change,Technical Services CM0300,Stock A926,926900,Stock in hand-Inventory system,08/02/2021,3831907-194282,"2,478.24",SNAPFAST.
Neighbourhoods and Climate Change,Technical Services CM0300,Stock A926,926900,Stock in hand-Inventory system,08/02/2021,3831939-104272,"1,344.00",TOTAL RENTAL SOLUTIONS.
Neighbourhoods and Climate Change,Technical Services CM0300,Stock A926,926900,Stock in hand-Inventory system,08/02/2021,3831939-104273,"1,212.48",TOTAL RENTAL SOLUTIONS.
Neighbourhoods and Climate Change,Technical Services CM0300,Stock A926,926900,Stock in hand-Inventory system,08/02/2021,3831939-104274,"1,200.00",TOTAL RENTAL SOLUTIONS.
Neighbourhoods and Climate Change,Technical Services CM0300,Stock A926,926900,Stock in hand-Inventory system,08/02/2021,3831939-104275,"3,375.00",TOTAL RENTAL SOLUTIONS.
Neighbourhoods and Climate Change,Technical Services CM0300,Stock A926,926900,Stock in hand-Inventory system,08/02/2021,3831939-104276,"4,522.50",TOTAL RENTAL SOLUTIONS.
Neighbourhoods and Climate Change,Technical Services CM0300,Stock A926,926900,Stock in hand-Inventory system,08/02/2021,3831939-104277,"4,023.67",TOTAL RENTAL SOLUTIONS.
Neighbourhoods and Climate Change,Environmental Services,Supplies and Services,372009,Subscriptions E372,08/02/2021,3831950-7501290129,786.00,VERIFONE (UK) LTD.
Adult and Health Services,Head of Adults,Third Party Payments,478151,Purchase of Care,08/02/2021,3831741-421R308723L,"6,722.57",COMMUNITY INTEGRATED CARE LTD.
Children and Young Peoples Services,Head of Childrens Social Care,Third Party Payments,440038,Other third party payments E440,09/02/2021,3832746-68603-MB7-1/2021,681.95,HOME GROUP LTD FORMERLY STONHAM HOUSING ASSOCIATION LTD.
Children and Young Peoples Services,Head of Childrens Social Care,Third Party Payments,440038,Other third party payments E440,09/02/2021,3832812-MOV-064,"1,093.55",MOVING ON HOUSING.
Children and Young Peoples Services,Head of Childrens Social Care,Third Party Payments,440038,Other third party payments E440,09/02/2021,3832812-MOV-065,599.27,MOVING ON HOUSING.
Children and Young Peoples Services,Head of Childrens Social Care,Third Party Payments,440038,Other third party payments E440,09/02/2021,3832941-HH73,"1,862.79",THE CYRENIANS LTD T/A CHANGING LIVES.
Children and Young Peoples Services,Head of Childrens Social Care,Third Party Payments,440039,Other third party payments E440,09/02/2021,3832880-5413,"19,920.00",ROC FAMILY SUPPORT LTD.
Children and Young Peoples Services,Head of Childrens Social Care,Third Party Payments,440039,Other third party payments E440,09/02/2021,3832880-5414,"19,920.00",ROC FAMILY SUPPORT LTD.
Children and Young Peoples Services,Head of Childrens Social Care,Third Party Payments,440039,Other third party payments E440,09/02/2021,3832941-HH71,"1,862.79",THE CYRENIANS LTD T/A CHANGING LIVES.
"Regeneration, Economy and Growth",Development and Housing,Supplies and Services,336005,Advertising E336,09/02/2021,3832827-35755523,521.45,NEWSQUEST (YORKSHIRE & NORTH EAST) LTD.
Neighbourhoods and Climate Change,Technical Services CM0300,Supplies and Services,336005,Advertising E336,09/02/2021,3832827-35810636,929.45,NEWSQUEST (YORKSHIRE & NORTH EAST) LTD.
Dedicated Schools Grant BG0015,DSG High Needs Block,Third Party Payments,410037,Rendered by Other Local Authorities,09/02/2021,3832957-WHSI5,"13,190.00",TYNE COMMUNITY LEARNING TRUST.
Adult and Health Services,Head of Adults,Third Party Payments,479140,Purchase of Care,09/02/2021,3832568-SUSTAINABILITYPAYMENT10/31,"15,500.42",AKARI CARE LTD.
Adult and Health Services,Head of Adults,Third Party Payments,479140,Purchase of Care,09/02/2021,3832609-SUSTAINABILITYPAYMENT10/27,"98,834.60",CARE UK COMMUNITY PARTNERSHIPS LTD.
Adult and Health Services,Head of Adults,Third Party Payments,479140,Purchase of Care,09/02/2021,3832610-SUSTAINABILITYPAYMENT10/16,"4,683.60",CARE UK COMMUNITY PARTNERSHIPS LTD.
Adult and Health Services,Head of Adults,Third Party Payments,479140,Purchase of Care,09/02/2021,3832664-SUSTAINABILITYPAYMENT10/10,"19,887.45",DIPTON CARE HOME LTD.
Adult and Health Services,Head of Adults,Third Party Payments,479140,Purchase of Care,09/02/2021,3832680-SUSTAINABILITYPAYMENT10/11,"45,198.75",ELBA CARE LTD.
Adult and Health Services,Head of Adults,Third Party Payments,479140,Purchase of Care,09/02/2021,3832701-SUSTAINABILITYPAYMENT10/13,"10,751.22",FOUR SEASONS (NO 9) LTD.
Adult and Health Services,Head of Adults,Third Party Payments,479140,Purchase of Care,09/02/2021,3832702-SUSTAINABILITYPAYMENT10/22,"78,842.28",FOUR SEASONS HOMES NO 1 LTD.
Adult and Health Services,Head of Adults,Third Party Payments,479140,Purchase of Care,09/02/2021,3832711-SUSTAINABILITYPAYMENT10/19,"24,708.65",GAINFORD CARE HOMES LTD.
Adult and Health Services,Head of Adults,Third Party Payments,479140,Purchase of Care,09/02/2021,3832712-SUSTAINABILITYPAYMENT10/18,"34,953.70",GAINFORD CARE HOMES LTD.
Adult and Health Services,Head of Adults,Third Party Payments,479140,Purchase of Care,09/02/2021,3832733-SUSTAINABILITYPAYMENT10/21,"92,475.46",HC-ONE BEAMISH LTD.
Adult and Health Services,Head of Adults,Third Party Payments,479140,Purchase of Care,09/02/2021,3832734-SUSTAINABILITYPAYMENT10/12,"9,538.72",HC-ONE BEAMISH LTD.
Adult and Health Services,Head of Adults,Third Party Payments,479140,Purchase of Care,09/02/2021,3832735-SUSTAINABILITYPAYMENT10/25,"36,962.54",HC-ONE BEAMISH LTD.
Adult and Health Services,Head of Adults,Third Party Payments,479140,Purchase of Care,09/02/2021,3832736-SUSTAINABILITYPAYMENT10/26,"60,923.58",HC-ONE LTD.
Adult and Health Services,Head of Adults,Third Party Payments,479140,Purchase of Care,09/02/2021,3832737-SUSTAINABILITYPAYMENT10/28,"21,476.08",HC-ONE LTD.
Adult and Health Services,Head of Adults,Third Party Payments,479140,Purchase of Care,09/02/2021,3832739-SUSTAINABILITYPAYMENT10/20,"8,346.38",HC-ONE LTD.
Adult and Health Services,Head of Adults,Third Party Payments,479140,Purchase of Care,09/02/2021,3832750-SUSTAINABILITYPAYMENT10/24,"88,829.33",IDEAL CARE (NORTH) LTD.
Adult and Health Services,Head of Adults,Third Party Payments,479140,Purchase of Care,09/02/2021,3832782-SUSTAINABILITYPAYMENT10/17,"39,943.39",LAMBTON HOUSE LTD.
Adult and Health Services,Head of Adults,Third Party Payments,479140,Purchase of Care,09/02/2021,3832800-SUSTAINABILITYPAYMENT10/15,"1,192.34",MARIPOSA CARE LTD.
Adult and Health Services,Head of Adults,Third Party Payments,479140,Purchase of Care,09/02/2021,3832902-SUSTAINABILITYPAYMENT10/23,"47,670.66",SHOTLEY PARK HOMES FOR THE ELDERLY LTD.
Adult and Health Services,Head of Adults,Third Party Payments,479140,Purchase of Care,09/02/2021,3832923-SUSTAINABILITYPAYMENT10/29,"3,576.09",SUNNY OKUKPOLOR HUMPHREYS.
Adult and Health Services,Head of Adults,Third Party Payments,479140,Purchase of Care,09/02/2021,3832927-SUSTAINABILITYPAYMENT10/14,"34,351.05",TAMARIS HEALTHCARE (ENGLAND) LTD.
Adult and Health Services,Head of Adults,Third Party Payments,479140,Purchase of Care,09/02/2021,3832978-SUSTAINABILITYPAYMENT10/30,"31,059.08",WEST LODGE CARE HOMES LTD.
Adult and Health Services,Head of Adults,Third Party Payments,479140,Purchase of Care,09/02/2021,3832569-SUSTAINABILITYPAYMENT10/3,"52,430.55",AKARI CARE LTD.
Adult and Health Services,Head of Adults,Third Party Payments,479140,Purchase of Care,09/02/2021,3832611-SUSTAINABILITYPAYMENT10/7,"16,096.59",CARE UK COMMUNITY PARTNERSHIPS LTD.
Adult and Health Services,Head of Adults,Third Party Payments,479140,Purchase of Care,09/02/2021,3832662-SUSTAINABILITYPAYMENT10/9,"1,130.30",DEVONSHIRE HOUSE CARE LTD.
Adult and Health Services,Head of Adults,Third Party Payments,479140,Purchase of Care,09/02/2021,3832738-SUSTAINABILITYPAYMENT10/5,"3,397.68",HC-ONE LTD.
Adult and Health Services,Head of Adults,Third Party Payments,479140,Purchase of Care,09/02/2021,3832742-SUSTAINABILITYPAYMENT10/4,"45,489.60",HILL CARE 3 LTD.
Adult and Health Services,Head of Adults,Third Party Payments,479140,Purchase of Care,09/02/2021,3832799-SUSTAINABILITYPAYMENT10/8,"3,577.02",MARIPOSA CARE GROUP LTD.
Adult and Health Services,Head of Adults,Third Party Payments,479140,Purchase of Care,09/02/2021,3832878-SUSTAINABILITYPAYMENT10/2,"1,695.48",ROBERT PATTINSON.
Adult and Health Services,Head of Adults,Third Party Payments,479140,Purchase of Care,09/02/2021,3832928-SUSTAINABILITYPAYMENT10/6,"23,217.48",TAMARIS HEALTHCARE (ENGLAND) LTD.
Adult and Health Services,Head of Adults,Third Party Payments,479140,Purchase of Care,09/02/2021,3832929-SUSTAINABILITYPAYMENT10/1,"70,510.05",TAMARIS HEALTHCARE (ENGLAND) LTD.
"Regeneration, Economy and Growth",Culture Sport and Tourism,Premises,145023,Cleaning and Domestic Supplies,09/02/2021,3832991-SI-0141260,593.62,YORKSHIRE PURCHASING ORGANISATION.
Resources BK0010,Digital and Customer Services,Supplies and Services,342033,Computers and Communications,09/02/2021,3832989-KY42110,"6,300.00",XMA LTD.
Children and Young Peoples Services,Head of Education and Skills,Supplies and Services,352001,Conference Expenses,09/02/2021,3832960-9942,600.00,UK ASSOCIATION FOR MUSIC EDUCATION (MUSIC MARK).
"Regeneration, Economy and Growth",Development and Housing,Construction work A908,908105,Construction work,09/02/2021,3832834-DI20355292,707.92,NORTHERN POWERGRID (NORTHEAST) LTD.
"Regeneration, Economy and Growth",Development and Housing,Construction work A908,908105,Construction work,09/02/2021,3832981-432,595.00,WHORLTON LAND SURVEYS LTD.
"Regeneration, Economy and Growth",Corporate Property and Land,Fees,901002,Professional services,09/02/2021,3832692-131148/15,"5,695.00",FAIRHURST (CONSULTING ENGINEERS).
Children and Young Peoples Services,Head of Education and Skills,Fees,901002,Professional services,09/02/2021,3832908-2021-050,600.00,SOLMEK LTD.
Children and Young Peoples Services,Head of Education and Skills,Transport,230034,Contract Hire,09/02/2021,3832815-KDK/JAN21-3423,"1,228.80",MR IAN KELSEY T/A KDK TAXIS.
Children and Young Peoples Services,Head of Education and Skills,Transport,230034,Contract Hire,09/02/2021,3832853-3422-JAN21,"1,040.00",PETER`S TAXIS.
Children and Young Peoples Services,Head of Education and Skills,Transport,230034,Contract Hire,09/02/2021,3832918-5289-JAN21,"1,088.43",STEPHEN BRACE T/A JAFFA`S TAXI (SEAHAM).
Children and Young Peoples Services,Head of Education and Skills,Transport,230034,Contract Hire,09/02/2021,3832817-34/2020A,600.64,MR MARIUSZ LASOTA T/A BM TAXI.
Children and Young Peoples Services,Head of Education and Skills,Transport,230034,Contract Hire,09/02/2021,3832853-5924,570.00,PETER`S TAXIS.
Children and Young Peoples Services,Head of Education and Skills,Transport,230035,Contract Hire,09/02/2021,3832781-005-6049,585.00,KULDEEP MAHIL T/A KOLARS CAB.
Children and Young Peoples Services,Head of Education and Skills,Transport,230007,Contract Hire,09/02/2021,3832682-5234/0121,"2,387.60",ELLIOTTS OF TRIMDON.
Children and Young Peoples Services,Head of Education and Skills,Transport,230007,Contract Hire,09/02/2021,3832682-4402/0121,523.07,ELLIOTTS OF TRIMDON.
Children and Young Peoples Services,Head of Education and Skills,Transport,230007,Contract Hire,09/02/2021,3832682-5124/0121,742.40,ELLIOTTS OF TRIMDON.
Children and Young Peoples Services,Head of Education and Skills,Transport,230007,Contract Hire,09/02/2021,3832853-N103-JAN,"1,140.00",PETER`S TAXIS.
Children and Young Peoples Services,Head of Education and Skills,Transport,230007,Contract Hire,09/02/2021,3832872-01-4062,"1,152.73",RAYNERS COACHES.
Children and Young Peoples Services,Head of Education and Skills,Transport,230007,Contract Hire,09/02/2021,3832872-01-1011,"1,742.40",RAYNERS COACHES.
Children and Young Peoples Services,Head of Education and Skills,Transport,230007,Contract Hire,09/02/2021,3832872-01-4405,"3,055.14",RAYNERS COACHES.
Children and Young Peoples Services,Head of Education and Skills,Transport,230007,Contract Hire,09/02/2021,3832601-32804,"1,606.50",BLUELINE TAXIS.
Children and Young Peoples Services,Head of Education and Skills,Transport,230007,Contract Hire,09/02/2021,3832601-33390,"1,071.00",BLUELINE TAXIS.
Children and Young Peoples Services,Head of Education and Skills,Transport,230007,Contract Hire,09/02/2021,3832771-1080A,688.50,K & R TAXIS (STANLEY).
Children and Young Peoples Services,Head of Education and Skills,Transport,230007,Contract Hire,09/02/2021,3832673-1051,712.50,EAST DURHAM TAXIS.
Children and Young Peoples Services,Head of Education and Skills,Transport,230007,Contract Hire,09/02/2021,3832760-3036,"2,584.00",JEFF ANDERSON COACHES LTD.
Children and Young Peoples Services,Head of Education and Skills,Transport,230007,Contract Hire,09/02/2021,3832808-202,600.00,MICHAEL COBB T/A HAIL TAXIS.
Children and Young Peoples Services,Head of Education and Skills,Transport,230007,Contract Hire,09/02/2021,3832726-88,570.00,HAMLET TAXIS.
Children and Young Peoples Services,Head of Education and Skills,Transport,230003,Contract Hire,09/02/2021,3832882-ROXDCC225,"4,674.00",ROXBYS BUS HIRE.
Children and Young Peoples Services,Head of Education and Skills,Transport,230003,Contract Hire,09/02/2021,3832882-ROXDCC226,"2,584.00",ROXBYS BUS HIRE.
Children and Young Peoples Services,Head of Education and Skills,Transport,230003,Contract Hire,09/02/2021,3832882-ROXDCC227,"8,285.90",ROXBYS BUS HIRE.
Children and Young Peoples Services,Head of Education and Skills,Transport,230009,Contract Hire,09/02/2021,3832815-KDK/JAN21,633.84,MR IAN KELSEY T/A KDK TAXIS.
Dedicated Schools Grant BG0015,DSG High Needs Block,Transport,230009,Contract Hire,09/02/2021,3832774-004,630.00,KELLY`S.
Children and Young Peoples Services,Head of Education and Skills,Transport,230006,Contract Hire,09/02/2021,3832766-0004-F836,"1,121.25",JORA SINGH TAXIS.
Children and Young Peoples Services,Head of Education and Skills,Transport,230006,Contract Hire,09/02/2021,3832855-35866,714.00,PHOENIX TAXIS T/A PRATT`S TAXIS.
Children and Young Peoples Services,Head of Education and Skills,Transport,230006,Contract Hire,09/02/2021,3832653-3558,"1,008.15",DAVES MINIBUSES.
Children and Young Peoples Services,Head of Education and Skills,Transport,230006,Contract Hire,09/02/2021,3832653-3563,"1,163.25",DAVES MINIBUSES.
Children and Young Peoples Services,Head of Education and Skills,Transport,230006,Contract Hire,09/02/2021,3832757-0791,"1,423.75",JACKSON`S TAXI.
Children and Young Peoples Services,Head of Education and Skills,Transport,230006,Contract Hire,09/02/2021,3832771-1142,"2,276.40",K & R TAXIS (STANLEY).
Children and Young Peoples Services,Head of Education and Skills,Transport,230006,Contract Hire,09/02/2021,3832772-1145,"2,066.63",K & R TAXIS (STANLEY).
Children and Young Peoples Services,Head of Education and Skills,Transport,230006,Contract Hire,09/02/2021,3832785-1888,690.00,LD TAXIS.
Children and Young Peoples Services,Head of Education and Skills,Transport,230006,Contract Hire,09/02/2021,3832777-116,"1,146.00",KINGSWAY CABS LTD.
Children and Young Peoples Services,Head of Education and Skills,Transport,230006,Contract Hire,09/02/2021,3832982-AA5,540.00,WILLIAM PINDER T/A FEATHERBED TAXIS.
Children and Young Peoples Services,Head of Education and Skills,Transport,230006,Contract Hire,09/02/2021,3832726-89,"1,087.00",HAMLET TAXIS.
Children and Young Peoples Services,Head of Education and Skills,Transport,230012,Contract Hire,09/02/2021,3832813-E136/JAN,751.60,MR DEREK HENDERSON.
Children and Young Peoples Services,Head of Education and Skills,Transport,230012,Contract Hire,09/02/2021,3832600-31614,"1,468.70",BLUELINE TAXIS.
Children and Young Peoples Services,Head of Education and Skills,Transport,230016,Contract Hire,09/02/2021,3832772-1140,"2,380.40",K & R TAXIS (STANLEY).
Children and Young Peoples Services,Head of Education and Skills,Transport,230008,Contract Hire,09/02/2021,3832801-INV11/202024,"1,700.00",MARK & JOHN CHISHOLM T/A (CHEVRON).
Children and Young Peoples Services,Head of Education and Skills,Transport,230008,Contract Hire,09/02/2021,3832682-M042/0121,"1,681.55",ELLIOTTS OF TRIMDON.
Children and Young Peoples Services,Head of Education and Skills,Transport,230008,Contract Hire,09/02/2021,3832682-E060/0121,"1,812.06",ELLIOTTS OF TRIMDON.
Children and Young Peoples Services,Head of Education and Skills,Transport,230008,Contract Hire,09/02/2021,3832682-E128/0121,"1,678.13",ELLIOTTS OF TRIMDON.
Children and Young Peoples Services,Head of Education and Skills,Transport,230008,Contract Hire,09/02/2021,3832781-005-E068,"1,511.25",KULDEEP MAHIL T/A KOLARS CAB.
Children and Young Peoples Services,Head of Education and Skills,Transport,230008,Contract Hire,09/02/2021,3832607-BIL0218,992.02,CA MUSGROVE.
Children and Young Peoples Services,Head of Education and Skills,Transport,230008,Contract Hire,09/02/2021,3832872-01-M008,"2,648.60",RAYNERS COACHES.
Children and Young Peoples Services,Head of Education and Skills,Transport,230008,Contract Hire,09/02/2021,3832872-01-W042,"1,432.22",RAYNERS COACHES.
Children and Young Peoples Services,Head of Education and Skills,Transport,230008,Contract Hire,09/02/2021,3832595-000352,"2,516.00",BIRDS TAXIS LTD.
Children and Young Peoples Services,Head of Education and Skills,Transport,230008,Contract Hire,09/02/2021,3832595-000351,"1,398.80",BIRDS TAXIS LTD.
Children and Young Peoples Services,Head of Education and Skills,Transport,230008,Contract Hire,09/02/2021,3832767-E00512,"1,872.99",JOVIAL PRIVATE HIRE.
Children and Young Peoples Services,Head of Education and Skills,Transport,230008,Contract Hire,09/02/2021,3832767-M00933,"1,489.63",JOVIAL PRIVATE HIRE.
Children and Young Peoples Services,Head of Education and Skills,Transport,230008,Contract Hire,09/02/2021,3832767-M01533,"1,730.18",JOVIAL PRIVATE HIRE.
Children and Young Peoples Services,Head of Education and Skills,Transport,230008,Contract Hire,09/02/2021,3832767-M01733,880.93,JOVIAL PRIVATE HIRE.
Children and Young Peoples Services,Head of Education and Skills,Transport,230008,Contract Hire,09/02/2021,3832653-3556,"1,272.21",DAVES MINIBUSES.
Children and Young Peoples Services,Head of Education and Skills,Transport,230008,Contract Hire,09/02/2021,3832653-3557,955.50,DAVES MINIBUSES.
Children and Young Peoples Services,Head of Education and Skills,Transport,230008,Contract Hire,09/02/2021,3832653-3554,"1,172.49",DAVES MINIBUSES.
Children and Young Peoples Services,Head of Education and Skills,Transport,230008,Contract Hire,09/02/2021,3832757-0789,"1,673.66",JACKSON`S TAXI.
Children and Young Peoples Services,Head of Education and Skills,Transport,230008,Contract Hire,09/02/2021,3832757-0790,"2,294.78",JACKSON`S TAXI.
Children and Young Peoples Services,Head of Education and Skills,Transport,230008,Contract Hire,09/02/2021,3832760-3039,"1,184.39",JEFF ANDERSON COACHES LTD.
Children and Young Peoples Services,Head of Education and Skills,Transport,230008,Contract Hire,09/02/2021,3832760-3040,"1,598.51",JEFF ANDERSON COACHES LTD.
Children and Young Peoples Services,Head of Education and Skills,Transport,230008,Contract Hire,09/02/2021,3832760-3037,"1,823.22",JEFF ANDERSON COACHES LTD.
Children and Young Peoples Services,Head of Education and Skills,Transport,230008,Contract Hire,09/02/2021,3832766-0025,"1,984.20",JORA SINGH TAXIS.
Children and Young Peoples Services,Head of Education and Skills,Transport,230008,Contract Hire,09/02/2021,3832772-1141,"3,025.20",K & R TAXIS (STANLEY).
Children and Young Peoples Services,Head of Education and Skills,Transport,230008,Contract Hire,09/02/2021,3832772-1147,"2,109.00",K & R TAXIS (STANLEY).
Children and Young Peoples Services,Head of Education and Skills,Transport,230008,Contract Hire,09/02/2021,3832772-1143,"1,950.60",K & R TAXIS (STANLEY).
Children and Young Peoples Services,Head of Education and Skills,Transport,230008,Contract Hire,09/02/2021,3832772-1144,"1,725.96",K & R TAXIS (STANLEY).
Children and Young Peoples Services,Head of Education and Skills,Transport,230008,Contract Hire,09/02/2021,3832772-1146,"2,269.93",K & R TAXIS (STANLEY).
Children and Young Peoples Services,Head of Education and Skills,Transport,230008,Contract Hire,09/02/2021,3832785-1892,"1,425.00",LD TAXIS.
Children and Young Peoples Services,Head of Education and Skills,Transport,230008,Contract Hire,09/02/2021,3832785-1894,"1,200.00",LD TAXIS.
Children and Young Peoples Services,Head of Education and Skills,Transport,230008,Contract Hire,09/02/2021,3832777-114,"1,710.00",KINGSWAY CABS LTD.
Neighbourhoods and Climate Change,Technical Services CM0300,Third Party Payments,430128,Rendered by Private Contractors,09/02/2021,3832921-730,574.50,STUART MARLEY LTD.
"Regeneration, Economy and Growth",Development and Housing,Supplies and Services,384899,Miscellaneous Expenses,09/02/2021,3832727-ND014/4,"2,722.64",HANDCRAFTED PROJECTS.
Neighbourhoods and Climate Change,Partnerships & Community Engagement Div.,Cap Exp on Grants & Other Financial Assistance (REFCUS),918004,Contributions to other bodies 918004,09/02/2021,3832573-VOUCHER20NB-MDUR013,"1,000.00",ALL SAINTS RC PARISH CENTRE.
Neighbourhoods and Climate Change,Partnerships & Community Engagement Div.,Cap Exp on Grants & Other Financial Assistance (REFCUS),918004,Contributions to other bodies 918004,09/02/2021,3832915-VOUCHER20NB-STAN008,"9,000.00",STANLEY YOUNG PEOPLES CLUB.
Neighbourhoods and Climate Change,Partnerships & Community Engagement Div.,Cap Exp on Grants & Other Financial Assistance (REFCUS),918004,Contributions to other bodies 918004,09/02/2021,3832943-VOUCHER20NB-EDUR054,"2,796.00",THE ROTARY CLUB OF DURHAM ELVET.
Resources BK0010,Legal & Democratic Services,Supplies and Services,338025,Services,09/02/2021,3832896-5377,"1,830.00",SEATON LENG & SON LTD (FUNERAL DIRECTORS).
Resources BK0010,Legal & Democratic Services,Supplies and Services,384071,Miscellaneous Expenses,09/02/2021,3832583-2284,852.00,AUTO ITEMS LTD.
Neighbourhoods and Climate Change,Environmental Services,Transport,215005,Running Costs of Vehicles,09/02/2021,3832839-702311,"14,029.40",OIL NRG LTD.
"Regeneration, Economy and Growth",Corporate Property and Land,Supplies and Services,304221,Equipment and Materials,09/02/2021,3832926-JE02092-1-TL-HLB,558.00,T MANNERS & SONS LTD.
Neighbourhoods and Climate Change,Technical Services CM0300,Supplies and Services,304221,Equipment and Materials,09/02/2021,3832769-0303/00271894,"2,350.00",JT DOVE LTD.
Neighbourhoods and Climate Change,Technical Services CM0300,Supplies and Services,304221,Equipment and Materials,09/02/2021,3832769-0303/00271898,"5,424.40",JT DOVE LTD.
Neighbourhoods and Climate Change,Technical Services CM0300,Supplies and Services,304221,Equipment and Materials,09/02/2021,3832596-BMPR/388/BJW,"1,390.00",BISHOP MIDDLEHAM PLANT & RECYCLING LTD.
Neighbourhoods and Climate Change,Environmental Services,Supplies and Services,304221,Equipment and Materials,09/02/2021,3832567-CD971068415,988.50,AGROVISTA UK LTD FORMERLY SHERRIFF AMENITY.
"Regeneration, Economy and Growth",Corporate Property and Land,Supplies and Services,304221,Equipment and Materials,09/02/2021,3832628-DRM/212663,725.00,CITY ELECTRICAL FACTORS LTD.
"Regeneration, Economy and Growth",Corporate Property and Land,Supplies and Services,304221,Equipment and Materials,09/02/2021,3832901-0000115125,"1,320.00",SHORTS INDUSTRIES LTD T/A SHORTS LIFTS.
Neighbourhoods and Climate Change,Technical Services CM0300,Supplies and Services,304221,Equipment and Materials,09/02/2021,3832930-9042938976,"1,522.01",TARMAC TRADING LTD.
"Regeneration, Economy and Growth",Corporate Property and Land,Supplies and Services,304221,Equipment and Materials,09/02/2021,3832947-127342,"1,190.22",TOMMY WARDLE.
Neighbourhoods and Climate Change,Environmental Services,Supplies and Services,304221,Equipment and Materials,09/02/2021,3832794-520419,"2,782.00",LLOYD LTD.
Neighbourhoods and Climate Change,Technical Services CM0300,Supplies and Services,304221,Equipment and Materials,09/02/2021,3832906-083834,"6,155.86",SIMMONSIGNS LTD.
"Regeneration, Economy and Growth",Corporate Property and Land,Supplies and Services,304221,Equipment and Materials,09/02/2021,3832590-6788,"3,775.00",BELL CONTROL SOLUTIONS LTD.
Adult and Health Services,Head of Adults,Supplies and Services,304259,Equipment and Materials,09/02/2021,3832954-FEBRUARY2021,"1,000.00",TUDHOE COMMUNITY CENTRE.
Children and Young Peoples Services,Head of Education and Skills,Supplies and Services,304259,Equipment and Materials,09/02/2021,3832740-961553081,765.00,HCL SAFETY LTD.
"Regeneration, Economy and Growth",Development and Housing,Supplies and Services,338035,Services,09/02/2021,3832626-805668044,521.73,CITY & GUILDS OF LONDON INSTITUTE.
Adult and Health Services,Commissioning inc Supporting People,Supplies and Services,377015,County Durham Development,09/02/2021,3832946-2529-A,"3,294.00",THREE MOTION MEDIA LTD.
Children and Young Peoples Services,Head of Early Help Inclusion & Vulnerable Children.,Premises,140001,Fixtures and Fittings,09/02/2021,3832652-160159,"2,081.40",DART VALLEY SYSTEMS LTD.
Children and Young Peoples Services,Head of Early Help Inclusion & Vulnerable Children.,Premises,140001,Fixtures and Fittings,09/02/2021,3832652-160160,"2,051.40",DART VALLEY SYSTEMS LTD.
Children and Young Peoples Services,Head of Early Help Inclusion & Vulnerable Children.,Supplies and Services,308011,Furniture,09/02/2021,3832571-170596,"1,482.00",ALBANY OFFICE EQUIPMENT (WHOLESALE) LTD.
Neighbourhoods and Climate Change,Environmental Services,Transport,215022,Running Costs of Vehicles,09/02/2021,3832839-702314,"1,411.52",OIL NRG LTD.
"Regeneration, Economy and Growth",Business Durham CL0850,Premises,108099,Service Repairs and Maintenance,09/02/2021,3832917-16688,"2,548.00",STEADFAST SECURITY SOLUTIONS LTD.
"Regeneration, Economy and Growth",Business Durham CL0850,Premises,108125,Service Repairs and Maintenance,09/02/2021,3832732-IHI100-2543,"2,670.00",HAYFIELDS CONTRACTING LTD T/A COMPLETE WEED CONTROL (DUR & TEESIDE).
Dedicated Schools Grant BG0015,DSG High Needs Block,Third Party Payments,425005,Rendered by Voluntary Organisations,09/02/2021,3832831-0000055292,"14,040.00",NORTH EAST AUTISM SOCIETY.
Dedicated Schools Grant BG0015,DSG High Needs Block,Third Party Payments,425005,Rendered by Voluntary Organisations,09/02/2021,3832831-0000055296,"14,218.75",NORTH EAST AUTISM SOCIETY.
Dedicated Schools Grant BG0015,DSG High Needs Block,Third Party Payments,425005,Rendered by Voluntary Organisations,09/02/2021,3832831-0000055299,"14,040.00",NORTH EAST AUTISM SOCIETY.
Dedicated Schools Grant BG0015,DSG High Needs Block,Third Party Payments,425005,Rendered by Voluntary Organisations,09/02/2021,3832831-0000055304,"23,790.00",NORTH EAST AUTISM SOCIETY.
Dedicated Schools Grant BG0015,DSG High Needs Block,Third Party Payments,425005,Rendered by Voluntary Organisations,09/02/2021,3832831-0000055307,"23,790.00",NORTH EAST AUTISM SOCIETY.
Dedicated Schools Grant BG0015,DSG High Needs Block,Third Party Payments,425005,Rendered by Voluntary Organisations,09/02/2021,3832831-0000055313,"14,040.00",NORTH EAST AUTISM SOCIETY.
Dedicated Schools Grant BG0015,DSG High Needs Block,Third Party Payments,425005,Rendered by Voluntary Organisations,09/02/2021,3832831-0000055323,"26,659.16",NORTH EAST AUTISM SOCIETY.
Dedicated Schools Grant BG0015,DSG High Needs Block,Third Party Payments,425005,Rendered by Voluntary Organisations,09/02/2021,3832831-0000055325,"27,601.67",NORTH EAST AUTISM SOCIETY.
Dedicated Schools Grant BG0015,DSG High Needs Block,Third Party Payments,425005,Rendered by Voluntary Organisations,09/02/2021,3832831-0000055330,"14,040.00",NORTH EAST AUTISM SOCIETY.
Dedicated Schools Grant BG0015,DSG High Needs Block,Third Party Payments,425005,Rendered by Voluntary Organisations,09/02/2021,3832831-0000055350,"14,040.00",NORTH EAST AUTISM SOCIETY.
Dedicated Schools Grant BG0015,DSG High Needs Block,Third Party Payments,425005,Rendered by Voluntary Organisations,09/02/2021,3832831-0000055361,"7,540.00",NORTH EAST AUTISM SOCIETY.
Dedicated Schools Grant BG0015,DSG High Needs Block,Third Party Payments,425005,Rendered by Voluntary Organisations,09/02/2021,3832831-0000055364,"14,040.00",NORTH EAST AUTISM SOCIETY.
Neighbourhoods and Climate Change,Technical Services CM0300,Supplies and Services,304357,Equipment and Materials,09/02/2021,3832713-DCC100121,"14,167.57",GAP GROUP LTD.
Neighbourhoods and Climate Change,Technical Services CM0300,Supplies and Services,304357,Equipment and Materials,09/02/2021,3832713-DCC170121,"16,179.16",GAP GROUP LTD.
Neighbourhoods and Climate Change,Partnerships & Community Engagement Div.,Supplies and Services,384086,Miscellaneous Expenses,09/02/2021,3832637-VOUCHER20NB-4TOG010,"1,735.00",CORNFORTH PARTNERSHIP.
Neighbourhoods and Climate Change,Partnerships & Community Engagement Div.,Supplies and Services,384086,Miscellaneous Expenses,09/02/2021,3832646-VOUCHER20NB-DCTY061,"1,487.00",CRIMESTOPPERS TRUST.
Neighbourhoods and Climate Change,Partnerships & Community Engagement Div.,Supplies and Services,384086,Miscellaneous Expenses,09/02/2021,3832776-VOUCHER20NB-DCTY033,"1,250.00",KINGS CHURCH DURHAM.
Neighbourhoods and Climate Change,Partnerships & Community Engagement Div.,Supplies and Services,384086,Miscellaneous Expenses,09/02/2021,3832984-VOUCHER20NB-EDUR052,"3,400.00",WINGATE COMMUNITY ASSOCIATION.
Neighbourhoods and Climate Change,Technical Services CM0300,Supplies and Services,304999,Equipment and Materials,09/02/2021,3832985-49569,"4,875.00",WIRELESS CCTV LTD.
Children and Young Peoples Services,Head of Early Help Inclusion & Vulnerable Children.,Supplies and Services,384700,Miscellaneous Expenses,09/02/2021,3832640-WFSF0004,"3,703.00",COUNTY DURHAM FURNITURE HELP SCHEME (CDFHS).
Adult and Health Services,Commissioning inc Supporting People,Third Party Payments,479111,Purchase of Care,09/02/2021,3832612-4768,"5,258.66",CARERS FEDERATION LTD.
"Regeneration, Economy and Growth",Corporate Property and Land,Supplies and Services,384199,Miscellaneous Expenses,09/02/2021,3832764-0000083015,"7,755.00",JOHN WADE (HAULAGE) LTD.
"Regeneration, Economy and Growth",Corporate Property and Land,Supplies and Services,384199,Miscellaneous Expenses,09/02/2021,3832764-0000083016,700.00,JOHN WADE (HAULAGE) LTD.
"Regeneration, Economy and Growth",Corporate Property and Land,Supplies and Services,384199,Miscellaneous Expenses,09/02/2021,3832764-0000083017,"1,190.00",JOHN WADE (HAULAGE) LTD.
"Regeneration, Economy and Growth",Corporate Property and Land,Supplies and Services,384199,Miscellaneous Expenses,09/02/2021,3832764-0000083018,"1,975.00",JOHN WADE (HAULAGE) LTD.
Children and Young Peoples Services,Head of Education and Skills,Supplies and Services,384199,Miscellaneous Expenses,09/02/2021,3832809-INV-2753,"1,375.00",MID NITE EXPRESS.
Children and Young Peoples Services,Head of Education and Skills,Supplies and Services,384199,Miscellaneous Expenses,09/02/2021,3832871-INV-0118,"20,894.37",RAW DIGITAL TRAINING LTD.
Children and Young Peoples Services,Head of Childrens Social Care,Supplies and Services,384199,Miscellaneous Expenses,09/02/2021,3832791-198759,580.00,LEXTOX.
Dedicated Schools Grant BG0015,DSG High Needs Block,Supplies and Services,384199,Miscellaneous Expenses,09/02/2021,3832684-127,"1,912.50",EMILY BACKES T/A TALKINDALES.
"Regeneration, Economy and Growth",Corporate Property and Land,Third Party Payments,430100,Rendered by Private Contractors,09/02/2021,3832958-DCC/GT/172,865.00,TYNE VALLEY FLOORING & CARPETS.
"Regeneration, Economy and Growth",Corporate Property and Land,Third Party Payments,430100,Rendered by Private Contractors,09/02/2021,3832770-1-344,"27,445.00",JTL SCAFFOLDING LTD.
Neighbourhoods and Climate Change,Technical Services CM0300,Third Party Payments,430100,Rendered by Private Contractors,09/02/2021,3832868-13071,653.23,QUANTUM POWER CONNECTIONS LTD.
Neighbourhoods and Climate Change,Technical Services CM0300,Third Party Payments,430100,Rendered by Private Contractors,09/02/2021,3832868-13072,653.23,QUANTUM POWER CONNECTIONS LTD.
Neighbourhoods and Climate Change,Technical Services CM0300,Third Party Payments,430100,Rendered by Private Contractors,09/02/2021,3832868-13083,"6,472.80",QUANTUM POWER CONNECTIONS LTD.
"Regeneration, Economy and Growth",Corporate Property and Land,Third Party Payments,430100,Rendered by Private Contractors,09/02/2021,3832585-2064,"1,321.00",AWR ROOFING & ALUMIN RAINWATER SYSTEMS LTD.
"Regeneration, Economy and Growth",Corporate Property and Land,Third Party Payments,430100,Rendered by Private Contractors,09/02/2021,3832590-6811,"4,682.00",BELL CONTROL SOLUTIONS LTD.
Dedicated Schools Grant BG0015,DSG High Needs Block,Third Party Payments,440080,Other third party payments E440,09/02/2021,3832831-0000055297,"9,165.00",NORTH EAST AUTISM SOCIETY.
Dedicated Schools Grant BG0015,DSG High Needs Block,Third Party Payments,440080,Other third party payments E440,09/02/2021,3832831-0000055298,"14,040.00",NORTH EAST AUTISM SOCIETY.
Dedicated Schools Grant BG0015,DSG High Needs Block,Third Party Payments,440080,Other third party payments E440,09/02/2021,3832831-0000055309,"27,032.92",NORTH EAST AUTISM SOCIETY.
Dedicated Schools Grant BG0015,DSG High Needs Block,Third Party Payments,440080,Other third party payments E440,09/02/2021,3832831-0000055333,"9,860.00",NORTH EAST AUTISM SOCIETY.
Dedicated Schools Grant BG0015,DSG High Needs Block,Third Party Payments,440080,Other third party payments E440,09/02/2021,3832831-0000055347,"27,910.42",NORTH EAST AUTISM SOCIETY.
Dedicated Schools Grant BG0015,DSG High Needs Block,Third Party Payments,440080,Other third party payments E440,09/02/2021,3832831-0000055349,"14,040.00",NORTH EAST AUTISM SOCIETY.
Dedicated Schools Grant BG0015,DSG High Needs Block,Third Party Payments,440080,Other third party payments E440,09/02/2021,3832831-0000055351,"27,244.17",NORTH EAST AUTISM SOCIETY.
Resources BK0010,Digital and Customer Services,Supplies and Services,332029,Printing Stationery and Gen Off Exps,09/02/2021,3832870-18755,"1,000.00",RADECAL SIGNS GRAPHICS & ADVERTISING.
"Regeneration, Economy and Growth",Business Durham CL0850,Supplies and Services,338066,Services,09/02/2021,3832937-0000000845,"7,272.72",TEDCO BUSINESS SUPPORT LTD.
Children and Young Peoples Services,Head of Childrens Social Care,Third Party Payments,425021,Rendered by Voluntary Organisations,09/02/2021,3832976-INV-1396B,"22,755.00",WE CARE RECRUITMENT SOLUTIONS LTD.
Children and Young Peoples Services,Head of Childrens Social Care,Third Party Payments,425021,Rendered by Voluntary Organisations,09/02/2021,3832689-R1010939,"12,800.00",EVOLUTION CHILDRENS SERVICES LTD.
Children and Young Peoples Services,Head of Childrens Social Care,Third Party Payments,425021,Rendered by Voluntary Organisations,09/02/2021,3832849-310918,"16,749.34",PEARTREE PROJECTS LTD.
Children and Young Peoples Services,Head of Childrens Social Care,Third Party Payments,425021,Rendered by Voluntary Organisations,09/02/2021,3832992-07012,"15,953.93",YOUNG FOUNDATIONS LTD.
Children and Young Peoples Services,Head of Childrens Social Care,Third Party Payments,425021,Rendered by Voluntary Organisations,09/02/2021,3832847-0002,"3,100.00",PAULINE MCDOUGALL.
Adult and Health Services,Head of Adults,Third Party Payments,470101,Purchase of Care,09/02/2021,3832851-49119,"21,745.44",PERCY HEDLEY FOUNDATION.
Adult and Health Services,Head of Adults,Third Party Payments,470101,Purchase of Care,09/02/2021,3832851-49121,"22,965.95",PERCY HEDLEY FOUNDATION.
Adult and Health Services,Head of Adults,Third Party Payments,470101,Purchase of Care,09/02/2021,3832851-49204,"22,525.80",PERCY HEDLEY FOUNDATION.
Children and Young Peoples Services,Head of Childrens Social Care,Third Party Payments,425023,Rendered by Voluntary Organisations,09/02/2021,3832831-0000054358,"35,789.00",NORTH EAST AUTISM SOCIETY.
Dedicated Schools Grant BG0015,DSG High Needs Block,Transfer Payments,510027,School Children,09/02/2021,3832672-0000049488,"200,000.00",EAST DURHAM COLLEGE.
Children and Young Peoples Services,Head of Early Help Inclusion & Vulnerable Children.,Supplies and Services,338076,Services,09/02/2021,3832914-1960,"3,178.33",STANLEY TOWN COUNCIL.*
Adult and Health Services,Head of Adults,Transport,230005,Contract Hire,09/02/2021,3832853-DM204-JAN,540.00,PETER`S TAXIS.
Adult and Health Services,Head of Adults,Transport,230005,Contract Hire,09/02/2021,3832595-000350,"1,582.40",BIRDS TAXIS LTD.
Adult and Health Services,Head of Adults,Transport,230005,Contract Hire,09/02/2021,3832600-30899,895.98,BLUELINE TAXIS.
Adult and Health Services,Head of Adults,Transport,230005,Contract Hire,09/02/2021,3832771-1074A,"1,443.00",K & R TAXIS (STANLEY).
Adult and Health Services,Head of Adults,Transport,230005,Contract Hire,09/02/2021,3832771-1074,"1,036.00",K & R TAXIS (STANLEY).
Adult and Health Services,Head of Adults,Transport,230005,Contract Hire,09/02/2021,3832785-1891,"1,487.60",LD TAXIS.
Adult and Health Services,Head of Adults,Transport,230005,Contract Hire,09/02/2021,3832792-008,"1,343.00",LIMASEC LTD T/A LIMA TRANSPORT.
Resources BK0010,Digital and Customer Services,Stock A926,926900,Stock in hand-Inventory system,09/02/2021,3832658-7402684822,"3,507.00",DELL COMPUTER CORPORATION LTD.
Neighbourhoods and Climate Change,Technical Services CM0300,Stock A926,926900,Stock in hand-Inventory system,09/02/2021,3832563-39445,915.00,1ST COVERALL COMPANY LTD.
Neighbourhoods and Climate Change,Technical Services CM0300,Stock A926,926900,Stock in hand-Inventory system,09/02/2021,3832763-10030,672.40,JG UNIFORMS.
"Regeneration, Economy and Growth",Business Durham CL0850,Supplies and Services,372009,Subscriptions E372,09/02/2021,3832979-UOTR4731300,"1,613.68",WESTERN UNION BUSINESS SOLUTIONS.
"Regeneration, Economy and Growth",Culture Sport and Tourism,Supplies and Services,372009,Subscriptions E372,09/02/2021,3832935-2170001931,"2,000.00",TECHNOGYM UK LTD.
"Regeneration, Economy and Growth",Business Durham CL0850,Supplies and Services,372009,Subscriptions E372,09/02/2021,3832608-NET21,"1,015.00",CAMPAIGN FOR SCIENCE & ENGINEERING.
Resources BK0010,Digital and Customer Services,Supplies and Services,304639,Equipment and Materials,09/02/2021,3832989-KY42408,974.12,XMA LTD.
"Regeneration, Economy and Growth",Business Durham CL0850,Supplies and Services,344033,Telephones,09/02/2021,3832704-DERW01-0032,898.57,FREEDOM COMMUNICATIONS (UK) LTD.
Neighbourhoods and Climate Change,Environmental Services,Transport,210057,Repair and Maintenance of Vehicles,09/02/2021,3832660-DE11378750,674.85,DENNIS EAGLE LTD.
Neighbourhoods and Climate Change,Environmental Services,Transport,210057,Repair and Maintenance of Vehicles,09/02/2021,3832591-35194924,654.96,BELL TRUCK SALES LTD T/A BELL TRUCK & VAN.
Neighbourhoods and Climate Change,Environmental Services,Transport,210057,Repair and Maintenance of Vehicles,09/02/2021,3832659-96401426,529.75,DENNIS EAGLE LTD T/A TERBERG MATEC (UK) LTD.
Neighbourhoods and Climate Change,Environmental Services,Transport,210057,Repair and Maintenance of Vehicles,09/02/2021,3832659-96401490,529.75,DENNIS EAGLE LTD T/A TERBERG MATEC (UK) LTD.
Neighbourhoods and Climate Change,Environmental Services,Transport,210057,Repair and Maintenance of Vehicles,09/02/2021,3832659-96401330,"1,560.30",DENNIS EAGLE LTD T/A TERBERG MATEC (UK) LTD.
Neighbourhoods and Climate Change,Environmental Services,Transport,210057,Repair and Maintenance of Vehicles,09/02/2021,3832675-S206995,"1,400.00",ECON ENGINEERING LTD.
Neighbourhoods and Climate Change,Environmental Services,Transport,210057,Repair and Maintenance of Vehicles,09/02/2021,3832615-245779,792.12,CARRS BILLINGTON AGRICULTURE.
Children and Young Peoples Services,Head of Education and Skills,Supplies and Services,338094,Services,09/02/2021,3832858-17432/14,"1,020.00",PIONEERING CARE PARTNERSHIP.
"Regeneration, Economy and Growth",Transport and Contracted Services,Supplies and Services,336005,Advertising E336,10/02/2021,3833074-SNE027436,"3,499.66",COMMUNICORP UK LTD.
"Regeneration, Economy and Growth",Development and Housing,Supplies and Services,336005,Advertising E336,10/02/2021,3833242-35681325,"1,011.05",NEWSQUEST (YORKSHIRE & NORTH EAST) LTD.
"Regeneration, Economy and Growth",Business Durham CL0850,Supplies and Services,336005,Advertising E336,10/02/2021,3833136-18527,"1,700.00",GARDINER RICHARDSON LTD.
Children and Young Peoples Services,Head of Childrens Social Care,Employees,080025,Agency Staff,10/02/2021,3833141-2445927,"161,997.89",GEOMETRIC RESULTS INTERNATIONAL.
"Regeneration, Economy and Growth",Corporate Property and Land,Supplies and Services,324117,Provisions E324,10/02/2021,3833373-6068134,"1,705.00",WATERLOGIC GB LTD.*
Children and Young Peoples Services,Head of Childrens Social Care,Supplies and Services,384500,Miscellaneous Expenses,10/02/2021,3833020-2021-135,590.00,ASPIRE PSYCHOLOGICAL SERVICES LTD.
Resources BK0010,Digital and Customer Services,Supplies and Services,342033,Computers and Communications,10/02/2021,3833385-KY45233,"2,846.90",XMA LTD.
Resources BK0010,Digital and Customer Services,Supplies and Services,342033,Computers and Communications,10/02/2021,3833324-135667,701.12,SWITCHSHOP LTD.
Neighbourhoods and Climate Change,Environmental Services,Supplies and Services,352001,Conference Expenses,10/02/2021,3833210-5315,"4,995.00",MALLARD CONSULTANCY LTD.
"Regeneration, Economy and Growth",Transport and Contracted Services,Construction work A908,908105,Construction work,10/02/2021,3833047-NEI-EXP-02-2021-003,"6,256.47",BRITISH GAS TRADING LTD.
"Regeneration, Economy and Growth",Development and Housing,Construction work A908,908105,Construction work,10/02/2021,3833248-D120355310,"1,385.08",NORTHERN POWERGRID (NORTHEAST) LTD.
"Regeneration, Economy and Growth",Development and Housing,Construction work A908,908105,Construction work,10/02/2021,3833248-DI20355328,"7,711.52",NORTHERN POWERGRID (NORTHEAST) LTD.
"Regeneration, Economy and Growth",Development and Housing,Construction work A908,908105,Construction work,10/02/2021,3833248-DI20355398,"5,350.65",NORTHERN POWERGRID (NORTHEAST) LTD.
"Regeneration, Economy and Growth",Development and Housing,Construction work A908,908105,Construction work,10/02/2021,3833248-DI20355400,"4,804.46",NORTHERN POWERGRID (NORTHEAST) LTD.
"Regeneration, Economy and Growth",Development and Housing,Construction work A908,908105,Construction work,10/02/2021,3833248-DI20355403,"19,408.72",NORTHERN POWERGRID (NORTHEAST) LTD.
"Regeneration, Economy and Growth",Development and Housing,Construction work A908,908105,Construction work,10/02/2021,3833248-DI20355404,"1,868.57",NORTHERN POWERGRID (NORTHEAST) LTD.
"Regeneration, Economy and Growth",Development and Housing,Construction work A908,908105,Construction work,10/02/2021,3833248-DI20355407,"15,761.81",NORTHERN POWERGRID (NORTHEAST) LTD.
"Regeneration, Economy and Growth",Corporate Property and Land,Construction work A908,908105,Construction work,10/02/2021,3833250-914927531,"2,624.00",NORTHUMBRIAN WATER LTD.
"Regeneration, Economy and Growth",Business Durham CL0850,Construction work A908,908105,Construction work,10/02/2021,3833177-TMP01400,"7,000.00",INTERSERVE CONSTRUCTION LTD.
Children and Young Peoples Services,Head of Education and Skills,Construction work A908,908105,Construction work,10/02/2021,3833176-ISD0341,"11,105.68",INSPIREDSPACES DURHAM (PROJECTCO1) LTD.
"Regeneration, Economy and Growth",Development and Housing,Construction work A908,908105,Construction work,10/02/2021,3833248-116989,"6,505.14",NORTHERN POWERGRID (NORTHEAST) LTD.
Children and Young Peoples Services,Head of Education and Skills,Construction work A908,908105,Construction work,10/02/2021,3833120-169339,"692,264.14",ESH CONSTRUCTION LTD FORMERLY LUMSDEN & CARROLL CONSTRUCTION LTD.
Neighbourhoods and Climate Change,Environmental Services,Supplies and Services,338027,Services,10/02/2021,3833185-530,"1,350.00",JENNY GRANT (ORGANICS RECYCLING GROUP).
Resources BK0010,Transformation,Fees,901002,Professional services,10/02/2021,3833292-004389,"6,500.00",RYDER ARCHITECTURE LTD.
Children and Young Peoples Services,Head of Education and Skills,Transport,230034,Contract Hire,10/02/2021,3833192-0004JAN21,961.87,JORA SINGH TAXIS.
Children and Young Peoples Services,Head of Education and Skills,Transport,230034,Contract Hire,10/02/2021,3833198-CTD031/21,"1,040.00",KEVIN WALKER T/A CENTRAL TAXIS.
Children and Young Peoples Services,Head of Education and Skills,Transport,230034,Contract Hire,10/02/2021,3832996-5-JAN21,"1,265.00",A & C TAXIS.
Children and Young Peoples Services,Head of Education and Skills,Transport,230034,Contract Hire,10/02/2021,3833062-5208/04,627.00,CHRISTOPHER MADDISON (TAXI).
Children and Young Peoples Services,Head of Education and Skills,Transport,230034,Contract Hire,10/02/2021,3833230-INV0013,"1,248.30",MR S HUSSAIN T/A EMPIRE CARS.
Children and Young Peoples Services,Head of Education and Skills,Transport,230034,Contract Hire,10/02/2021,3833227-3/2021,"1,111.50",MR MARIUSZ LASOTA T/A BM TAXI.
Children and Young Peoples Services,Head of Education and Skills,Transport,230034,Contract Hire,10/02/2021,3833227-7/2021,"1,520.00",MR MARIUSZ LASOTA T/A BM TAXI.
Children and Young Peoples Services,Head of Education and Skills,Transport,230034,Contract Hire,10/02/2021,3832994-12102,"1,189.60",24/7 TAXI SERVICES LTD.
Children and Young Peoples Services,Head of Education and Skills,Transport,230034,Contract Hire,10/02/2021,3833022-811,"1,349.00",AT TAXIS LTD.
Children and Young Peoples Services,Head of Education and Skills,Transport,230034,Contract Hire,10/02/2021,3833221-235,"1,620.00",MR BRIAN JOHNSON T/A BRYS TAXIS.
Children and Young Peoples Services,Head of Education and Skills,Transport,230035,Contract Hire,10/02/2021,3833223-HERM1-21,"1,060.20",MR CT WALKER T/A CW TAXIS.
